{"text_format":"1","workbook":"xlsx","n_sheets":11,"sheets":["Prompt","C100","C101","C200","C300","C326","C400","C600","C700","C800","Enviar"],"not_rendered":{"charts":0,"images":7,"macros":1,"external_links":0,"defined_names":2,"comments":2,"pivot_tables":0},"unopened":[],"bounds":{"document_bytes":16777216,"sheet_cells":100000,"rows_first":2000,"rows_last":500,"rows_between":2000,"halvings":0,"cell_chars":16384,"cell_head_chars":4096},"cells_cut":0,"cells_raw":0,"read":"whole","date_system":"1900"}

{"sheet":"Prompt","index":0,"n_rows":79,"n_cols":4,"rows_kept":79,"cut":false,"hidden":false,"merged":[[1,3,2,6],[4,1,6,8],[43,1,44,8],[78,1,79,8],[9,1,10,8]]}
[]
[null,null,null,"¡ATENCIÓN!"]
[]
[]
[null,"Para hacer uso de las funcionalidades de esta Cédula Electrónica debe habilitar macros"]
[]
[]
[]
[]
[null,"Si utiliza Excel 2013 siga el siguiente procedimiento:"]
[]
[]
[]
[]
[]
[]
[]
[]
[]
[]
[]
[]
[]
[]
[]
[]
[]
[]
[]
[]
[]
[]
[]
[]
[]
[]
[]
[]
[]
[]
[]
[]
[]
[null,"Si utiliza Excel 2007 siga el siguiente procedimiento:"]
[]
[]
[]
[]
[]
[]
[]
[]
[]
[]
[]
[]
[]
[]
[]
[]
[]
[]
[]
[]
[]
[]
[]
[]
[]
[]
[]
[]
[]
[]
[]
[]
[]
[]
[null,"Si utiliza Excel 2000, 2002, 2003 siga el siguiente procedimiento:"]

{"sheet":"C100","index":1,"n_rows":624,"n_cols":36,"rows_kept":624,"cut":false,"hidden":true,"merged":[[372,22,372,23],[438,10,438,14],[439,10,439,14],[305,11,305,12],[305,13,305,14],[326,15,330,16],[327,11,329,11],[327,12,330,12],[327,13,330,13],[327,14,330,14],[306,11,306,12],[306,13,306,14],[306,15,306,16],[318,14,318,15],[455,26,455,30],[223,3,223,8],[224,3,224,8],[225,3,225,8],[226,3,226,8],[227,3,227,8],[228,3,228,8],[229,3,229,8],[329,26,329,31],[331,15,331,16],[332,15,332,16],[453,8,453,12],[443,26,443,30],[333,15,333,16],[334,7,334,10],[334,15,334,16],[341,14,341,15],[340,25,340,26],[372,24,372,29],[304,11,304,12],[304,13,304,14],[304,15,304,16],[305,15,305,16],[306,6,306,10],[301,11,301,12],[301,13,301,14],[301,15,301,16],[302,11,302,12],[302,13,302,14],[302,15,302,16],[303,11,303,12],[303,13,303,14],[303,15,303,16],[298,11,298,12],[298,13,298,14],[298,15,298,16],[299,11,299,12],[299,13,299,14],[299,15,299,16],[300,11,300,12],[300,13,300,14],[300,15,300,16],[295,11,295,12],[295,13,295,14],[295,15,295,16],[296,11,296,12],[296,13,296,14],[296,15,296,16],[297,11,297,12],[297,13,297,14],[297,15,297,16],[292,11,292,12],[292,13,292,14],[292,15,292,16],[293,11,293,12],[293,13,293,14],[293,15,293,16],[294,11,294,12],[294,13,294,14],[294,15,294,16],[289,11,289,12],[289,13,289,14],[289,15,289,16],[290,11,290,12],[290,13,290,14],[290,15,290,16],[291,11,291,12],[291,13,291,14],[291,15,291,16],[286,11,286,12],[286,13,286,14],[286,15,286,16],[287,11,287,12],[287,13,287,14],[287,15,287,16],[287,23,287,28],[288,11,288,12],[288,13,288,14],[288,15,288,16],[274,23,274,28],[275,7,275,9],[275,10,275,11],[275,12,275,14],[275,15,275,16],[282,11,284,12],[282,13,284,14],[282,15,284,16],[285,11,285,12],[285,13,285,14],[285,15,285,16],[272,10,272,11],[272,12,272,14],[272,15,272,16],[273,10,273,11],[273,12,273,14],[273,15,273,16],[274,10,274,11],[274,12,274,14],[274,15,274,16],[269,10,269,11],[269,12,269,14],[269,15,269,16],[270,10,270,11],[270,12,270,14],[270,15,270,16],[271,10,271,11],[271,12,271,14],[271,15,271,16],[218,24,219,25],[218,26,219,27],[218,28,219,29],[244,7,244,11],[262,23,262,28],[264,10,264,14],[264,15,268,16],[265,10,268,11],[265,12,268,14],[266,5,266,8],[220,13,222,14],[220,15,222,16],[229,9,229,10],[229,11,229,12],[229,13,229,14],[229,15,229,16],[226,9,226,10],[226,11,226,12],[226,13,226,14],[226,15,226,16],[227,9,227,10],[225,9,225,10],[225,11,225,12],[225,13,225,14],[71,7,71,10],[58,11,58,13],[64,11,64,13],[65,11,65,13],[47,16,47,17],[202,7,202,11],[47,5,47,6],[48,5,48,6],[64,4,65,9],[47,23,47,24],[48,16,48,17],[48,23,48,24],[47,19,47,21],[48,19,48,21],[66,24,66,29],[47,8,47,9],[48,8,48,9],[508,22,509,26],[508,29,508,31],[64,14,65,16],[195,24,196,27],[195,28,196,31],[196,19,196,21],[197,24,200,24],[197,25,200,25],[197,26,200,26],[197,27,200,27],[197,28,200,28],[197,29,200,29],[197,30,200,30],[197,31,200,31],[227,13,227,14],[227,15,227,16],[73,24,73,29],[95,25,95,30],[88,7,88,13],[182,14,183,16],[183,10,184,11],[183,12,184,13],[189,4,189,7],[185,12,185,13],[185,14,185,16],[186,10,186,11],[186,12,186,13],[186,14,186,16],[187,10,187,11],[187,12,187,13],[187,14,187,16],[109,11,109,13],[101,11,101,13],[80,24,80,29],[110,26,110,31],[503,7,503,11],[480,21,481,24],[480,26,481,28],[480,29,481,31],[490,22,490,25],[503,23,503,27],[227,11,227,12],[223,9,223,10],[189,10,189,11],[189,12,189,13],[189,14,189,16],[218,30,219,31],[219,20,219,22],[220,9,222,10],[220,11,222,12],[487,7,487,11],[223,11,223,12],[223,13,223,14],[223,15,223,16],[224,9,224,10],[224,11,224,12],[224,13,224,14],[224,15,224,16],[228,9,228,10],[228,11,228,12],[228,13,228,14],[228,15,228,16],[181,8,184,8],[181,9,184,9],[181,10,182,13],[182,3,183,7],[188,10,188,11],[188,12,188,13],[188,14,188,16],[185,10,185,11],[225,15,225,16],[46,23,46,24],[44,16,44,17],[43,16,43,24],[43,27,43,31],[44,12,44,13],[44,23,44,24],[45,23,45,24],[43,5,43,11],[26,11,26,13],[45,5,45,6],[46,5,46,6],[44,5,44,6],[46,19,46,21],[45,19,45,21],[45,16,45,17],[45,8,45,9],[46,8,46,9],[44,8,44,9],[46,16,46,17],[1,30,1,35],[2,30,3,35],[30,26,30,31],[28,11,28,31],[30,11,30,22],[1,7,1,29],[2,7,2,29],[26,35,26,37],[39,2,39,38]]}
[]
[null,null,null,null,null,null,null,"CENSO EDUCATIVO 2025",null,null,null,null,null,null,null,null,null,null,null,null,null,null,null,null,null,null,null,null,null,null,"CÉDULA"]
[null,null,null,null,null,null,null,"EDUCACIÓN BÁSICA ALTERNATIVA",null,null,null,null,null,null,null,null,null,null,null,null,null,null,null,null,null,null,null,null,null,null,"4AA"]
[null,null,null,null,null,null,null,"AVANZADO"]
[null,null,"Version :",null,"GA - 1.2"]
[null,null,"INSTRUCCIONES DEL FORMATO ELECTRÓNICO "]
[]
[]
[]
[]
[]
[]
[]
[]
[]
[]
[]
[]
[]
[]
[]
[]
[]
[null,null,"IDENTIFICACIÓN DEL SERVICIO EDUCATIVO (Para II.EE. Públicas y Privadas)"]
[]
[]
[null,null,null,null,"1. CÓDIGO MODULAR :",null,null,null,null,null,null,null,null,null,null,null,null,null,null,null,null,null,null,null,null,null,null,null,null,null,null,"3. LOCAL EDUCATIVO :  "]
[]
[null,null,null,null,"3. NOMBRE DEL SERVICIO/NIVEL :"]
[]
[null,null,null,null,"4. DISTRITO :",null,null,null,null,null,null,null,null,null,null,null,null,null,null,null,null,null,null,null,null,"LOCALIDAD :  "]
["FORMA"]
[{"$f":"CONCATENATE(TRIM(UPPER(O33)),TRIM(UPPER(V33)),TRIM(UPPER(AC33)))","v":""},null,null,null,"5. FORMA DE ATENCIÓN DEL CEBA REFERENCIAL :",null,null,null,null,null,null,null,null,null,null,"Presencial",null,null,null,null,null,null," Semipresencial",null,null,null,null,null,null," A distancia"]
[]
[]
["GESTIÓN"]
[{"$f":"CONCATENATE(TRIM(UPPER(O37)),TRIM(UPPER(V37)),TRIM(UPPER(AC37)))","v":""},null,null,"GESTIÓN DE LA INSTITUCIÓN EDUCATIVA :",null,null,null,null,null,null,null,null,null,null,null," 1 - Pública de gestión directa",null,null,null,null,null,null," 2 - Pública de gestión privada",null,null,null,null,null,null," 3 - Privada"]
[]
[]
[null,null,"100. CARACTERÍSTICA DEL SERVICIO EDUCATIVO (Para II.EE. Públicas y Privadas)"]
[]
[null,null," 101. INDIQUE, ¿CUÁNTOS PERÍODOS PROMOCIONALES HA PREVISTO EN EL PRESENTE AÑO?"]
[]
[null,null,null,{"$f":"SUM(D46:D49)","v":0},null,"INICIO (*)",null,null,null,null,null,null,null,null,null,null,"FINALIZACIÓN (*)",null,null,null,null,null,null,null,null,null,null,"TURNO"]
[null,null,null,"Periodo",null,"Dia",null,null,"Mes",null,null,"Año",null,null,null,null,"Dia",null,null,null,"Mes",null,null,"Año",null,null,null,"Mañana",null,"Tarde",null,"Noche"]
[null,null,null,null,null,null,null,null,null,null,null,null,{"$f":"IF(AND(F46<>\"\",I46<>\"\",L46<>\"\"),0,1)","v":1},null,null,null,null,null,null,null,null,null,null,null,null,{"$f":"IF(AND(Q46<>\"\",T46<>\"\",X46<>\"\"),0,1)","v":1},null,null,null,null,null,null,{"$f":"IF(OR(AB46<>\"\",AD46<>\"\",AF46<>\"\"),0,1)","v":1},null,null,{"$f":"IF(OR(AB46<>\"\",AD46<>\"\",AF46<>\"\"),0,1)","v":1}]
[null,null,null,null,null,null,null,null,null,null,null,null,{"$f":"IF(AND(F47<>\"\",I47<>\"\",L47<>\"\"),0,1)","v":1},null,null,null,null,null,null,null,null,null,null,null,null,{"$f":"IF(AND(Q47<>\"\",T47<>\"\",X47<>\"\"),0,1)","v":1},null,null,null,null,null,null,{"$f":"IF(OR(AB47<>\"\",AD47<>\"\",AF47<>\"\"),0,1)","v":1},null,null,{"$f":"IF(OR(AB47<>\"\",AD47<>\"\",AF47<>\"\"),0,1)","v":1}]
[null,null,null,null,null,null,null,null,null,null,null,null,1,null,null,null,null,null,null,null,null,null,null,null,null,1,null,null,null,null,null,null,1,null,null,{"$f":"IF(OR(AB48<>\"\",AD48<>\"\",AF48<>\"\"),0,1)","v":1}]
[null,null,null,null,null,null,null,null,null,null,null,null,1,null,null,null,null,null,null,null,null,null,null,null,null,1,null,null,null,null,null,null,1,null,null,{"$f":"IF(OR(AB49<>\"\",AD49<>\"\",AF49<>\"\"),0,1)","v":1}]
[null,null,null,"(*) El inicio puede corresponder al 2024 y la finalización al 2025 respectivamente"]
[]
[]
[null,null,null,"102.A ¿EL CEBA TIENE PERIFÉRICOS A CARGO?",null,null,null,null,null,null,null,null,null,null,null,null,null,null,null,"104.A ¿CUÁNTOS PERIFÉRICOS FUNCIONAN DURANTE LA SEMANA?"]
[null,null,null,null,null,null,null,null,null,null,null,null,null,null,null,null,null,null,null,null,"Marque con un aspa “X” los días y anote en los casilleros el número de"]
[{"$f":"CONCATENATE(F55,I55)","v":""},null,null,null,"Sí",null,null,"No","",null,"Pase a la pregunta 106.A",null,null,null,null,null,null,null,null,null,"periféricos según corresponda"]
[]
[null,null,null,"103.A ¿CUÁNTOS PERIFÉRICOS ESTÁN ASOCIADOS AL CEBA?",null,null,null,null,null,null,null,null,null,null,null,null,null,null,null,null,null,null,null,null,"Lu","Ma","Mi","Ju","Vi","Sa","Do"]
[null,null,null,null,null,null,null,null,null,null,null,null,null,null,null,null,null,null,null,null,"Dias de la semana",null,null,null,"","","","","","",""]
[null,null,null,null,null,"Cuantos",null,null,null,null,null,null,null,null,null,null,null,null,null,null,"Nº de Perifericos",null,null,null,"","","","","","",""]
[]
[]
[null,null,null,"105.A  EL CEBA REFERENCIAL O ALGÚN PERIFÉRICO, ¿ATIENDE LA POBLACIÓN ",null,null,null,null,null,null,null,null,null,null,null,null,null,null,null,"111.A. ESTE CEBA, ¿HA IMPLEMENTADO LAS PROPUESTAS PEDAGÓGICAS SIGUIENTES? :"]
[null,null,null,null,"MATRICULADA EN : ?",null,null,null,null,null,null,null,null,null,null,null,null,null,null,null,"Marque con una “X”, una o más opciones"]
[null,null,null,null,null,null,null,null,null,null,null,null,null,null,null,null,null,null,null,null,null,null,"Personas Adulto Mayor (PAM)"]
[null,null,null,null,"Centro / Dependencia",null,null,null,null,null,null,"CEBA",null,null,"Periférico",null,null,null,null,null,null,null,"Personas Privadas de Libertad (PPL)"]
[null,null,null,null,null,null,null,null,null,null,{"$f":"COUNTIF(M67:P72,\"X\")","v":0},"Referencial",null,null,null,null,null,null,null,null,null,null,"Personas dedicadas a la Pesca Artesanal"]
[null,null,null,null,1,"Centro Penitenciario",null,null,null,null,null,null,null,null,null,null,null,null,null,null,null,null,"Otro"]
[null,null,null,null,2,"Muelle o Caleta"]
[null,null,null,null,3,"Dependencia de FF.AA. (cuarteles)",null,null,null,null,null,null,null,null,null,null,null,null,null,"112.A. ESTE CEBA, ¿HA ELABORADO MATERIALES EDUCATIVOS PROPIOS COMO ?"]
[{"$f":"COUNTIF(M67:P72,\"X\")","v":0},null,null,null,4,"Centro de Adulto Mayor",null,null,null,null,null,null,null,null,null,null,null,null,null,null,"Marque con una “X”, una o más opciones"]
[{"$f":"CONCATENATE(M72,P72)","v":""},null,null,null,5,"Centros Juveniles de Diagnóstico y Rehabilitación",null,null,null,null,null,null,null,null,null,null,null,null,null,null,null,null,"Módulos de Auto Aprendizaje"]
[null,null,null,null,6,"Otro",null,null,null,null,null,null,null,null,null,null,null,null,null,null,null,null,"Textos"]
["Meses",null,null,null,null,null,null,null,null,null,null,null,null,null,null,null,null,null,null,null,null,null,"Fasículos"]
["01: Enero",null,null,"106.A. ¿REALIZÓ LA RESERVA COMO MÍNIMO DE (02) VACANTES POR CADA AULA",null,null,null,null,null,null,null,null,null,null,null,null,null,null,null,null,null,null,"Otros"]
["02: Febrero",null,null,null,"PARA ESTUDIANTES CON NECESIDADES EDUCATIVAS ESPECIALES ASOCIADA"]
["03: Marzo",null,null,null,"A DISCAPACIDAD LEVE O MODERADA?",null,null,null,null,null,null,null,null,null,null,null,null,null,null,"113.A. EL LOCAL DONDE FUNCIONA EL CEBA REFERENCIAL ES:"]
["04: Abril",null,null,null,null,null,null,null,null,null,null,null,null,null,null,null,null,null,null,null,"Marque con una “X”, una opción"]
["05: Mayo",null,null,null,"Sí",null,null,null,null,null,null,"No",null,null,null,null,null,null,null,null,null,"","Propio"]
["06: Junio",null,null,null,null,null,null,null,null,null,null,null,null,null,null,null,null,null,null,null,null,"","Alquilado"]
["07: Julio",null,null,"107.A¿ EL CEBA TIENE CONVENIO CON…?",null,null,null,null,null,null,null,null,null,null,null,null,null,null,null,null,null,"","Prestado"]
["08: Agosto",null,null,null,"Marque con un aspa “X” uno o más casilleros",null,null,null,null,null,null,null,null,null,null,null,null,null,null,null,null,null,"Otro"]
["09: Septiembre",null,null,null,null,"Intitutos o Escuelas de Educación Superior"]
["10: Octubre",null,null,null,null,"Centro de Educación Técnico Productivo (CETPRO)",null,null,null,null,null,null,null,null,null,null,null,null,null,"114.A. EL LOCAL QUE OCUPA EL CEBA REFERENCIAL ES:"]
["11: Noviembre",null,null,null,null,"Instituto Nacional Penitenciario (INPE)",null,null,null,null,null,null,null,null,null,null,null,null,null,null,null,"Marque con una “X”, una opción"]
["12: Diciembre",null,null,null,null,"Gobierbo Local",null,null,null,null,null,null,null,null,null,null,null,null,null,null,null,null,"De uso exclusivo del CEBA"]
["01: Enero",null,null,null,null,"Gobierno Regional",null,null,null,null,null,null,null,null,null,null,null,null,null,null,null,null,"De uso compartido con otros niveles educativos"]
[null,null,null,null,null,"Empresas"]
[null,null,null,null,null,"Centros juveniles de diagnóstico y rehabilitación (CJDR)",null,null,null,null,null,null,null,null,null,null,null,null,null,"115.A. EN LOS ÚLTIMOS TRES MESES, ¿SE COORDINÓ U OFRECIO ALGÚN PROGRAMA"]
[null,null,null,null,null,"Otro",null,null,null,null,null,null,null,null,null,null,null,null,null,null,"O SERVICIO, CÓMO?:"]
[null,null,null,null,null,"Ninguno",null,null,null,null,null,null,null,null,null,null,null,null,null,null,null,"Marque con una “X”, una o más opciones"]
[]
[null,null,null,"108.A. ¿HA DESARROLLADO ACTIVIDADES FORMATIVAS SOBRE EDUCACIÓN",null,null,null,null,null,null,null,null,null,null,null,null,null,null,null,null,null,null,"Campaña de vacunación"]
[null,null,null,null,"   SEXUAL INTEGRAL (ESI)?",null,null,null,null,null,null,null,null,null,null,null,null,null,null,null,null,null,"Servicio de Apoyo y Asesoramiento de las Necesidad Educ. Especiales (SAANEE)"]
[null,null,null,null,null,null,null,null,null,null,null,null,null,null,null,null,null,null,null,null,null,null,"Programa de Intervención temprana (PRITE)"]
[null,null,null,null,null,"Sí",null,null,null,null,null,null,null,null,null,null,null,null,null,null,null,null,"Servicio de Apoyo Educativo Virtual (SAEV)"]
[null,null,null,null,null,null,null,null,null,null,null,null,null,null,null,null,null,null,null,null,null,null,"Otro especifique"]
[null,null,null,null,null,"No",null,null,null,null,null,null,null,null,null,null,null,null,null,null,null,"","Ninguno"]
[]
[null,null,null,"109.A. ESTE CEBA, ¿TIENE EL CONSEJO DE PARTICIPACIÓN DE ESTUDIANTES (COPAE) ",null,null,null,null,null,null,null,null,null,null,null,null,null,null,null,"116.A. EN EL PRESENTE AÑO, ¿ESTÁN IMPLEMENTANDO ACTIVIDADES DIRIGIDAS"]
[null,null,null,null,"RECONOCIDO CON RESOLUCIÓN DIRECTORAL?",null,null,null,null,null,null,null,null,null,null,null,null,null,null,null,"A FAMILIAS ES ESTE CEBA?"]
[]
[null,null,null,null,null,"Sí","",null,null,"Nº de resolución",null,"",null,null,null,null,null,null,null,null,"Sí","",null,null,null,"No  "]
[]
[null,null,null,null,null,"No",null,null,null,null,null,null,null,null,null,null,null,null,null,null,null,null,null,"¿Qué actividades se están implementando?"]
[null,null,null,null,null,null,null,null,null,null,null,null,null,null,null,null,null,null,null,null,null,null,null,"Marque con una “X”, una o más opciones"]
[]
[null,null,null,"110.A.  ESTE CEBA, ¿TIENE EL CONSEJO EDUCATIVO INSTITUCIONAL (CONEI)",null,null,null,null,null,null,null,null,null,null,null,null,null,null,null,null,null,null,null,null,"Encuentros familiares"]
[null,null,null,null,"     RECONOCIDO CON RESOLUCIÓN DIRECTORAL?",null,null,null,null,null,null,null,null,null,null,null,null,null,null,null,null,null,null,null,"Jornadas con padres de familia"]
[null,null,null,null,null,null,null,null,null,null,null,null,null,null,null,null,null,null,null,null,null,null,null,null,"Reuniones"]
[null,null,null,null,null,"Sí","",null,null,"Nº de resolución",null,"",null,null,null,null,null,null,null,null,null,null,null,null,"Fomento a la lectura"]
[null,null,null,null,null,null,null,null,null,null,null,null,null,null,null,null,null,null,null,null,null,null,null,null,"Otros"]
[null,null,null,null,null,"No"]
[]
[]
[]
[]
[]
[]
[]
[]
[]
[]
[]
[]
[]
[]
[]
[]
[]
[]
[]
[]
[]
[]
[]
[]
[]
[]
[]
[]
[]
[]
[]
[]
[]
[]
[]
[]
[]
[]
[]
[]
[]
[]
[]
[]
[]
[]
[]
[]
[]
[]
[]
[]
[]
[]
[]
[]
[]
[]
[]
[]
[]
[]
[]
[]
["SI-NO",null,null,"B. TUTORÍA , ORIENTACIÓN EDUCATIVA Y CONVIVENCIA ESCOLAR"]
["SI",null,null,"101.B. INDIQUE, ¿CON CUÁLES DE LOS SIGUIENTES ESPACIOS DE PARTICIPACIÓN ",null,null,null,null,null,null,null,null,null,null,null,null,null,null,null,"105.B. EL SERVICIO/NIVEL EDUCATIVO, ¿INCLUYE EN EL PLAN TOECE, ACTIVIDADES VINCULADAS"]
["NO",null,null,null,"CUENTA ESTE SERVICIO/NIVEL EDUCATIVO Y CON QUÉ FRECUENCIA SE REÚNEN?",null,null,null,null,null,null,null,null,null,null,null,null,null,null,null,"A LA CONVIVENCIA ESCOLAR Y PREVENCIÓN/ATENCIÓN DE LA VIOLENCIA ESCOLAR?"]
[null,null,null,null,"Seleccione y complete la o las alternativas que correspondan"]
[null,null,null,null,null,null,null,null,null,null,null,null,null,null,null,null,null,null,null,null,"Sí",null,null,null,null,"No  ",null,null,"Pase a la pregunta 109.B"]
[null,null,null,null,null,null,null,null,"¿Cuénta con este espacio?","¿Está confor mado mediante (RD)?","Número y Fecha de Resolución Directoral"]
[null,null,null,"Espacio de Participación",null,null,null,null,null,null,null,null,null,null,"¿Con qué frecuencia se reúnen?",null,null,null,null,"106.B. EN EL TRANSCURSO DEL PRESENTE AÑO, ¿HA IMPLEMENTADO AL MENOS TRES ACTIVIDADES",null,null,null,null,null,null,null,null,null,null,null,null,{"$f":"CONCATENATE(K208,AA181,AA187)","v":""}]
[null,null,null,null,null,null,null,null,null,null,"Nro de RD",null," Fecha de RD\ndd/mm/aaaa",null,null,null,null,null,null,null,"RELACIONADAS A LA PROMOCIÓN DE LA CONVIVENCIA ESCOLAR, LA PREVENCIÓN Y LA"]
[null,null,null,null,null,null,null,null,null,null,null,null,null,null,null,null,null,null,null,null,"ATENCIÓN DE LA VIOLENCIA ESCOLAR DEL PLAN TOECE?"]
[1,null,null,"Comité de Gestión de Cond. Operat.",null,null,null,null,null,null,null,null,null,null,null,null,null,{"$f":"IF(OR(K186=\"\",M186=\"\",O186=\"\"),1,0)","v":1}]
[2,null,null,"Comité de Gestión del Bienestar",null,null,null,null,null,null,"",null,"",null,null,null,null,{"$f":"IF(OR(K187=\"\",M187=\"\",O187=\"\"),1,0)","v":1},null,null,"Sí",null,null,null,null,"No  ",null,null,"Pase a la pregunta 109.B"]
[3,null,null,"Comité de Gestión Pedagógica ",null,null,null,null,null,null,null,null,null,null,null,null,null,1]
[4,null,null,"Consejo Educativo Institucional",null,null,null,null,null,null,null,null,null,null,null,null,null,1,null,null,null,null,null,"Precisar número de actividades"]
[5,null,null,"Otro",null,null,null,null,null,null,null,null,null,null,null,null,null,1]
[null,null,null,null,null,null,null,null,{"$f":"COUNTIF(I186:I190,\"SI\")+COUNTIF(I186:I190,\"NO\")","v":0}]
["1: Semanal",null,null,"102.B. SOLO SI MARCO QUE CUENTA CON “COMITE DE GESTIÓN DEL BIENESTAR”,",null,null,null,null,null,null,null,null,null,null,null,null,null,null,null,"107.B. ¿EN QUÉ FECHAS REALIZÓ LAS ACTIVIDADES RELACIONADAS CON LA PROMOCIÓN"]
["2: Quincenal",null,null,null,"¿QUÉ ACTORES LO CONFORMAN?",null,null,null,null,null,null,null,null,null,null,null,null,null,null,null,"DE LA CONVIVENCIA ESCOLAR, LA PREVENCIÓN Y LA ATENCIÓN DE LA VIOLENCIA ESCOLAR?"]
["3: Mensual",null,null,null,"Marque con una “X”, una o más opciones"]
["4: Bimensual",null,null,null,null,null,null,null,null,null,null,null,null,null,null,null,null,null,null,null,null,null,null,null,null,null,null,"Medios de verificación"]
["5: Trimestral",null,null,null,"","Director/a del CEBA",null,null,null,null,null,null,null,null,null,null,null,null,null,null,null,null,null,null,"Convivencia escolar democrática",null,null,null,"Prevención de la violencia contra la y los estudiantes"]
["6: Semestral",null,null,null,"","Coordinador/a de tutoría",null,null,null,null,null,null,null,null,null,null,null,null,null,"Actividades",null,null,"Día","Mes"]
["7: No se reunen",null,null,null,"","El/la responsable de convivencia",null,null,null,null,null,null,null,null,null,null,null,null,null,null,null,null,null,null,"Informe de actividades","Fotografías","Videos","Otros","Informe de actividades","Fotografías","Videos","Otros"]
[null,null,null,null,"","El/la responsable de inclusión"]
[null,null,null,null,"","Un/a representante de los padres y madres de familia, tutores legales o apoderados/as."]
[null,null,null,null,"","Un/a representante de las y los estudiantes",null,null,null,null,null,null,null,null,null,null,null,null,null,null,null,{"$f":"SUM(V202:X211)","v":0}]
[null,null,null,null,"","Un/a psicólogo, cuando exista el cargo en el CEBA",null,null,null,null,null,null,null,null,null,null,null,null,1,{"$f":"IF($S202<=$AD$189,CONCATENATE(\"Actividad - 0\",$S202),\"\")","v":""},null,{"$f":"COUNTIF(Y202:AF202,\"X\")","v":0}]
[null,null,null,null,"","Otros",null,"",null,null,null,null,null,null,null,null,null,null,2,{"$f":"IF($S203<=$AD$189,CONCATENATE(\"Actividad - 0\",$S203),\"\")","v":""},null,0]
[null,null,null,null,null,null,null,null,null,null,null,null,null,null,null,null,null,null,3,{"$f":"IF($S204<=$AD$189,CONCATENATE(\"Actividad - 0\",$S204),\"\")","v":""},null,0]
[null,null,null,"103.B. EN EL PRESENTE AÑO, ESTE CEBA, ¿CUENTA CON EL PLAN DE TUTORÍA,",null,null,null,null,null,null,null,null,null,null,null,null,null,null,4,"",null,0]
[null,null,null,null,"ORIENTACIÓN EDUCATIVA Y CONVIVENCIA ESCOLAR (PLAN TOECE)?",null,null,null,null,null,null,null,null,null,null,null,null,null,5,"",null,0]
[null,null,null,null,null,null,null,null,null,null,null,null,null,null,null,null,null,null,6,"",null,0]
[null,null,null,null,"Sí",null,null,null,null,"No  ",null,null,"Pase a la pregunta 109.B",null,null,null,null,null,7,"",null,0]
[null,null,null,null,null,null,null,null,null,null,null,null,null,null,null,null,null,null,8,"",null,0]
[null,null,null,null,null,null,null,"¿Está incorporado en el Plan Anual de Trabajo (PAT) de la CEBA?",null,null,null,null,null,null,null,null,null,null,9,"",null,0]
[null,null,null,null,null,null,null,null,null,null,null,null,null,null,null,null,null,null,10,"",null,0]
[null,null,null,null,null,null,null,null,null,"Sí  ",null,null,null,null,"No  "]
[null,null,null,""]
[null,null,null,"",null,null,null,"¿El PAT de la CEBA que incluye al Plan TOECE está reconocido con RD?",null,null,null,null,null,null,null,null,null,null,null,"108.B. ¿QUIÉNES FUERON LOS PARTICIPANTES Y LA CANTIDAD DEL PÚBLICO OBJETIVO DE LAS"]
[{"$f":"CONCATENATE(E220,E229)","v":""},null,null,null,null,null,null,null,null,null,null,null,null,null,null,null,null,null,null,null,"ACTIVIDADES RELACIONADAS CON LA PROMOCIÓN DE LA CONVIVENCIA ESCOLAR,"]
[{"$f":"CONCATENATE(G220,G229)","v":""},null,null,null,null,null,null,null,null,"Sí  ",null,null,null,null,"No  ",null,null,null,null,null,"LA PREVENCIÓN Y LA ATENCIÓN DE LA VIOLENCIA ESCOLAR?"]
[]
[null,null,null,"104.B. SEÑOR(A) DIRECTOR(A), DE LAS SIGUIENTES ACTIVIDADES, ¿CUÁLES SE HAN INCORPORADO"]
[null,null,null,null,"EN EL PLAN DE TUTORÍA, ORIENTACIÓN EDUCATIVA Y CONVIVENCIA ESCOLAR (TOECE)?",null,null,null,null,null,null,null,null,null,null,null,null,null,null,null,null,null,null,null,"Docente",null,"Estudiantes",null,"Familias",null,"Personal Administrativo"]
["SI",null,null,null,null,null,null,null,null,null,null,null,null,null,null,null,null,null,null,null,"Actividades"]
["NO",null,null,null,null,null,null,null,null,"¿Se \nincorporó?",null,"¿Se\nimplementó?",null,"¿Cuántas\nacciones?",null,"¿Ha recibido\nasistencia\ntécnica?",null,null,null,null,null,null,null,{"$f":"SUM(X222:X232)","v":0},"Si-No","Cantidad","Si-No","Cantidad","Si-No","Cantidad","Si-No","Cantidad"]
[null,null,null,null,"Actividad",null,null,null,null,null,null,null,null,null,null,null,null,null,null,1,{"$f":"IF($T222<=$AD$189,CONCATENATE(\"Actividad - 0\",$T222),\"\")","v":""},null,null,{"$f":"Z222+AB222+AD222+AF222","v":0},null,null,null,null,null,null,null,null,{"$f":"IF(OR(Y222=\"SI\",AA222=\"SI\",AC222=\"SI\",AE222=\"SI\"),1,0)","v":0}]
[null,null,null,null,null,null,null,null,null,null,null,null,null,null,null,null,null,null,null,2,{"$f":"IF($T223<=$AD$189,CONCATENATE(\"Actividad - 0\",$T223),\"\")","v":""},null,null,{"$f":"Z223+AB223+AD223+AF223","v":0},null,null,null,null,null,null,null,null,{"$f":"IF(OR(Y223=\"SI\",AA223=\"SI\",AC223=\"SI\",AE223=\"SI\"),1,0)","v":0}]
[1,null,null,"Taller con docentes y otros miembros de la comunidad educativa",null,null,null,null,null,null,null,null,null,null,null,null,null,null,null,3,{"$f":"IF($T224<=$AD$189,CONCATENATE(\"Actividad - 0\",$T224),\"\")","v":""},null,null,{"$f":"Z224+AB224+AD224+AF224","v":0},null,null,null,null,null,null,null,null,0]
[2,null,null,"Taller con docentes para implementar la educación sexual integral",null,null,null,null,null,null,null,null,null,null,null,null,null,null,null,4,"",null,null,0,null,null,null,null,null,null,null,null,0]
[3,null,null,"Reuniones de trabajo entre tutores y otros docentes",null,null,null,null,null,null,null,null,null,null,null,null,null,null,null,5,"",null,null,0,null,null,null,null,null,null,null,null,0]
[4,null,null,"Actividad para prevenir alguna situación de riesgo",null,null,null,null,null,null,null,null,null,null,null,null,null,null,null,6,"",null,null,0,null,null,null,null,null,null,null,null,0]
[5,null,null,"Actividad para promover la participación estudiantil",null,null,null,null,null,null,null,null,null,null,null,null,null,null,null,7,"",null,null,0,null,null,null,null,null,null,null,null,0]
[6,null,null,"Identificación de aliados para la atención de casos de riesgos",null,null,null,null,null,null,null,null,null,null,null,null,null,null,null,8,"",null,null,0,null,null,null,null,null,null,null,null,0]
[7,null,null,"Actividades para valorar la diversidad",null,null,null,null,null,null,null,null,null,null,null,null,null,null,null,9,"",null,null,0,null,null,null,null,null,null,null,null,0]
[8,null,null,null,null,null,null,null,null,{"$f":"COUNTIF(J224:K230,\"SI\")+COUNTIF(J224:K230,\"NO\")","v":0},null,"",null,"",null,"",null,null,null,10,"",null,null,0,null,null,null,null,null,null,null,null,0]
[null,null,null,null,null,null,null,null,null,null,null,null,null,null,null,null,null,null,null,null,null,null,null,{"$f":"Y232+AA232+AC232+AE232","v":0},{"$f":"COUNTIF(Y222:Y231,\"SI\")+COUNTIF(Y222:Y231,\"NO\")","v":0},null,{"$f":"COUNTIF(AA222:AA231,\"SI\")+COUNTIF(AA222:AA231,\"NO\")","v":0},null,{"$f":"COUNTIF(AC222:AC231,\"SI\")+COUNTIF(AC222:AC231,\"NO\")","v":0},null,{"$f":"COUNTIF(AE222:AE231,\"SI\")+COUNTIF(AE222:AE231,\"NO\")","v":0},null,{"$f":"SUM(AG222:AG231)","v":0}]
[]
[null,null,null,"109.B. EN EL PRESENTE AÑO, ¿CUÁLES SON LAS ACTIVIDADES QUE REALIZÓ ESTE CEBA PARA  LA",null,null,null,null,null,null,null,null,null,null,null,null,null,null,null,"112.B. ACTUALMENTE LOS DOCENTES ENCARGADOS DE TUTORÍA O PERSONAL DE TUTORÍA,"]
[null,null,null,null,"LA PROMOCIÓN DE LA CONVIVENCIA ESCOLAR Y/O PREVENCIÓN DE LA",null,null,null,null,null,null,null,null,null,null,null,null,null,null,null,"¿INCORPORAN EN LA PLANIFICACIÓN ANUAL DE AULA LAS ACTIVIDADES RELACIONADAS"]
[null,null,null,null,"VIOLENCIA CONTRA LAS Y LOS ESTUDIANTES?",null,null,null,null,null,null,null,null,null,null,null,null,null,null,null,"CON LA TUTORÍA Y ORIENTACIÓN EDUCATIVA?"]
[null,null,null,null,"Marque con una “X”, una o más opciones"]
[null,null,null,null,null,null,null,null,null,null,null,null,null,null,null,null,null,null,null,null,"Sí",null,null,null,null,"No  "]
[null,null,null,null,null,"Gestión de talleres o reuniones con estudiantes."]
[null,null,null,null,null,"Capacitación a docentes para prevenir y/o atender casos de riesgo.",null,null,null,null,null,null,null,null,null,null,null,null,null,null,null,null,null,"¿Cuántos docentes?"]
[null,null,null,null,null,"Envío de orientaciones a apoderados/as."]
[null,null,null,null,null,"Gestión de talleres o reuniones con apoderados/as."]
[null,null,null,null,null,"Gestión de estrategias en conjunto con otras organizaciones.",null,null,null,null,null,null,null,null,null,null,null,null,null,"113.B. EN EL AÑO 2024, EL CEBA, ¿HA RECIBIDO ASISTENCIA TÉCNICA DEL ESPECIALISTA"]
[null,null,null,null,null,"Monitoreo de situación emocional y familiar de estudiantes.",null,null,null,null,null,null,null,null,null,null,null,null,null,null,"DE CONVIVENCIA ESCOLAR DE LA MINEDU/DRE/GRE/UGEL?"]
[null,null,null,null,null,"Otro"]
[null,null,null,null,null,null,null,null,null,null,null,null,null,null,null,null,null,null,null,null,"Sí",null,null,null,null,"No  ",null,null,"Pase a la pregunta 115.B."]
[null,null,null,"110.B. SEÑOR(A) DIRECTOR(A), ¿QUÉ ACCIONES SE HAN REALIZADO DESDE ESTE CEBA PARA"]
[null,null,null,null,"MEJORAR LA CONVIVENCIA ENTRE ESTUDIANTES?",null,null,null,null,null,null,null,null,null,null,null,null,null,null,null,null,null,null,null,"Indique el número de veces que recibió"]
[null,null,null,null,"Marque con una “X”, una o más opciones",null,null,null,null,null,null,null,null,null,null,null,null,null,null,null,null,null,null,null,"asistencia técnica:"]
[]
[null,null,null,null,null,"Implementa acciones que fomenten el respeto, el diálogo y búsqueda de acuerdos …"]
[null,null,null,null,null,"Fomenta la construcción de relaciones interpersonales y afectivas en igualdad de género.",null,null,null,null,null,null,null,null,null,null,null,null,null,"114.B. ¿QUÉ TEMAS HAN SIDO ABORDADOS EN LA ASISTENCIA TÉCNICA BRINDADA POR EL"]
[null,null,null,null,null,"Implementa acciones para la prevención de la violencia y el manejo de conflictos.",null,null,null,null,null,null,null,null,null,null,null,null,null,null,"ESPECIALISTA DE CONVIVENCIA ESCOLAR DE LA UGEL?"]
[null,null,null,null,null,"Promueve la práctica de acciones para la superación de todo tipo de discriminación.",null,null,null,null,null,null,null,null,null,null,null,null,null,null,"Marque con una \"X\", una o más opciones"]
[]
[null,null,null,"111.B. ESTE CEBA, ¿CUENTA CON UN MAPA O DIRECTORIO DE ALIADOS ESTRATÉGICOS",null,null,null,null,null,null,null,null,null,null,null,null,null,null,null,null,null,"Disciplina con enfoque de derechos (sin maltrato ni humillación)"]
[null,null,null,null,"PARA LA PREVENCIÓN Y ATENCIÓN DE CASOS DE VIOLENCIA ESCOLAR?",null,null,null,null,null,null,null,null,null,null,null,null,null,null,null,null,"Normas de convivencia concertadas en la escuela"]
[null,null,null,null,null,null,null,null,null,null,null,null,null,null,null,null,null,null,null,null,null,"Participación estudiantil para la prevención de la violencia"]
[null,null,null,null,"Sí","",null,null,null,"No  ",null,null,null,null,null,null,null,null,null,null,null,"Educación Sexual Integral para la prevención de la violencia"]
[null,null,null,null,null,null,null,null,null,null,null,null,null,null,null,null,null,null,null,null,null,"Tipos de violencia, señales de alerta y cultura de reporte"]
[null,null,null,null,null,null,null,null,null,null,null,null,null,null,null,null,null,null,null,null,null,"Protocolos de atención a la violencia hacia niñas, niños y adolescentes"]
[null,null,null,null,null,"Indique, ¿Quiénes lo conforman, con quiénes viene trabajando",null,null,null,null,null,null,null,null,null,null,null,null,null,null,null,"Capacitación del uso del portal SíseVe"]
[null,null,null,null,null,"actualmente y si ha realizado alguna actividad coordinada?",null,null,null,null,null,null,null,null,null,null,null,null,null,null,null,"Otros"]
[]
[null,null,null,null,null,null,null,null,null,null,"¿Trabaja actualmente en?",null,null,null,null,"¿Ha realizado alguna actividad coordinada?"]
[null,null,null,null,null,null,null,null,null,null,"Prevención y atención de casos de violencia",null,"Promover el bienestar socioemocional de los estudiantes",null,null,null,null,null,null,"115.B. EN EL PRESENTE AÑO, ¿QUE ESTRATEGIAS DE TUTORIA Y ORIENTACION EDUCATIVA"]
[null,null,null,null,null,"Aliados estratégicos",null,null,null,null,null,null,null,null,null,null,null,null,null,null,"SE VIENE IMPLEMENTANDO EN ESTE CEBA DE MANERA PERMANENTE?"]
[null,null,null,null,null,null,null,null,null,null,null,null,null,null,null,null,null,null,null,null,"Marque con una \"X\", una o más opciones"]
[null,null,null,null,null,null,null,null,null,{"$f":"K277+M277+P277","v":0}]
[null,null,null,null,null,1,"DEMUNA",null,null,null,null,null,null,null,null,null,null,null,null,null,null,"Tutoría Individual"]
[null,null,null,null,null,2,"Defensoría del pueblo",null,null,null,null,null,null,null,null,null,null,null,null,null,null,"Tutoría grupal"]
[null,null,null,null,null,3,"Centro de emergencia Mujer",null,null,null,null,null,null,null,null,null,null,null,null,null,null,"Participación estudiantil"]
[null,null,null,null,null,4,"Centro o posta de salud",null,null,null,null,null,null,null,null,null,null,null,null,null,null,"Trabajo con las familias y la comunidad"]
[null,null,null,null,null,5,"Iglesia",null,null,null,null,null,null,null,null,null,null,null,null,null,null,"Orientación Educativa permanente"]
[null,null,null,null,null,6,"Comisaría",null,null,null,null,null,null,null,null,null,null,null,null,null,null,"Otro"]
[null,null,null,null,null,7,"Otro","",null,null,null,null,null,null,null,null,null,null,null,null,null,"Ninguno"]
[null,null,null,null,null,null,null,null,null,null,{"$f":"COUNTIF(K270:K276,\"SI\")+COUNTIF(K270:K276,\"NO\")","v":0},null,{"$f":"COUNTIF(M270:M276,\"SI\")+COUNTIF(M270:M276,\"NO\")","v":0},null,null,{"$f":"COUNTIF(P270:P276,\"SI\")+COUNTIF(P270:P276,\"NO\")","v":0}]
[]
[null,null,null,"116.B. DE LOS SIGUIENTES CONTENIDOS PARA SER DESARROLLADOS EN LA TUTORÍA GRUPAL,",null,null,null,null,null,null,null,null,null,null,null,null,null,null,null,"120.B. DE ACUERDO CON LA RVM 212-2020-MINEDU, ¿DE QUÉ MANERA SE VIENE REALIZANDO EL"]
[null,null,null,null,"¿CUÁLES SE HAN INCORPORADO EN EL PLAN TUTORIAL DE AULA?",null,null,null,null,null,null,null,null,null,null,null,null,null,null,null,"ACOMPAÑAMIENTO Y MONITOREO DE LA IMPLEMENTACIÓN DE LAS ACCIONES DE TUTORÍA Y"]
[null,null,null,null,"Seleccione “Si” o “No” según corresponda para cada tema",null,null,null,null,null,null,null,null,null,null,null,null,null,null,null,"ORIENTACIÓN EDUCATIVA EN ESTE SERVICIO/ NIVEL EDUCATIVO?"]
[null,null,null,null,null,null,null,null,null,null,null,null,null,null,null,null,null,null,null,null,"Marque con una \"X\", una o más opciones"]
[null,null,null,null,null,null,null,null,null,null,null,"¿Se \nincorporó?",null,"¿Se\nimple- mentó?",null,"¿Cuántas\nacciones?"]
[null,null,null,null,"Nro.",null,"Acciones",null,null,null,null,null,null,null,null,null,null,null,null,null,null,"Visita inopinada a las aulas durante la hora de tutoría."]
[null,null,null,null,null,null,null,null,null,null,null,null,null,null,null,null,null,null,null,null,null,"Revisión de reportes realizados por los docentes."]
[null,null,null,null,"01","Prevención de la violencia escolar",null,null,null,null,null,null,null,null,null,null,null,null,null,null,null,"Encuestas a estudiantes y familias."]
[null,null,null,null,"02","Prevención del embarazo a temprana edad",null,null,null,null,null,null,null,null,null,null,null,null,null,null,null,"Monitoreo a la implementación del Plan TOECE."]
[null,null,null,null,"03","Promoción de la salud mental",null,null,null,null,null,null,null,null,null,null,null,null,null,null,null,"Otros"]
[null,null,null,null,"04","Prevención de trata de personas"]
[null,null,null,null,"05","Prevención del consumo de drogas",null,null,null,null,null,null,null,null,null,null,null,null,null,"121.B. ESTE SERVICIO/NIVEL EDUCATIVO, ¿CUENTA CON NORMAS DE CONVIVENCIA ESCOLAR"]
[null,null,null,null,"06","Prevención de trabajo infantil forzoso",null,null,null,null,null,null,null,null,null,null,null,null,null,null,"ACTUALIZADAS PARA EL PRESENTE AÑO?"]
[null,null,null,null,"07","Prevención de la violencia sexual"]
[null,null,null,null,"08","Prevención de trastornos alimenticios",null,null,null,null,null,null,null,null,null,null,null,null,null,null,"Sí",null,null,null,null,"No  ",null,null,"Pase a la pregunta 123.B"]
[null,null,null,null,"09","Uso responsable de video juegos"]
[null,null,null,null,10,"Uso responsable de redes sociales digitales",null,null,null,null,null,null,null,null,null,null,null,null,null,null,null,null,null,"¿Están incorporadas en el reglamento interno de la IE?"]
[null,null,null,null,11,"Educación Vial"]
[null,null,null,null,12,"Habilidades socioemocionales",null,null,null,null,null,null,null,null,null,null,null,null,null,null,null,null,null,null,null,"Sí",null,null,null,"No  "]
[null,null,null,null,13,"Igualdad de género"]
[null,null,null,null,14,"Educación Sexual Integral según RVM N° 169-2021",null,null,null,null,null,null,null,null,null,null,null,null,null,null,null,null,null,"¿El Reglamento Interno que incluye las normas de convivencia escolar?"]
[null,null,null,null,15,"Promoción de la convivencia escolar"]
[null,null,null,null,16,"Proyecto de vida y orientación vocacional",null,null,null,null,null,null,null,null,null,null,null,null,null,null,null,null,null,null,null,"Sí",null,null,null,"No  "]
[null,null,null,null,17,"Duelo"]
[null,null,null,null,18,"Prevención del suicidio",null,null,null,null,null,null,null,null,null,null,null,null,null,"122.B. LAS NORMAS DE CONVIVENCIA ESCOLAR, ¿HAN SIDO CONSTRUIDAS CON LA PARTICIPACIÓN DE"]
[null,null,null,null,19,"Fortalecimiento de la empatía",null,null,null,null,null,null,null,null,null,null,null,null,null,null,"REPRESENTANTES DE LAS/LOS ESTUDIANTES?"]
[null,null,null,null,20,"Fortalecimiento de la regulación emocional"]
[null,null,null,null,21,"Participación estudiantil",null,null,null,null,null,null,null,null,null,null,null,null,null,null,"Sí",null,null,null,null,"No  "]
[null,null,null,null,22,"Otro"]
[null,null,null,null,null,null,null,null,null,null,null,{"$f":"COUNTIF(L286:L307,\"SI\")+COUNTIF(L286:L307,\"NO\")","v":0},null,{"$f":"COUNTIF(N286:N307,\"SI\")+COUNTIF(N286:N307,\"NO\")","v":0},null,null,null,null,null,"123.B. ESTE CEBA, ¿CUENTA CON AL MENOS UNA/UN RESPONSABLE DE"]
[null,null,null,"117.B. ACTUALMENTE, ¿LAS DOS HORAS PEDAGÓGICAS DE LA TUTORÍA GRUPAL SE DESARROLLAN",null,null,null,null,null,null,null,null,null,null,null,null,null,null,null,null,"CONVIVENCIA ESCOLAR ASIGNADO PARA EL PRESENTE AÑO?"]
[null,null,null,null,"DE MANERA SECUENCIAL?"]
[null,null,null,null,null,null,null,null,null,null,null,null,null,null,null,null,null,null,null,null,"Sí",null,null,null,null,"No  "]
[null,null,null,null,"Sí","",null,null,null,"No  "]
[null,null,null,null,null,null,null,null,null,null,null,null,null,null,null,null,null,null,null,null,null,null,"¿Se encuentra registrado como administrador del portal SíseVe?"]
[null,null,null,"118.B. SEÑOR(A) DIRECTOR(A), ¿ACTUALMENTE LOS DOCENTES REALIZAN TUTORÍA INDIVIDUAL A"]
[null,null,null,null,"ESTUDIANTES QUE LO REQUIERAN O SOLICITAN?",null,null,null,null,null,null,null,null,null,null,null,null,null,null,null,null,null,null,"Sí",null,null,null,"No  "]
[]
[null,null,null,null,"Sí","",null,null,null,"No  ",null,null,null,null,null,null,null,null,null,"124.B. ESTE CEBA, ¿SE ENCUENTRA AFILIADO AL SÍSEVE?"]
[null,null,null,null,null,null,null,null,null,null,null,null,null,null,null,null,null,null,null,null,"Sistema Especializado en Reporte de casos sobre Violencia Escolar)"]
[null,null,null,null,null,null,null,"¿Cuantas se han realizado en lo que va del año 2025?",null,null,null,null,null,null,""]
[null,null,null,null,null,null,null,null,null,null,null,null,null,null,null,null,null,null,null,null,"Sí",null,null,null,"¿Cuántos casos han sido reportados hasta la"]
[null,null,null,"119.B. ACTUALMENTE, ¿LOS DOCENTES EMPLEAN LAS HORAS DE TUTORÍA Y ORIENTACIÓN EDUCATIVA EN",null,null,null,null,null,null,null,null,null,null,null,null,null,null,null,null,null,null,null,null,"fecha de aplicación del Censo Educativo 2025?"]
[null,null,null,null,"EN ESTE SERVICIO/NIVEL EDUCATIVO?"]
[]
[null,null,null,null,"Sí","",null,null,null,"No  ",null,null,null,null,null,null,null,null,null,null,"No  ","",null,null,"¿Cuál es la razón por la que no está afiliado al SÍSEVE?"]
[null,null,null,null,null,null,null,null,null,null,null,null,null,null,null,null,null,null,null,null,null,null,null,null,"Marque con una \"X\", una opción"]
[null,null,null,null,null,null,"¿Cómo lo emplean?",null,null,null,null,null,null,null,null,null,null,null,null,null,null,null,null,null,"","Por falta de internet"]
[null,null,null,null,null,null,null,null,null,null,null,null,"¿Cuántos docentes lo usan?",null,null,"¿Tiene\nevidencia?",null,null,null,null,null,null,null,null,"","Conoce el portal, pero no le parece importante afiliarse"]
[null,null,null,null,null,null,null,null,null,null,null,"¿Se usa?","Sí, todos los docentes","Sí, algunos docentes","Ninguno",null,null,null,null,null,null,null,null,null,"","Le parece importante, pero considera que no es necesario"]
[null,null,null,null,"Nro.",null,"Acción",null,null,null,null,null,null,null,null,null,null,null,null,null,null,null,null,null,"","Falta de capacitación para usar el portal"]
[null,null,null,null,null,null,null,null,null,null,null,null,null,null,null,null,null,null,null,null,null,null,null,null,"","Otro",""]
[]
[null,null,null,null,1,"Tutoría grupal",null,null,null,null,null,"","","","","",null,null,null,"  125.B. ESTE CEBA , ¿CUENTA CON LIBRO DE REGISTRO DE INCIDENCIAS, SOBRE VIOLENCIA"]
[null,null,null,null,2,"Refuerzo escolar",null,null,null,null,null,"","","","","",null,null,null,null,"Y ACOSO ESCOLAR EN EL MARCO DE LA LEY N° 29719?"]
[null,null,null,null,3,"Comunicación y/o matemática",null,null,null,null,null,"","","","",""]
[null,null,null,null,4,"Otro",null,"",null,null,null,"","","","","",null,null,null,null,"Sí","",null,null,null,"No  ",null,null,"Pase a la pregunta 127.B"]
[null,null,null,null,null,null,null,null,null,null,null,{"$f":"COUNTIF(L332:L335,\"SI\")+COUNTIF(L332:L335,\"NO\")","v":0},null,null,null,{"$f":"COUNTIF(P332:P335,\"SI\")+COUNTIF(P332:P335,\"NO\")","v":0}]
[]
[null,null,null,"126.B. EN EL AÑO 2024, ¿SE HIZO USO DEL LIBRO DE REGISTRO DE INCIDENCIAS?",null,null,null,null,null,null,null,null,null,null,null,null,null,null,null,"133.B. ¿CUÁNTAS SESIONES PARA LA PREVENCIÓN DEL CONSUMO DE DROGAS"]
[null,null,null,null,null,null,null,null,null,null,null,null,null,null,null,null,null,null,null,null,"  DESARROLLÓ DURANTE TODO EL AÑO ESCOLAR?"]
[null,null,null,null,"Sí","",null,null,null,"No  ",""]
[null,null,null,null,null,null,null,null,null,null,null,null,null,null,null,null,null,null,null,null,"Cantidad de Sesiones :  "]
[null,null,null,null,null,null,null,"¿Cuántas incidencias se registraron en el año 2024?",null,null,null,null,null,null,""]
[]
[null,null,null,null,null,null,null,"Fecha en la que se registró la última incidencia ",null,null,null,null,null,"DÍA","MES","AÑO"]
[null,null,null,null,null,null,null,"relacionada a casos de violencia escolar",null,null,null,null,null,"","","",null,null,null,"134.B. SEÑOR(A) DIRECTOR(A), ¿SE BRINDAN TUTORÍAS GRUPALES EN LAS AULAS?"]
[]
[null,null,null,"127.B. SEÑOR(A) DIRECTOR(A), ¿EMPLEA USTED HERRAMIENTAS DE CONSULTA PARA VERIFICAR",null,null,null,null,null,null,null,null,null,null,null,null,null,null,null,null,"Sí","",null,null,null,"No  "]
[null,null,null,null,"LA SITUACIÓN DEL PERSONAL DE ESTE CEBA, TAL COMO EL REGISTRO"]
[null,null,null,null,"NACIONAL DE SANCIONES CONTRA SERVIDORES CIVILES – RNSSC?"]
[null,null,null,null,null,null,null,null,null,null,null,null,null,null,null,null,null,null,null,"135.B. SEÑOR(A) DIRECTOR(A), ¿HA ENTREGADO LOS TEXTOS DEL CICLO AVANZADO"]
[null,null,null,null,"Sí","",null,null,null,"No  ",null,null,null,null,null,null,null,null,null,null,"DE LA DOTACIÓN 2024 A LOS DOCENTES?"]
[]
[null,null,null,"128.B. SEÑOR(A) DIRECTOR (A), ¿CONOCE LOS PROTOCOLOS PARA LA ATENCIÓN DE LOS CASOS",null,null,null,null,null,null,null,null,null,null,null,null,null,null,null,null,"Sí","",null,null,null,"No  "]
[null,null,null,null,"DE VIOLENCIA EN EL CEBA?"]
[]
[null,null,null,null,"Sí","",null,null,null,"No  ",null,null,null,null,null,null,null,null,null,"136.B. SEÑOR(A) DIRECTOR(A), ¿HA ENTREGADO LOS TEXTOS DEL CICLO AVANZADO"]
[null,null,null,null,null,null,null,null,null,null,null,null,null,null,null,null,null,null,null,null,"DE LA DOTACIÓN 2024 A LOS ESTUDIANTES?"]
[null,null,null,null,null,null,"¿Ha sido capacitado por algún integrante de la DRE/GRE "]
[null,null,null,null,null,null," o UGEL en el uso de estos protocolos?",null,null,null,null,null,null,null,null,null,null,null,null,null,"Sí","",null,null,null,"No  "]
[]
[null,null,null,null,null,null,"Sí",null,null,null,null,"No  "]
[]
[null,null,null,"129.B. ¿TIENE CONOCIMIENTO QUE LOS HECHOS DE VIOLENCIA, ADEMÁS DE SER REPORTADOS",null,null,null,null,null,null,null,null,null,null,null,null,null,null,null,"137.B. ¿HA TENIDO ALGUNA DE LAS SIGUIENTES DIFICULTADES EN LA ENTREGA DE"]
[null,null,null,null,"EN EL PORTAL DEL SÍSEVE, DEBEN SER REPORTADOS A LA UGEL?",null,null,null,null,null,null,null,null,null,null,null,null,null,null,null,"LOS TEXTOS DEL CICLO AVANZADO?"]
[]
[null,null,null,null,"Sí","",null,null,null,"No  ",null,null,null,null,null,null,null,null,null,null,null,"Marque con una \"X\", una o más opciones"]
[]
[null,null,null,"130.B. SEÑOR(A) DIRECTOR(A), EN ESTE CEBA, ¿SE TIENEN IMPLEMENTADAS  MEDIDAS",null,null,null,null,null,null,null,null,null,null,null,null,null,null,null,null,null,null,"Textos en mal estado"]
[null,null,null,null,"DE SEGURIDAD PARA EL TRATAMIENTO DE LOS DATOS PERSONALES QUE ADMINISTRAN?",null,null,null,null,null,null,null,null,null,null,null,null,null,null,null,null,null,"Textos en cantidades insuficientes"]
[null,null,null,null,null,null,null,null,null,null,null,null,null,null,null,null,null,null,null,null,null,null,"Llegan tarde al CEBA"]
[null,null,null,null,"Sí","",null,null,null,"No  ",null,null,null,null,null,null,null,null,null,null,null,null,"Poco tiempo para la entrega"]
[null,null,null,null,null,null,null,null,null,null,null,null,null,null,null,null,null,null,null,null,null,null,"Dificultad para traer los textos desde la UGEL"]
[null,null,null,"131.B. ¿IMPLEMENTA ACCIONES DE ORIENTACIÓN VOCACIONAL EN ESTE CEBA",null,null,null,null,null,null,null,null,null,null,null,null,null,null,null,null,null,null,"Otro"]
[null,null,null,null,"VINCULADA A LA GESTIÓN Y PROMOCIÓN DEL BIENESTAR?"]
[]
[null,null,null,null,"Sí","",null,null,null,"No  "]
[]
[null,null,null,"132.B. ¿IMPLEMENTA ESTRATEGIAS DE ORIENTACIÓN VOCACIONAL ENTRE SUS"]
[null,null,null,null,"   ESTUDIANTES?"]
[]
[null,null,null,null,"Sí","",null,null,null,"No  "]
[]
[]
[]
[]
[]
[]
[]
[]
[]
[]
[]
[]
[]
[]
[]
[]
[]
[]
[]
[]
[]
[]
[]
[]
[]
[]
[]
[]
[]
[]
[]
[]
[]
[null,null,null,"C. ACOMPAÑAMIENTO Y SOPORTE PEDAGÓGICO"]
[null,null,null,"101.C. EN EL PRESENTE AÑO Y HASTA LA FECHA DE APLICACIÓN DEL CENSO EDUCATIVO 2025,",null,null,null,null,null,null,null,null,null,null,null,null,null,null,null,"106.C. SEÑOR(A) DIRECTOR(A), ¿CONOCE USTED EL SISTEMA INTEGRADO DE FORMACIÓN"]
[null,null,null,null,"EL CEBA, ¿HA RECIBIDO ASISTENCIA TÉCNICA PRESENCIAL O VIRTUAL",null,null,null,null,null,null,null,null,null,null,null,null,null,null,null,"DOCENTE EN SERVICIO (SIFODS)?"]
[null,null,null,null,"DEL ESPECIALISTA PEDAGÓGICO DE LA UGEL/DRE/GRE/MINEDU?"]
[null,null,null,null,null,null,null,null,null,null,null,null,null,null,null,null,null,null,null,null,"Sí","",null,null,null,"No  "]
[null,null,null,null,"Sí","",null,null,null,"No  "]
[null,null,null,null,null,null,null,null,null,null,null,null,null,null,null,null,null,null,null,null,null,null,null,"¿Qué módulo(s) ha utilizado del SIFODS?"]
[null,null,null,null,null,null,null,"¿Cuántas veces ha recibido asistencia técnica en total?",null,null,null,null,null,null,null,null,null,null,null,null,null,null,null,"Marque con una \"X\", una o más opciones"]
[null,null,null,null,null,null,null,"Marque con una “X”, solo una opción para cada caso"]
[null,null,null,null,null,null,null,null,null,null,null,null,null,null,null,null,null,null,null,null,null,null,null,"","File Docente "]
[null,null,null,null,null,null,null,null,null,null,null,null,1,2,3,"4 +",null,null,null,null,null,null,null,"","Docente al Día"]
[null,null,null,null,null,null,null,null,"Presencial",null,null,null,null,null,null,null,null,null,null,null,null,null,null,"","Portafolio de la Oferta Formativa "]
[null,null,null,null,null,null,null,null,"Virtual/Remota",null,null,null,null,null,null,null,null,null,null,null,null,null,null,"","Centro de Recursos "]
[null,null,null,null,null,null,null,null,null,null,null,null,null,null,null,null,null,null,null,null,null,null,null,"","Guías docentes AeC "]
[null,null,null,"102.C. DURANTE EL AÑO 2024 Y HASTA LA FECHA DE APLICACIÓN DEL CENSO EDUCATIVO 2025, EL CEBA,",null,null,null,null,null,null,null,null,null,null,null,null,null,null,null,null,null,null,null,"","Asistencia Virtual Docente "]
[null,null,null,null,"¿HA RECIBIDO ALGÚN TIPO DE ACOMPAÑAMIENTO DIRIGIDO AL DIRECTIVO?",null,null,null,null,null,null,null,null,null,null,null,null,null,null,null,null,null,null,"","Comunidades de aprendizajes "]
[null,null,null,null,null,null,null,null,null,null,null,null,null,null,null,null,null,null,null,null,null,null,null,"","Entorno Personal"]
[null,null,null,null,"Sí","",null,null,null,"No  ",null,null,"Pase a la pregunta 104.C"]
[null,null,null,null,null,null,null,null,null,null,null,null,null,null,null,null,null,null,null,"107.C. SEÑOR(A) DIRECTOR(A), ¿SE HAN IDENTIFICADO LAS NECESIDADES FORMATIVAS"]
[null,null,null,null,null,null,null,"¿Que institución(es) le brindaron el acompañamiento?",null,null,null,null,null,null,null,null,null,null,null,null,"PARA EL PERSONAL DOCENTE DE ESTE CEBA?"]
[null,null,null,null,null,null,null,"Marque con una \"X\", una o más opciones"]
[null,null,null,null,null,null,null,null,null,null,null,null,null,null,null,null,null,null,null,null,"Sí","",null,null,null,"No  ",null,null,"Pase a la pregunta 109.C"]
[null,null,null,null,null,null,null,"","DRE/GRE"]
[null,null,null,null,null,null,null,"","UGEL",null,null,null,null,null,null,null,null,null,null,null,null,null,null,"¿Cómo identificó las necesidades formativas?"]
[null,null,null,null,null,null,null,"","MINEDU",null,"",null,null,null,null,null,null,null,null,null,null,null,null,"Marque con una \"X\", una o más opciones"]
[null,null,null,null,null,null,null,"","Otros",null,""]
[null,null,null,null,null,null,null,null,null,null,null,null,null,null,null,null,null,null,null,null,null,null,null,"","Observación en aula "]
[null,null,null,"103.C. ¿QUÉ TEMAS HAN SIDO ABORDADOS MAYORITARIAMENTE POR EL EQUIPO DIRECTIVO DURANTE LAS",null,null,null,null,null,null,null,null,null,null,null,null,null,null,null,null,null,null,null,"","Cuestionario de autodiagnóstico "]
[null,null,null,null,"SESIONES DE SOPORTE Y APOYO A LOS DOCENTESEN EL MARCO DEL ACOMPAÑAMIENTO PEDAGÓGICO?",null,null,null,null,null,null,null,null,null,null,null,null,null,null,null,null,null,null,"","Monitoreo pedagógico"]
[null,null,null,null,"Marque con una \"X\", una o más opciones",null,null,null,null,null,null,null,null,null,null,null,null,null,null,null,null,null,null,"","Otros",null,""]
[]
[null,null,null,null,"","Planificación curricular",null,null,null,null,null,null,null,null,null,null,null,null,null,"108.C. EN ESTE CEBA, ¿SE HA GESTIONADO ALGÚN TIPO DE ACCIÓN FORMATIVA "]
[null,null,null,null,"","Conducción de los aprendizajes",null,null,null,null,null,null,null,null,null,null,null,null,null,null,"PARA ATENDER LAS NECESIDADES DEL PERSONAL DOCENTE?"]
[null,null,null,null,"","Como brindar acompañamiento socioafectivo y cognitivo"]
[null,null,null,null,"","Uso de los recursos y materiales educativos para atender la diversidad",null,null,null,null,null,null,null,null,null,null,null,null,null,null,"Sí","",null,null,null,"No  ",""]
[null,null,null,null,"","Evaluación formativa y retroalimentación"]
[null,null,null,null,"","Fortalecimiento del uso de TIC",null,null,null,null,null,null,null,null,null,null,null,null,null,null,null,null,null,"¿Qué tipo(s) de acción(es) formativa(s) se gestionaron?"]
[null,null,null,null,"","Competencia de las áreas curriculares",null,null,null,null,null,null,null,null,null,null,null,null,null,null,null,null,null,"Marque con una \"X\", una o más opciones"]
[null,null,null,null,"","Conclusiones descriptivas"]
[null,null,null,null,"","Otros temas",null,null,"",null,null,null,null,null,null,null,null,null,null,null,null,null,null,"","Cursos virtuales"]
[null,null,null,null,null,null,null,null,null,null,null,null,null,null,null,null,null,null,null,null,null,null,null,"","Programas formativos "]
[null,null,null,"104.C. EL CEBA, ¿INFORMÓ A LAS FAMILIAS SOBRE EL PROGRESO DE LOS ESTUDINATES",null,null,null,null,null,null,null,null,null,null,null,null,null,null,null,null,null,null,null,"","Otros",null,""]
[]
[null,null,null,null,"Sí","",null,null,null,"No  ",null,null,null,null,null,null,null,null,null,"109.C. DURANTE EL AÑO 2024 Y HASTA LA APLICACIÓN DEL CENSO EDUCATIVO 2025,"]
[null,null,null,null,null,null,null,null,null,null,null,null,null,null,null,null,null,null,null,null,"¿SE GENERARON ESPACIOS PARA LA COLABORACIÓN ENTRE DOCENTES Y/O"]
[null,null,null,null,null,null,null,"¿Con qué frecuencia se informa a las familias?",null,null,null,null,null,null,null,null,null,null,null,null,"DIRECTIVOS PARA LA IMPLEMENTACIÓN DE MEJORAS EN LA PRÁCTICA PEDAGÓGICA?"]
[null,null,null,null,null,null,null,"Marque con una \"X\", una opción"]
[null,null,null,null,null,null,null,null,null,null,null,null,null,null,null,null,null,null,null,null,"Sí",null,null,null,null,"No  "]
[null,null,null,null,null,null,null,null,"Mensual"]
[null,null,null,null,null,null,null,null,"Cada 2 meses",null,null,null,null,null,null,null,null,null,null,"110.C. EN LOS ÚLTIMOS TRES (03) AÑOS, ¿SE HA IMPLEMENTADO EN ESTE CEBA"]
[null,null,null,null,null,null,null,null,"Cada 3 meses",null,null,null,null,null,null,null,null,null,null,null,"ALGÚN PROYECTO DE INNOVACIÓN EDUCATIVA O BUENA PRÁCTICA PEDAGÓGICA?"]
[null,null,null,null,null,null,null,null,"Cada 6 meses",null,null,null,null,null,null,null,null,null,null,null,"(Referencia: ENDO 2021)"]
[null,null,null,null,null,null,null,null,"Al finalizar el año",null,null,null,null,null,null,null,null,null,null,null,"Marque con una \"X\", una o más opciones"]
[]
[null,null,null,"105.C. EL PERSONAL DE ESTE CEBA, ¿HA RECIBIDO ALGÚN TIPO DE ACOMPAÑAMIENTO ",null,null,null,null,null,null,null,null,null,null,null,null,null,null,null,null,null,"Proyecto de Innovación educativa"]
[null,null,null,null,"SOCIOAFECTIVO POR PARTE DE EQUIPOS DE UGEL/DRE/GRE/MINEDU?",null,null,null,null,null,null,null,null,null,null,null,null,null,null,null,null,"Buena práctica pedagógica"]
[null,null,null,null,null,null,null,null,null,null,null,null,null,null,null,null,null,null,null,null,null,"Buena práctica de gestión escolar"]
[]
[null,null,null,null,"Sí",null,null,null,null,"No  ",""]
[]
[]
[]
[null,null,null,"111.C. EN RELACIÓN CON EL DESARROLLO DEL PROYECTO DE INNOVACIÓN O BUENA PRÁCTICA",null,null,null,null,null,null,null,null,null,null,null,null,null,null,null,"113.C. SEÑALE MARCANDO CON UNA “X” SI EN LOS ÚLTIMOS DOCE (12) MESES, ¿HA CONTADO"]
[null,null,null,null,"PEDAGÓGICA, ¿QUÉ ASPECTOS LIMITAN LA IMPLEMENTACIÓN DE MEJORAS?",null,null,null,null,null,null,null,null,null,null,null,null,null,null,null,"CON ALIADOS ESTRATÉGICOS QUE LE HAYAN BENEFICIADO CON ALGÚN INCENTIVO ECONÓMICO"]
[null,null,null,null,"Marque con una \"X\", una o más opciones",null,null,null,null,null,null,null,null,null,null,null,null,null,null,null,"PARA LA IMPLEMENTACIÓN Y/O SOSTENIBILIDAD DE UNA INNOVACIÓN O BUENA PRÁCTICA?"]
[]
[null,null,null,null,null,"Institucionalización de la práctica",null,null,null,null,null,null,null,null,null,null,null,null,null,null,null,"Aliados Estratégicos",null,null,null,null,"Innovación Educativa",null,null,"Buena práctica"]
[null,null,null,null,null,"Reflexionar sobre los resultados de la práctica",null,null,null,null,null,null,null,null,null,null,null,null,null,null,null,null,null,null,null,{"$f":"AB492+AE492","v":0}]
[null,null,null,null,null,"Tener recursos limitados para mejorar su desarrollo",null,null,null,null,null,null,null,null,null,null,null,null,null,null,1,"Gobierno regional"]
[null,null,null,null,null,"Contar con poco respaldo del equipo directivo y de los docentes.",null,null,null,null,null,null,null,null,null,null,null,null,null,null,2,"DRE"]
[null,null,null,null,null,"Planificar en función de un problema identificado",null,null,null,null,null,null,null,null,null,null,null,null,null,null,3,"UGEL"]
[null,null,null,null,null,"Sustentar con evidencia la práctica o innovación educativa",null,null,null,null,null,null,null,null,null,null,null,null,null,null,4,"Gobierno local"]
[null,null,null,null,null,"Sistematizar y difundir la práctica o innovación educativa",null,null,null,null,null,null,null,null,null,null,null,null,null,null,5,"Aliados privados"]
[null,null,null,null,null,"Otro",null,null,null,null,null,null,null,null,null,null,null,null,null,null,6,"Ministerio de Educación"]
[null,null,null,null,null,null,null,null,null,null,null,null,null,null,null,null,null,null,null,null,7,"Padres y madres de familia"]
[null,null,null,"112.C. ¿QUÉ FACTORES LE AYUDARÍAN A MEJORAR SU INNOVACIÓN O PRÁCTICA PEDAGÓGICA?",null,null,null,null,null,null,null,null,null,null,null,null,null,null,null,null,8,"Recursos propios del CEBA "]
[null,null,null,null,"Marque con una \"X\", una o más opciones",null,null,null,null,null,null,null,null,null,null,null,null,null,null,null,9,"Otro"]
[null,null,null,null,null,null,null,null,null,null,null,null,null,null,null,null,null,null,null,null,null,null,null,null,null,null,null,{"$f":"COUNTIF(AB483:AB491,\"SI\")+COUNTIF(AB483:AB491,\"NO\")","v":0},null,null,{"$f":"COUNTIF(AE483:AE491,\"SI\")+COUNTIF(AE483:AE491,\"NO\")","v":0}]
[null,null,null,null,null,"Acceso a tecnología/internet",null,null,null,null,null,null,null,null,null,null,null,null,null,"114.C. EN SU OPINIÓN, ¿CUÁL SERÍA EL PRINCIPAL ESTÍMULO O INCENTIVO QUE DEBERÍAN"]
[null,null,null,null,null,"Acceso a material pedagógico",null,null,null,null,null,null,null,null,null,null,null,null,null,null,"RECIBIR LOS DOCENTES QUE IMPLEMENTAN BUENAS PRÁCTICAS O INNOVACIONES EDUCATIVAS?"]
[null,null,null,null,null,"Tiempo para reflexionar y sistematizar la práctica",null,null,null,null,null,null,null,null,null,null,null,null,null,null,"Marque con una \"X\", una o más opciones"]
[null,null,null,null,null,"Asistencia técnica o asesoría personalizada"]
[null,null,null,null,null,"Talleres de intercambio de experiencia",null,null,null,null,null,null,null,null,null,null,null,null,null,null,null,"Resoluciones de reconocimiento"]
[null,null,null,null,null,"Becas de estudio",null,null,null,null,null,null,null,null,null,null,null,null,null,null,null,"Bonos monetarios"]
[null,null,null,null,null,"Pasantías",null,null,null,null,null,null,null,null,null,null,null,null,null,null,null,"Puntaje adicional en alguna de las evaluaciones "]
[null,null,null,null,null,"Recursos con orientaciones pedagógicas",null,null,null,null,null,null,null,null,null,null,null,null,null,null,null,"Becas de posgrado (especializaciones, diplomados o maestría)"]
[null,null,null,null,null,"Difusión de innovaciones o prácticas",null,null,null,null,null,null,null,null,null,null,null,null,null,null,null,"Pasantías nacionales o internacionales"]
[null,null,null,null,null,"Formación de Comunidades de Aprendizaje",null,null,null,null,null,null,null,null,null,null,null,null,null,null,null,"Publicación de su proyecto en un libro"]
[null,null,null,null,null,"Financiamiento para el desarrollo de proyectos",null,null,null,null,null,null,null,null,null,null,null,null,null,null,null,"Reconocimiento en ceremonia o acto público"]
[null,null,null,null,null,"Otro",null,null,null,null,null,null,null,null,null,null,null,null,null,null,null,"Otro"]
[]
[null,null,null,null,null,null,null,null,null,null,null,null,null,null,null,null,null,null,null,"115.C. A PARTIR DEL DESARROLLO DE LA INNOVACIÓN EDUCATIVA O BUENA PRÁCTICA"]
[null,null,null,null,null,null,null,null,null,null,null,null,null,null,null,null,null,null,null,null,"EN ESTE CEBA,  ¿CUÁNTO CONSIDERA USTED QUE?"]
[]
[null,null,null,null,null,null,null,null,null,null,null,null,null,null,null,null,null,null,null,null,null,null,"Aliados Estratégicos",null,null,null,null,null,null,"Escala de Percepción"]
[null,null,null,null,null,null,null,null,null,null,null,null,null,null,null,null,null,null,null,null,null,null,null,null,null,null,null,null,{"$f":"COUNTIF(AD511:AF514,\"X\")","v":0},"Mucho","Poco","Nada"]
[null,null,null,null,null,null,null,null,null,null,null,null,null,null,null,null,null,null,null,null,1,"La comunidad valora más el esfuerzo de la escuela"]
[null,null,null,null,null,null,null,null,null,null,null,null,null,null,null,null,null,null,null,null,2,"Los padres de familia reconocen más el esfuerzo de los docentes"]
[null,null,null,null,null,null,null,null,null,null,null,null,null,null,null,null,null,null,null,null,3,"Los alumnos reconocen más el empeño de los docentes"]
[null,null,null,null,null,null,null,null,null,null,null,null,null,null,null,null,null,null,null,null,4,"La motivación de docentes con el trabajo ha aumentado"]
[]
[]
[]
[]
[]
[]
[]
[]
[]
[]
[]
[]
[]
[]
[]
[]
[]
[]
[]
[]
[]
[]
[]
[]
[]
[]
[]
[]
[]
[]
[]
[]
[]
[]
[]
[]
[]
[]
[]
[]
[]
[]
[]
[]
[]
[]
[]
[]
[]
[]
[]
[]
[]
[]
[]
[]
[]
[]
[]
[]
[]
[]
[]
[]
[]
[]
[]
[]
[]
[]
[]
[]
[]
[]
[]
[]
[]
[]
[]
[]
[]
[]
[]
[]
[]
[]
[]
[]
[]
[]
[]
[]
[]
[]
[]
[]
[]
[]
[]
[]
[]
[]
[]
[]
[]
[null,null,null,null,1]
[]
[]
[]
[null,null,null,null,1]

{"sheet":"C101","index":2,"n_rows":172,"n_cols":26,"rows_kept":172,"cut":false,"hidden":true,"merged":[[116,7,116,10],[1,6,1,23],[2,6,2,23],[11,10,13,10],[11,11,13,12],[33,3,33,11],[35,23,35,26],[39,3,39,11],[53,23,53,26],[60,8,60,11],[76,7,76,10],[89,7,89,10],[166,19,166,23],[124,24,124,26],[125,24,125,26],[134,20,134,26],[138,20,138,26],[139,20,139,26],[140,20,140,23],[142,10,142,11],[144,8,144,11],[145,8,145,11],[147,8,147,10],[148,8,148,12]]}
[{"$f":"IF(OR(UPPER('C100'!O37)<>\"\",UPPER('C100'!V37)<>\"\"),\"X\",\"\")","v":""}]
[{"$f":"IF(UPPER('C100'!AC37)<>\"\",\"X\",\"\")","v":""},null,null,null,null,null,"CENSO EDUCATIVO 2025"]
[null,null,null,null,null,null,"MATRÍCULA, DOCENTES Y MATERIALES EDUCATIVOS"]
[]
[]
[]
[null,null,null,"D. SERVICIOS CON PERTINENCIA CULTURAL (GESTIÓN PÚBLICA Y PRIVADA)"]
["0100: Castellano",null,null,"101.D. DE ACUERDO CON LAS PRACTICAS COTIDIANAS Y COSTUMBRES, ¿USTED CONSIDERA",null,null,null,null,null,null,null,null,null,null,null,"102.D. EN ESTE CEBA, ¿LOS DOCENTES CONSIDERAN LOS SABERES Y"]
["0200: Achuar",null,null,null,"QUE SU CEBA CUENTA CON ESTUDIANTES PERTENECIENTES A LOS",null,null,null,null,null,null,null,null,null,null,null,"PRÁCTICAS CULTURALES DEL PUEBLO O PUEBLOS ORIGINARIOS DE SUS ESTUDIANTES"]
["0300: Aimara",null,null,null,"SIGUIENTES GRUPOS ÉTNICOS?",null,null,null,null,null,null,null,null,null,null,null,"EN SUS ACTIVIDADES PEDAGÓGICAS?."]
["0400: Amahuaca"]
["0500: Arabela",null,null,null,null,null,null,null,null,null,"¿Tiene estudiantes?","Solo si respondió “Sí” % estimado del total de estudiantes"]
["0600: Asháninka",null,null,null,null,null,"GRUPO ÉTNICO",null,null,null,null,null,null,null,null,null,"Sí",null,null,null,null,"No  "]
["0610: Asheninka",null,null,null,null,null,null,null,null,{"$f":"COUNTIF(K15:K22,\"SI\")+COUNTIF(K15:K22,\"NO\")","v":0}]
["0700: Awajún",null,null,null,"1. Quechua",null,null,null,null,null,null,null,"%"]
["0800: Bora",null,null,null,"2. Aimara",null,null,null,null,null,null,null,"%"]
["0900: Kapanawa",null,null,null,"3. Indígena u originario de la Amazonía",null,null,null,null,null,null,null,"%"]
["1000: Cashinahua",null,null,null,"4. Perteneciente o parte de otro pueblo indígena",null,null,null,null,null,null,null,"%"]
["1100: Kawki",null,null,null,"5. Negro moreno, zambo, mulato o afroperuano",null,null,null,null,null,null,null,"%"]
["1200: Chamikuro",null,null,null,"6. Blanco",null,null,null,null,null,null,null,"%"]
["1300: Ese eja",null,null,null,"7. Mestizo",null,null,null,null,null,null,null,"%"]
["1400: Harakbut",null,null,null,"8. Otros",null,null,null,null,null,null,null,"%"]
["1500: Iñapari",null,null,null,null,null,null,null,null,null,null,{"$f":"SUM(L15:L22)","v":0}]
["1600: Ikuitu"]
["1700: Iskonawa",null,null,"E. CARACTERÍSTICAS DE LA ENSEÑANZA EN CONTEXTOS INTERCULTURALES BILINGÜES (GESTIÓN PÚBLICA Y PRIVADA)",null,null,null,null,null,null,null,null,null,null,null,null,null,null,null,null,null,""]
["1800: Jaqaru",null,null,null,null,null,null,null,null,null,null,null,null,null,null,null,null,null,null,null,null,""]
["1900: Kakataibo",null,null,"101.E. ESTE SERVICIO/NIVEL EDUCATIVO, ¿ESTÁ RECONOCIDO COMO EIB?",null,null,null,null,null,null,null,null,null,null,null,"105.E. USTED, SEÑOR(A) DIRECTOR(A), ¿CONOCE SI EN LA COMUNIDAD DONDE SE ENCUENTRA EL"]
["2000: Kakinte (caquinte)",null,null,null,null,null,null,null,null,null,null,null,null,null,null,null,"SERVICIO/NIVEL EDUCATIVO, LOS PADRES DE FAMILIA, OTROS ADULTOS Y/O ANCIANOS"]
["2110: Kandozi (Chapra)",null,null,null,"Sí",null,"u","EIB de Fortalecimiento",null,null,null,null,null,null,null,null,"Y ANCIANAS HABLAN UNA LENGUA ORIGINARIA?"]
["2120: Kandozi (Kandozi)",null,null,null,null,null,null,"EIB de Revitalización"]
["2200: Kukama-Kukamiria"]
["2300: Madija (culina)",null,null,null,"No  ",null,null,null,"Pase a la pregunta 105.E.",null,null,null,null,null,null,null,"Sí","",null,null,null,"No  "]
["2400: Maijiki"]
["2500: Matsés",null,null,"SOLO SI ES EIB DE FORTALECIMIENTO, RESPONDA:"]
["2600: Matsigenka",null,null,"102.E. ESTE SERVICIO/NIVEL EDUCATIVO, ¿OFRECE ENSEÑANZA DEL CASTELLANO COMO"]
["2700: Munichi",null,null,null,"SEGUNDA LENGUA?",null,null,null,null,null,null,null,null,null,null,null,null,null,null,"¿Qué lengua originaria hablan?",null,null,null,"4900: Lengua de señas peruana "]
["2800: Murui-muinanɨ",null,null,null,null,null,null,null,null,null,null,null,null,null,null,null,null,null,null,null,null,null,null,null,"Anote el código según la"]
["2900: Matsigenka-montetokunirira",null,null,null,"Sí",null,null,null,"No  ",null,null,null,null,null,null,null,null,null,null,null,null,null,null,null,"tabla de Lenguas Originarias"]
["3000: Nomatsigenga",null,null,null,null,null,null,null,null,null,null,null,null,null,null,null,null,null,null,null,null,null,null,null,"de la página 22."]
["3100: Ocaina",null,null,"SOLO SI ES EIB DE REVITALIZACIÓN, RESPONDA:"]
["3200: Omagua",null,null,"103.E. ESTE SERVICIO/NIVEL EDUCATIVO, ¿OFRECE ENSEÑANZA DE LA LENGUA ORIGINARIA"]
["3310: Quechua amazónico (Kichwa)",null,null,null,"COMO SEGUNDA LENGUA?"]
["3321: Quechua central (Ancash)"]
["3322: Quechua central (Huánuco)",null,null,null,"Sí",null,null,null,"No  ",null,null,null,null,null,null,"106.E. LOS ESTUDIANTES DE ESTE SERVICIO/NIVEL EDUCATIVO, ¿HABLAN UNA LENGUA ORIGINARIA?"]
["3323: Quechua central (Wanka)"]
["3324: Quechua central (Pasco)",null,null,"104.E. LOS DOCENTES DE ESTE SERVICIO/NIVEL EDUCATIVO, ¿HAN COMPLETADO LAS FICHAS"]
["3331: Quechua norteño (Cajamarca)",null,null,null,"DE DIAGNÓSTICO SOCIOLINGÜÍSTICO Y PSICOLINGÜÍSTICO QUE CARACTERIZA EL NIVEL DE",null,null,null,null,null,null,null,null,null,null,null,"Sí",null,null,null,null,"No  "]
["3332: Quechua norteño (Inkawasi kañaris)",null,null,null,"DOMINIO DE LAS LENGUAS (LENGUA ORIGINARIA Y CASTELLANO) DE LOS ESTUDIANTES"]
["3341: Quechua sureño (Chanka)",null,null,null,"Y LA COMUNIDAD?"]
["3342: Quechua sureño (Collao)"]
["3400: Resígaro",null,null,null,"Sí",null,null,null,"No  "]
["3500: Secoya",null,null,null,null,null,null,null,null,null,null,null,null,null,null,null,null,null,null,"Todos","",null,null,"¿Qué lengua  originaria? "]
["3600: Sharanahua",null,null,null,null,null,null,"Mencione, ¿cómo fueron completadas las fichas?",null,null,null,null,null,null,null,null,null,null,null,"La mayoría",null,null,"u"]
["3700: Shawi",null,null,null,null,null,null,"Marque con una “X”, una opción",null,null,null,null,null,null,null,null,null,null,null,"Pocos",null,null,null,""]
["3800: Shipibo-Konibo",null,null,null,null,null,null,null,null,null,null,null,null,null,null,null,null,null,null,null,null,{"$f":"CONCATENATE(V52,V53,V54)","v":""}]
["3900: Shiwilu",null,null,null,null,null,null,"Con ayuda del especialista EIB de la UGEL.",null,null,null,null,null,null,null,null,null,null,null,null,null,null,null,null,"Anote el código según la"]
["4000: Taushiro",null,null,null,null,null,null,"Con el asesoramiento del coordinador de mi Red educativa.",null,null,null,null,null,null,null,null,null,null,null,null,null,null,null,null,"tabla de Lenguas Originarias"]
["4100: Ticuna",null,null,null,null,null,null,"Con el asesoramiento de otro docente que trabaja en mi IE.",null,null,null,null,null,null,null,null,null,null,null,null,null,"",null,null,"de la página 22."]
["4200: Urarina",null,null,null,null,null,null,"Con el apoyo de un docente de mayor experiencia de mi IE."]
["4300: Wampis",null,null,null,null,null,null,"De manera autónoma."]
["4400: Yagua",null,null,null,null,null,null,"Otros",""]
["4500: Yaminahua"]
["4600: Yanesha",null,null,null,null,null,null,null,null,null,null,null,null,null,null,null,null,null,null,null,null,""]
["4700: Yine",null,null,"E. SERVICIO DE APOYO EDUCATIVO (SAE) (GESTIÓN PÚBLICA Y PRIVADA)"]
["4800: Nahua",null,null,"101.E. DURANTE  EL  PRESENTE  AÑO  Y HASTA LA FECHA DE APLICACIÓN DEL  CENSO EDUCATIVO  2025,",null,null,null,null,null,null,null,null,null,null,null,"106.E. USTED SEÑOR(A) DIRECTOR(A), ¿HA RECIBIDO ASESORÍA DEL SAEI (SERVICIO DE APOYO"]
["4900: Lengua de señas peruana ",null,null,null,"¿ALGUNOS  DE  LOS  DOCENTES  HAN RECIBIDO O RECIBEN CAPACITACIÓN Y/O ACOMPAÑAMIENTO",null,null,null,null,null,null,null,null,null,null,null,"EDUCATIVO INTERNO) EN EL MARCO DE UNA EDUCACIÓN INCLUSIVA?"]
[null,null,null,null,"Y/O ASESORIAS ESPECIALIZADAS EN EL MARCO DE LA EDUCACIÓN INCLUSIVA  POR  PARTE  DEL "]
["5100: Alemán",null,null,null,"SAE EXTERNO  DE LA  UGEL/DRE/GRE, O  ALGUNA  OTRA  INSTITUCIÓN  EN  EL  MARCO  DE  UNA ",null,null,null,null,null,null,null,null,null,null,null,"Sí","",null,null,null,"No  "]
["5200: Ingles",null,null,null,"EDUCACIÓN INCLUSIVA?"]
["5300: Italiano",null,null,null,"Marque con una \"X\", una o más opciones"]
["5400: Japones",null,null,null,null,null,null,null,null,null,null,null,null,null,null,"107.E. ESTE  SERVICIO/NIVEL EDUCATIVO, ¿HA RECIBIDO LA VISITA DE ALGÚN PROFESIONAL"]
["5500: Portugués",null,null,null,null,"Educación inclusiva para atender a la diversidad",null,null,null,null,null,null,null,null,null,null,"SAE EXTERNO DE LA UGEL?"]
["5600: Ruso",null,null,null,null,"Identificación de barreras educativas"]
["5700: Francés",null,null,null,null,"Implementación de Apoyos Educativos",null,null,null,null,null,null,null,null,null,null,"Sí","",null,null,null,"No  "]
["5800: Otra",null,null,null,null,"Diseño Universal para el Aprendizaje"]
[null,null,null,null,null,"Plan Educativo Personalizado",null,null,null,null,null,null,null,null,null,"108.E. DURANTE EL PRESENTE AÑO Y A LA FECHA DE APLICACIÓN DEL CENSO EDUCATIVO 2025,"]
[null,null,null,null,null,"Otros",null,"",null,null,null,null,null,null,null,null,"RESPECTO A  LA IMPLEMENTACIÓN  DEL SAE EXTERNO DE LA UGEL,   ¿ESTE CEBA ,"]
[null,null,null,null,null,"No han recibido",null,null,null,null,null,null,null,null,null,null," HA RECIBIDO ALGUNAS DE LAS SIGUIENTES ACCIONES?"]
[null,null,null,null,null,null,null,null,null,null,null,null,null,null,null,null,"Marque con una \"X\", una o más opciones"]
[null,null,null,"102.E. ¿QUÉ  ESTRATEGIAS FORMATIVAS VIRTUALES PRIORIZARÍA SOBRE TEMAS DE EDUCACIÓN"]
[null,null,null,null,"INCLUSIVA O ATENCIÓN A LA DIVERSIDAD?",null,null,null,null,null,null,null,null,null,null,null,null,"Sensibilización sobre educación inclusiva para la comunidad educativa."]
[null,null,null,null,"Marque con una \"X\", una o más opciones",null,null,null,null,null,null,null,null,null,null,null,null,"Asistencia técnica en educación inclusiva al SAEI de su CEBA"]
[null,null,null,null,null,null,null,null,null,null,null,null,null,null,null,null,null,"Acompañamiento en educación inclusiva al SAEI de su CEBA"]
[null,null,null,null,null,"Curso virtual tutorado",null,null,null,null,null,null,null,null,null,null,null,"Asesorías especializadas en educación inclusiva"]
[null,null,null,null,null,"Curso virtual autoformativo",null,null,null,null,null,null,null,null,null,null,null,"Capacitación en educación inclusiva"]
[null,null,null,null,null,"Grupo o círculo de interaprendizaje",null,null,null,null,null,null,null,null,null,null,null,"Soporte sobre la gestión de apoyos educativos"]
[null,null,null,null,null,"Comunidades profesionales de aprendizaje",null,null,null,null,null,null,null,null,null,null,null,"Articulación con redes de apoyo promovidas por el SAEE de UGEL"]
[null,null,null,null,null,"Asesoría personalizada"]
[null,null,null,null,null,"Pasantía",null,null,null,null,null,null,null,null,null,"109.E. ESTE CEBA, ¿TIENE ESTUDIANTES MATRICULADOS EN CONDICIÓN DE"]
[null,null,null,null,null,"Otros",null,null,null,null,null,null,null,null,null,null,"DISCAPACIDAD ?"]
[]
[null,null,null,"103.E. DURANTE EL PRESENTE AÑO Y HASTA LA FECHA DE APLICACIÓN DEL CENSO EDUCATIVO 2025,",null,null,null,null,null,null,null,null,null,null,null,null,"Sí",null,null,null,null,"No  ",""]
[null,null,null,null,"ESTE CEBA, ¿HA INCORPORADO CAMBIOS EN LOS INSTRUMENTOS DE GESTIÓN PARA"]
[null,null,null,null,"IMPLEMENTAR LA EDUCACIÓN INCLUSIVA SEGÚN LAS NORMATIVAS VIGENTES?"]
[null,null,null,null,null,null,null,null,null,null,null,null,null,null,null,null,null,"¿Los/as estudiantes con discapacidad cuentan con planes "]
[null,null,null,null,"Sí","",null,null,"No  ",null,null,null,null,null,null,null,null,"educativos personalizados (PEP)?"]
[]
["SI",null,null,"104.E. DURANTE EL PRESENTE AÑO Y HASTA LA FECHA DE APLICACIÓN DEL CENSO EDUCATIVO 2025,",null,null,null,null,null,null,null,null,null,null,null,null,null,"Sí","",null,"No  ","",null,null,"No   aplica  ",""]
["NO",null,null,null,"ESTE CEBA, ¿HA CONFORMADO EL SERVICIO DE APOYO EDUCATIVO INTERNO"]
[null,null,null,null,"(SAEI) ?"]
[null,null,null,null,null,null,null,null,null,null,null,null,null,null,null,"110.E. ¿HA RECIBIDO ASISTENCIA Y ORIENTACIÓN PARA LA ATENCIÓN EDUCATIVA"]
[null,null,null,null,"Sí",null,null,null,"No  ","",null,null,null,null,null,null,"DE ESTUDIANTES CON DISCAPACIDAD DE PARTE DEL EQUIPO DE SERVICIO DE APOYO"]
[null,null,null,null,null,null,null,null,null,null,null,null,null,null,null,null,"EDUCATIVO VIRTUAL (SAEV ?"]
[null,null,null,null,null,null,null," ¿Cuántas personas lo integran?"]
[]
[null,null,null,"105.E. DURANTE EL PRESENTE AÑO Y HASTA LA FECHA DE APLICACIÓN DEL CENSO EDUCATIVO ",null,null,null,null,null,null,null,null,null,null,null,null,"Sí","",null,null,null,"No  "]
[null,null,null,null,"2025, RESPECTO A LA IMPLEMENTACIÓN DEL SAE INTERNO, ESTE CEBA,"]
[null,null,null,null,"¿HA  REALIZADO  ALGUNAS  DE LAS SIGUIENTES ACCIONES?"]
[null,null,null,null,"Marque con una \"X\", una o más opciones"]
[]
[null,null,null,null,null,"Sensibilización sobre educación inclusiva para la comunidad educativa."]
[null,null,null,null,null,"Capacitación en educación inclusiva para docentes, directivos y otros agentes educativos."]
[null,null,null,null,null,"Acompañamiento a los docentes (visitas, grupos de interaprendizaje y asesorías)"]
[null,null,null,null,null,"Asesorías al equipo directivo y otros agentes educativos."]
[null,null,null,null,null,"Orientación a las familias."]
[null,null,null,null,null,"Coordinación y articulación con otros servicios de apoyo, comités de gestión escolar."]
[null,null,null,null,null,"Otro"]
[]
[]
[null,null,null,"F. SUPERVISIÓN DE LA PRESTACIÓN DEL SERVICIO EDUCATIVO DE GESTIÓN PRIVADA - SOLO GESTIÓN PRIVADA"]
[null,null,null,"101.F. DURANTE AL MENOS UNO DE LOS ÚLTIMOS 3 (TRES) AÑOS, ESTE CEBA HA SIDO",null,null,null,null,null,null,null,null,null,null,null,"103.F.  FORMA DE CONSTITUCIÓN (Sólo para personas jurídicas)"]
[null,null,null,null,"SUPERVISADO ORIENTATIVAMENTE EN CONDICIONES BÁSICAS POR LA UGEL?",null,null,null,null,null,null,null,null,null,null,null,"Marque con un aspa ‘’x’’ y registra la información solicitada según corresponda"]
[]
[null,null,null,null,"Sí",null,null,null,"No  ",null,null,null,null,null,null,null,null,null,"  Sociedad"]
[null,null,null,null,null,null,null,null,null,null,null,null,null,null,null,null,null,null,null,null,"N° de Partida Regristral  "]
[null,null,null,null,null,null,null,null,null,null,null,null,null,null,null,null,null,null,null,null,"N° de Asiento Registral  "]
[null,null,null,null,null,"¿Qué aspectos fueron supervisados?",null,null,null,null,null,null,null,null,null,null,null,null,"  Asociación"]
[null,null,null,null,null,"Marque con una \"X\", una o más opciones"]
[null,null,null,null,null,null,null,null,null,null,null,null,null,null,null,"104.F. ESTE CEBA, ¿PERTENECE A ALGUNA ASOCIACIÓN QUE AGRUPE"]
[null,null,null,null,null,null,"Gestión institucional",null,null,null,null,null,null,null,null,null,"A  SS.EE. PRIVADOS?"]
[null,null,null,null,null,null,"Gestión pedagógica"]
[null,null,null,null,null,null,"Infraestructura educativa",null,null,null,null,null,null,null,null,null,"Sí",null,null,null,null,"No  "]
[]
[]
[null,null,null,null,null,null,null,null,null,null,null,null,null,null,null,null,null,"Nombre de la asociación :",null,null,""]
[]
[null,null,null,"102.F. COMPLETE LOS SIGUIENTES DATOS SOBRE LA PROMOTORÍA DE ESTE SERVICIO/NIVEL",null,null,null,null,null,null,null,null,null,null,null,null,null,"Datos de contacto de la asociación:"]
[null,null,null,null,"EDUCATIVO DE GESTIÓN PRIVADA"]
[null,null,null,null,"Marque con un aspa ‘’X’’ y registra la información solicitada según corresponda",null,null,null,null,null,null,null,null,null,null,null,null,null,"Web "]
[null,null,null,null,null,null,null,null,null,null,null,null,null,null,null,null,null,null,"Correo electrónico "]
[null,null,null,null,"Tipo de persona:",null,null,null,null,null,null,null,null,null,null,null,null,null,"Teléfono/celular "]
[]
[null,null,null,null,null,"  Natural",null,"DNI/CE","",":",null,null,null,null,null,"105.F. ¿CUÁNTO ES EL COSTO DE LA PENSIÓN DE ENSEÑANZA (EN MONEDA NACIONAL)?"]
[null,null,null,null,null,null,null,null,null,null,null,null,null,null,null,null," Escala:"]
[null,null,null,null,null,null,null,"Nombres  "]
[null,null,null,null,null,null,null,"Apellidos  ",null,null,null,null,null,null,null,null,null,null,"Única",null,"Pensión"]
[]
[null,null,null,null,null,"  Jurídica",null,"RUC  ",null,null,null,null,null,null,null,null,null,null,null,null,"Escala mínima"]
[null,null,null,null,null,null,null,"Razón social  ",null,null,null,null,null,null,null,null,null,null,"Varias"]
[null,null,null,null,null,null,null,null,null,null,null,null,null,null,null,null,null,null,null,null,"Escala máxima"]
[]
[]
[null,null,null,"G. ARTICULACIÓN CON LA EDUCACIÓN COMUNITARIA (GESTIÓN PÚBLICA Y PRIVADA)"]
[null,null,null," 101.G. EN  EL  AÑO  2024, ¿SE  HAN  PUESTO  A  DISPOSICIÓN  LAS  INSTALACIONES  DE  ESTE "]
[null,null,null,null,"SERVICIO/NIVEL EDUCATIVO  PARA  EL  DESARROLLO  DE  ACTIVIDADES DE EDUCACIÓN",null,null,null,null,null,null,null,null,null,null,null,"¿Qué temas o contenidos se han abordado en las actividades de educación comunitaria"]
[null,null,null,null,"COMUNITARIA?",null,null,null,null,null,null,null,null,null,null,null,"realizadas en las instalaciones de su institución educativa?"]
[null,null,null,null,null,null,null,null,null,null,null,null,null,null,null,null,"Marque con una \"X\", una o más opciones"]
[]
[null,null,null,null,null,null,null,null,"Sí",null,null,null,null,null,null,null,null,"Ciudadanía y convivencia"]
[null,null,null,null,null,null,null,null,null,null,null,null,null,null,null,null,null,"Pueblos indígenas, diversidad cultural y arte"]
[null,null,null,null,null,null,null,null,null,null,null,null,null,"|",null,null,null,"Gestión pública y gobernabilidad"]
[null,null,null,null,null,null,null,null,null,null,null,null,null,null,null,null,null,"Generación de conocimientos y tecnología"]
[null,null,null,null,null,null,null,null,"No",null,null,null,null,null,null,null,null,"Desarrollo de capacidades y liderazgo"]
[null,null,null,null,null,null,null,null,null,null,null,null,null,null,null,null,null,"Trabajo y producción"]
[null,null,null,null,null,null,null,null,null,null,null,null,null,null,null,null,null,"Ambiente y territorio"]
[null,null,null,null,null,null,null,null,null,null,null,null,null,null,null,null,null,"Salud, seguridad alimentaria y deporte"]
[null,null,null,null,null,null,null,null,null,null,null,null,null,null,null,null,null,"Otros"]
[]
[]
[null,null,null,null,null,null,null,null,null,null,null,null,null,null,null,null,null,null,null,null,null,""]
[null,null,null,null,null,null,null,null,null,null,null,null,null,null,null,null,null,null,null,null,null,""]
[null,null,null,null,null,null,null,null,null,null,null,null,null,null,null,null,null,null,null,null,null,""]

{"sheet":"C200","index":3,"n_rows":385,"n_cols":29,"rows_kept":385,"cut":false,"hidden":true,"merged":[[380,21,380,22],[380,23,380,24],[380,25,380,26],[380,27,380,28],[380,9,380,10],[380,11,380,12],[380,13,380,14],[379,2,381,2],[379,3,380,4],[380,5,380,6],[380,7,380,8],[380,15,380,16],[380,17,380,18],[380,19,380,20],[379,6,379,11],[379,22,379,27],[363,21,363,22],[363,23,363,24],[372,23,372,24],[372,25,372,26],[372,27,372,28],[371,6,371,11],[371,14,371,19],[371,22,371,27],[372,21,372,22],[372,11,372,12],[372,13,372,14],[372,15,372,16],[372,17,372,18],[372,19,372,20],[371,2,373,2],[371,3,372,4],[372,5,372,6],[372,7,372,8],[372,9,372,10],[363,13,363,14],[363,15,363,16],[363,17,363,18],[363,19,363,20],[355,27,355,28],[362,2,364,2],[362,3,363,4],[363,5,363,6],[363,7,363,8],[363,9,363,10],[363,11,363,12],[355,15,355,16],[355,17,355,18],[355,19,355,20],[355,21,355,22],[355,23,355,24],[355,25,355,26],[354,2,356,2],[354,3,355,4],[355,5,355,6],[355,7,355,8],[355,9,355,10],[355,11,355,12],[355,13,355,14],[362,6,362,11],[362,22,362,27],[363,25,363,26],[363,27,363,28],[342,4,344,4],[342,5,342,16],[342,17,342,24],[343,5,343,8],[343,9,343,12],[343,13,343,16],[343,17,343,20],[343,21,343,24],[354,6,354,11],[354,14,354,19],[354,22,354,27],[328,3,328,15],[330,2,332,3],[330,4,331,5],[330,6,330,11],[330,12,330,15],[331,6,331,7],[331,8,331,9],[331,10,331,11],[331,12,331,13],[331,14,331,15],[320,2,320,3],[321,2,321,3],[322,2,322,3],[323,2,323,3],[324,2,324,3],[325,2,325,3],[317,10,317,11],[317,12,317,13],[317,14,317,15],[317,18,317,19],[317,20,317,21],[317,22,317,23],[275,22,276,22],[275,23,276,23],[314,3,314,15],[316,2,318,3],[316,4,317,5],[316,6,316,11],[316,12,316,15],[317,6,317,7],[317,8,317,9],[274,19,274,21],[274,22,274,23],[275,7,276,7],[275,8,276,8],[275,9,276,9],[275,10,276,10],[275,11,276,11],[275,19,276,19],[275,20,276,20],[275,21,276,21],[269,2,269,3],[269,16,269,17],[272,3,272,15],[274,2,275,5],[274,7,274,9],[274,10,274,11],[274,13,275,17],[265,12,265,13],[265,14,265,15],[265,22,265,23],[266,16,266,17],[267,16,267,17],[268,2,268,3],[268,16,268,17],[259,2,259,3],[259,16,259,17],[262,3,262,15],[264,2,266,3],[264,4,265,5],[264,6,264,11],[264,12,264,15],[265,6,265,7],[265,8,265,9],[265,10,265,11],[256,2,256,3],[256,16,256,17],[257,2,257,3],[257,16,257,17],[258,2,258,3],[258,16,258,17],[253,2,253,3],[253,16,253,17],[254,2,254,3],[254,16,254,17],[255,2,255,3],[255,16,255,17],[249,14,249,15],[249,20,249,21],[250,16,250,17],[251,16,251,17],[252,2,252,3],[252,16,252,17],[245,2,245,12],[246,3,246,15],[248,2,250,3],[248,4,249,5],[248,6,248,11],[248,12,248,15],[249,6,249,7],[249,8,249,9],[249,10,249,11],[249,12,249,13],[243,4,243,5],[243,6,243,7],[243,8,243,9],[243,10,243,11],[243,12,243,13],[243,14,243,15],[242,4,242,5],[242,6,242,7],[242,8,242,9],[242,10,242,11],[242,12,242,13],[242,14,242,15],[241,4,241,5],[241,6,241,7],[241,8,241,9],[241,10,241,11],[241,12,241,13],[241,14,241,15],[239,14,239,15],[239,22,239,23],[240,4,240,5],[240,6,240,7],[240,8,240,9],[240,10,240,11],[240,12,240,13],[240,14,240,15],[233,2,233,3],[236,3,236,15],[238,2,239,3],[238,4,239,5],[238,6,238,11],[238,12,238,15],[239,6,239,7],[239,8,239,9],[239,10,239,11],[239,12,239,13],[227,2,227,3],[228,2,228,3],[229,2,229,3],[230,2,230,3],[231,2,231,3],[232,2,232,3],[225,8,225,9],[225,10,225,11],[225,12,225,13],[225,14,225,15],[225,22,225,23],[203,4,203,5],[215,3,215,13],[217,2,218,9],[217,11,218,13],[222,3,222,15],[224,2,226,3],[224,4,225,5],[224,6,224,11],[224,12,224,15],[225,6,225,7],[197,4,197,5],[169,13,169,14],[169,15,169,16],[169,17,169,18],[183,3,183,5],[186,3,186,18],[188,2,190,4],[188,6,190,6],[188,7,189,8],[188,9,188,14],[188,15,188,18],[166,3,166,18],[168,2,170,4],[168,6,170,6],[168,7,169,8],[168,9,168,14],[168,15,168,18],[169,9,169,10],[169,11,169,12],[189,9,189,10],[189,11,189,12],[189,13,189,14],[189,15,189,16],[189,17,189,18],[128,3,128,18],[130,2,131,2],[130,3,131,3],[130,4,130,18],[136,3,136,14],[138,2,140,2],[138,3,139,4],[138,5,138,12],[139,5,139,6],[139,7,139,8],[139,9,139,10],[139,11,139,12],[112,3,112,18],[114,2,115,2],[114,3,115,3],[114,4,114,18],[120,3,120,18],[122,2,123,2],[122,3,123,3],[122,4,122,18],[100,2,100,5],[101,2,101,5],[104,3,104,18],[106,2,107,2],[106,3,107,3],[106,4,106,18],[94,2,94,5],[95,2,95,5],[96,2,96,5],[97,2,97,5],[98,2,98,5],[99,2,99,5],[91,12,91,13],[91,14,91,15],[91,16,91,17],[76,14,76,15],[76,16,76,17],[91,18,91,19],[91,20,91,21],[91,22,91,23],[83,2,83,5],[84,2,84,5],[87,3,87,23],[89,2,92,5],[89,6,91,7],[89,8,89,23],[90,8,90,15],[90,16,90,23],[91,8,91,9],[91,10,91,11],[10,3,12,4],[10,5,10,20],[11,5,11,12],[11,13,11,20],[12,5,12,6],[12,7,12,8],[72,3,72,23],[74,2,77,5],[74,6,76,7],[74,8,74,23],[75,8,75,15],[75,16,75,23],[76,20,76,21],[76,22,76,23],[76,18,76,19],[40,3,40,20],[42,2,45,2],[42,3,44,4],[42,5,42,20],[43,5,43,12],[43,13,43,20],[44,5,44,6],[44,7,44,8],[76,12,76,13],[340,3,340,15],[311,15,311,17],[1,4,1,17],[2,4,2,17],[8,3,8,20],[44,9,44,10],[44,11,44,12],[44,13,44,14],[44,15,44,16],[44,17,44,18],[44,19,44,20],[12,9,12,10],[12,11,12,12],[12,13,12,14],[12,15,12,16],[12,17,12,18],[12,19,12,20],[79,2,79,5],[80,2,80,5],[81,2,81,5],[82,2,82,5],[76,8,76,9],[76,10,76,11],[10,2,13,2]]}
[]
[null,null,null,null,"CENSO EDUCATIVO 2025"]
[null,null,null,null,"MATRÍCULA, DOCENTES Y RECURSOS"]
[]
[]
[]
[null,null,"200. MATRICULA Y SECCIONES"]
[]
[null,null,201,"MATRÍCULA DE JÓVENES Y ADULTOS DEL (LOS) PERÍODO(S) PROMOCIONAL(ES) CORRESPONDIENTES A LA FECHA DE REPORTE DEL CEBA-REFERENCIAL , POR CICLO, GRADO Y SEXO, SEGÚN EDAD"]
[]
[null,null,"Edad en años cumplidos al\n31-03-2025","TOTAL",null,"CEBA (Referencial)"]
[null,null,null,null,null,"PRESENCIAL",null,null,null,null,null,null,null,"SEMI-PRESENCIAL"]
[null,null,null,null,null,"1º",null,"2º",null,"3º",null,"4º",null,"1º",null,"2º",null,"3º",null,"4º"]
[null,null,null,"H","M","H","M","H","M","H","M","H","M","H","M","H","M","H","M","H","M"]
["00",null,"TOTAL",{"$f":"F15+H15+J15+L15+N15+P15+R15+T15","v":0},{"$f":"G15+I15+K15+M15+O15+Q15+S15+U15","v":0},{"$f":"SUM(F16:F38)","v":0},0,0,0,0,0,0,0,0,0,0,0,0,0,0,0]
["14",null,14,{"$f":"F16+H16+J16+L16+N16+P16+R16+T16","v":0},{"$f":"G16+I16+K16+M16+O16+Q16+S16+U16","v":0}]
["15",null,15,0,0]
["16",null,16,0,0]
["17",null,17,0,0]
["18",null,18,0,0]
["19",null,19,0,0]
["20",null,20,0,0]
["21",null,21,0,0]
["22",null,22,0,0]
["23",null,23,0,0]
["24",null,24,0,0]
["25",null,"25-29",0,0]
["30",null,"30-34",0,0]
["35",null,"35-39",0,0]
["40",null,"40-44",0,0]
["45",null,"45-49",0,0]
["50",null,"50-54",0,0]
["55",null,"55-59",0,0]
["60",null,"60-64",0,0]
["65",null,"65-69",0,0]
["70",null,"70-74",0,0]
["75",null,"75-79",0,0]
["80",null,"80 y más",{"$f":"F38+H38+J38+L38+N38+P38+R38+T38","v":0},{"$f":"G38+I38+K38+M38+O38+Q38+S38+U38","v":0}]
[null,null,"Nota: Incluya a los alumnos con algún tipo de Necesidad Educativa Especial (NEE)."]
[]
[null,null,202,"MATRÍCULA DE JÓVENES Y ADULTOS DEL (LOS) PERÍODO(S) PROMOCIONAL(ES) CORRESPONDIENTES A LA FECHA DE REPORTE DE LOS PERIFÉRICOS, POR CICLO, GRADO Y SEXO, SEGÚN EDAD"]
[]
[null,null,"Edad en años cumplidos al\n31-03-2025","TOTAL",null,"PERIFÉRICOS"]
[null,null,null,null,null,"PRESENCIAL",null,null,null,null,null,null,null,"SEMI-PRESENCIAL"]
[null,null,null,null,null,"1º",null,"2º",null,"3º",null,"4º",null,"1º",null,"2º",null,"3º",null,"4º"]
[null,null,null,"H","M","H","M","H","M","H","M","H","M","H","M","H","M","H","M","H","M"]
["00",null,"TOTAL",{"$f":"F47+H47+J47+L47+N47+P47+R47+T47","v":0},{"$f":"G47+I47+K47+M47+O47+Q47+S47+U47","v":0},{"$f":"SUM(F48:F70)","v":0},0,0,0,0,0,0,0,0,0,0,0,0,0,0,0]
["14",null,14,{"$f":"F48+H48+J48+L48+N48+P48+R48+T48","v":0},0]
["15",null,15,0,0]
["16",null,16,0,0]
["17",null,17,0,0]
["18",null,18,0,0]
["19",null,19,0,0]
["20",null,20,0,0]
["21",null,21,0,0]
["22",null,22,0,0]
["23",null,23,0,0]
["24",null,24,0,0]
["25",null,"25-29",0,0]
["30",null,"30-34",0,0]
["35",null,"35-39",0,0]
["40",null,"40-44",0,0]
["45",null,"45-49",0,0]
["50",null,"50-54",0,0]
["55",null,"55-59",0,0]
["60",null,"60-64",0,0]
["65",null,"65-69",0,0]
["70",null,"70-74",0,0]
["75",null,"75-79",0,0]
["80",null,"80 y más",{"$f":"F70+H70+J70+L70+N70+P70+R70+T70","v":0},{"$f":"G70+I70+K70+M70+O70+Q70+S70+U70","v":0}]
[null,null,"Nota: Incluya a los alumnos con algún tipo de Necesidad Educativa Especial (NEE)."]
[]
[null,null,203," MATRÍCULA DE JÓVENES Y ADULTOS DEL (LOS) PERÍODO(S) PROMOCIONAL(ES) CORRESPONDIENTE A LA FECHA DE REPORTE DEL CEBA-REFERENCIAL, POR FORMA DE ATENCIÓN, GRADO Y SEXO, SEGÚN SITUACIÓN AL MATRICULARSE"]
[]
[null,null,"SITUACIÓN AL MATRICULARSE",null,null,null,"TOTAL",null,"CEBA (Referencial)"]
[null,null,null,null,null,null,null,null,"PRESENCIAL",null,null,null,null,null,null,null,"SEMI-PRESENCIAL"]
[null,null,null,null,null,null,null,null,"1º",null,"2º",null,"3º",null,"4º",null,"1º",null,"2º",null,"3º",null,"4º"]
[null,null,null,null,null,null,"H","M","H","M","H","M","H","M","H","M","H","M","H","M","H","M","H","M"]
["00",null,"TOTAL",null,null,null,{"$f":"I79+K79+M79+O79+Q79+S79+U79+W79","v":0},0,{"$f":"SUM(I80:I85)","v":0},0,0,0,0,0,0,0,0,0,0,0,0,0,0,0]
["01",null,"INGRESANTES ",null,null,null,0,0]
["02",null,"PROMOVIDOS del mismo CEBA",null,null,null,0,0]
["03",null,"PROMOVIDOS de otro CEBA",null,null,null,{"$f":"I82+K82+M82+O82+Q82+S82+U82+W82","v":0},{"$f":"J82+L82+N82+P82+R82+T82+V82+X82","v":0}]
["04",null,"PERMANECE EN EL GRADO en el mismo CEBA",null,null,null,0,0]
["05",null,"PERMANECE EN EL GRADO de otro CEBA",null,null,null,0,0]
["06",null,"REENTRANTES",null,null,null,0,0]
[null,null,"Nota: Los totales de esta tabla deben ser iguales a los de la tabla 201."]
[]
[null,null,204,"MATRÍCULA DE JÓVENES Y ADULTOS DEL (LOS) PERÍODO(S) PROMOCIONAL(ES) CORRESPONDIENTE A LA FECHA DE REPORTE DE LOS PERIFÉRICOS, POR FORMA DE ATENCIÓN, GRADO Y SEXO, SEGÚN SITUACIÓN AL MATRICULARSE"]
[]
[null,null,"SITUACIÓN AL MATRICULARSE",null,null,null,"TOTAL",null,"PERIFÉRICO"]
[null,null,null,null,null,null,null,null,"PRESENCIAL",null,null,null,null,null,null,null,"SEMI-PRESENCIAL"]
[null,null,null,null,null,null,null,null,"1º",null,"2º",null,"3º",null,"4º",null,"1º",null,"2º",null,"3º",null,"4º"]
[null,null,null,null,null,null,"H","M","H","M","H","M","H","M","H","M","H","M","H","M","H","M","H","M"]
["00",null,"TOTAL",null,null,null,{"$f":"I94+K94+M94+O94+Q94+S94+U94+W94","v":0},{"$f":"J94+L94+N94+P94+R94+T94+V94+X94","v":0},{"$f":"SUM(I95:I102)","v":0},0,0,0,0,0,0,0,0,0,0,0,0,0,0,0]
["01",null,"INGRESANTES",null,null,null,{"$f":"I95+Q95","v":0},0]
["02",null,"INGRESANTES  provienen de PACE",null,null,null,0,0]
["03",null,"INGRESANTES  provienen de la EBR",null,null,null,0,0]
["04",null,"PROMOVIDOS del mismo Periférico",null,null,null,{"$f":"I98+K98+M98+O98+Q98+S98+U98+W98","v":0},0]
["05",null,"PROMOVIDOS de otro CEBA",null,null,null,{"$f":"I99+K99+M99+O99+Q99+S99+U99+W99","v":0},{"$f":"J99+L99+N99+P99+R99+T99+V99+X99","v":0}]
["06",null,"PERMANECE EN EL GRADO en el mismo Periférico",null,null,null,0,0]
["07",null,"PERMANECE EN EL GRADO de otro CEBA",null,null,null,0,0]
["08",null,"REENTRANTES",null,null,null,0,0]
[null,null,"Nota: Los totales de esta tabla deben ser iguales a los de la tabla 202."]
[]
[null,null,205,"NÚMERO DE INGRESANTES DEL (LOS) PROMOCIONAL(ES) CORRESPONDIENTE A LA FECHA DE REPORTE DEL CEBA (REFERENCIAL) EN LA FORMA DE ATENCIÓN PRESENCIAL, POR EDAD, SEGÚN SEXO"]
[]
[null,null,"SEXO","TOTAL","EDAD EN AÑOS CUMPLIDOS"]
[null,null,null,null,14,15,16,17,18,19,20,21,22,23,24,"25-29","30-34","35-39","40\ny más"]
["01",null," Hombre",{"$f":"SUM(E109:S109)","v":0}]
["02",null," Mujer",{"$f":"SUM(E110:S110)","v":0}]
[null,null,"Nota: Los totales de esta tabla deben ser iguales a los ingresantes (CEBA presencial) de la tabla 203"]
[]
[null,null,206,"NÚMERO DE INGRESANTES DEL (LOS) PROMOCIONAL(ES) CORRESPONDIENTE A LA FECHA DE REPORTE DEL CEBA (REFERENCIAL) EN LA FORMA DE ATENCIÓN SEMI-PRESENCIAL, POR EDAD, SEGÚN SEXO"]
[]
[null,null,"SEXO","TOTAL","EDAD EN AÑOS CUMPLIDOS"]
[null,null,null,null,14,15,16,17,18,19,20,21,22,23,24,"25-29","30-34","35-39","40\ny más"]
["01",null," Hombre",{"$f":"SUM(E117:S117)","v":0}]
["02",null," Mujer",{"$f":"SUM(E118:S118)","v":0}]
[null,null,"Nota: Los totales de esta tabla deben ser iguales a los ingresantes (CEBA semi-presencial) de la tabla 203"]
[]
[null,null,207,"NÚMERO DE INGRESANTES DEL (LOS) PROMOCIONAL(ES) CORRESPONDIENTE A LA FECHA DE REPORTE DE LOS PERIFÉRICOS EN LA FORMA DE ATENCIÓN PRESENCIAL, POR EDAD, SEGÚN SEXO."]
[]
[null,null,"SEXO","TOTAL","EDAD EN AÑOS CUMPLIDOS"]
[null,null,null,null,14,15,16,17,18,19,20,21,22,23,24,"25-29","30-34","35-39","40\ny más"]
["01",null," Hombre",{"$f":"SUM(E125:S125)","v":0}]
["02",null," Mujer",{"$f":"SUM(E126:S126)","v":0}]
[null,null,"Nota: Los totales de esta tabla deben ser iguales a los ingresantes (periférico presencial) de la tabla 204"]
[]
[null,null,208,"NÚMERO DE INGRESANTES DEL (LOS) PROMOCIONAL(ES) CORRESPONDIENTE A LA FECHA DE REPORTE DE LOS PERIFÉRICOS EN LA FORMA DE ATENCIÓN SEMI-PRESENCIAL, POR EDAD, SEGÚN SEXO"]
[]
[null,null,"SEXO","TOTAL","EDAD EN AÑOS CUMPLIDOS"]
[null,null,null,null,14,15,16,17,18,19,20,21,22,23,24,"25-29","30-34","35-39","40\ny más"]
["01",null," Hombre",{"$f":"SUM(E133:S133)","v":0}]
["02",null," Mujer",{"$f":"SUM(E134:S134)","v":0}]
[null,null,"Nota: Los totales de esta tabla deben ser iguales a los ingresantes (periférico presencial) de la tabla 204"]
[]
[null,null,209,"MATRÍCULA DE JÓVENES Y ADULTOS DEL (LOS) PERÍODO(S) PROMOCIONAL(ES) CORRESPONDIENTES A LA FECHA DE REPORTE DE LA FORMA DE ATENCIÓN A DISTANCIA, POR GRADO Y SEXO, SEGÚN EDAD"]
[]
[null,null,"Edad en años cumplidos al\n31-03-2025","TOTAL",null,"DISTANCIA"]
[null,null,null,null,null,"1º",null,"2º",null,"3º",null,"4º"]
[null,null,null,"H","M","H","M","H","M","H","M","H","M"]
["00",null,"TOTAL",{"$f":"F142+H142+J142+L142","v":0},0,{"$f":"SUM(F143:F165)","v":0},0,0,0,0,0,0,0]
["14",null,14,0,0]
["15",null,15,0,0]
["16",null,16,0,0]
["17",null,17,0,0]
["18",null,18,0,0]
["19",null,19,0,0]
["20",null,20,0,0]
["21",null,21,0,0]
["22",null,22,0,0]
["23",null,23,0,0]
["24",null,24,0,0]
["25",null,"25-29",0,0]
["30",null,"30-34",0,0]
["35",null,"35-39",0,0]
["40",null,"40-44",0,0]
["45",null,"45-49",{"$f":"F158+H158+J158+L158","v":0},0]
["50",null,"50-54",0,0]
["55",null,"55-59",0,0]
["60",null,"60-64",0,0]
["65",null,"65-69",0,0]
["70",null,"70-74",0,0]
["75",null,"75-79",0,0]
["80",null,"80 y más",{"$f":"F165+H165+J165+L165","v":0},{"$f":"G165+I165+K165+M165","v":0}]
[]
[null,null,210,"MATRÍCULA DE JÓVENES Y ADULTOS DEL (LOS) PERÍODO(S) PROMOCIONAL(ES) CORRESPONDIENTES A LA FECHA DE REPORTE DE LOS CEBA-REFERENCIAL Y PERIFÉRICOS, POR FORMA DE ATENCIÓN Y SEXO, SEGÚN TIPO DE DISCAPACIDAD"]
[]
[null,null,"TIPO DE DISCAPACIDAD",null,null,null,"¿Detectó  está discapa- cidad?","TOTAL",null,"CEBA (Referencial)",null,null,null,null,null,"PERIFÉRICO"]
[null,null,null,null,null,null,null,null,null,"Presencial",null,"Semipresencial",null,"Distancia",null,"Presencial",null,"Semipresencial"]
[null,null,null,null,null,{"$f":"COUNTIF(G173:G184,\"SI\") + COUNTIF(G173:G184,\"NO\")","v":0},null,"H","M","H","M","H","M","H","M","H","M","H","M"]
["00",null,"TOTAL",null,null,null,"SN",{"$f":"J172+L172+N172+P172+R172","v":0},{"$f":"K172+M172+O172+Q172+S172","v":0},{"$f":"SUM(J173:J184)","v":0},0,0,0,0,0,0,0,0,0]
["01",null,"Discapacidad Intelectual - Leve",null,null,null,null,{"$f":"J173+L173+N173+P173+R173","v":0},{"$f":"K173+M173+O173+Q173+S173","v":0}]
["02",null,"Discapacidad Intelectual - Moderada",null,null,null,null,{"$f":"J174+L174+N174+P174+R174","v":0},0]
["03",null,"Discapacidad Auditiva - Hipoacusia",null,null,null,null,0,0]
["04",null,"Discapacidad Auditiva - Sordera",null,null,null,null,0,0]
["05",null,"Discapacidad Visual - Baja Visión",null,null,null,null,0,0]
["06",null,"Discapacidad Visual - Ceguera",null,null,null,null,0,0]
["07",null,"Discapacidad Física o Motora",null,null,null,null,0,0]
["08",null,"TEA - Requiere de apoyo (Nivel 1)",null,null,null,null,0,0]
["09",null,"TEA - Requiere de apoyo notable  (Nivel 2)",null,null,null,null,0,0]
["10",null,"TEA - Requiere de apoyo muy notable  (Nivel 3)",null,null,null,null,0,0]
["11",null,"Sordoceguera",null,null,null,null,0,0]
["12",null,"Otra",null,null,null,null,{"$f":"J184+L184+N184+P184+R184","v":0},{"$f":"K184+M184+O184+Q184+S184","v":0}]
[null,null,null,null,null,null,{"$f":"COUNTIF(G173:G184,\"SI\")","v":0},{"$f":"SUM(H173:H184)","v":0},{"$f":"SUM(I173:I184)","v":0},{"$f":"F15+H15+J15+L15","v":0},{"$f":"G15+I15+K15+M15","v":0},{"$f":"N15+P15+R15+T15","v":0},{"$f":"O15+Q15+S15+U15","v":0},{"$f":"F142+H142+J142+L142","v":0},{"$f":"G142+I142+K142+M142","v":0},{"$f":"F47+H47+J47+L47","v":0},{"$f":"G47+I47+K47+M47","v":0},{"$f":"N47+P47+R47+T47","v":0},{"$f":"O47+Q47+S47+U47","v":0}]
[]
[null,null,211,"MATRÍCULA DE JÓVENES Y ADULTOS DEL (LOS) PERÍODO(S) PROMOCIONAL(ES) CORRESPONDIENTES A LA FECHA DE REPORTE DE LOS CEBA-REFERENCIAL Y PERIFÉRICOS, POR FORMA DE ATENCIÓN Y SEXO, SEGÚN OTRAS CONDICIONES DETECTADAS"]
[]
[null,null,"OTRAS CONDICIONES \nDETECTADAS",null,null,null,"¿Detectó  está condi- ción?","TOTAL",null,"CEBA (Referencial)",null,null,null,null,null,"PERIFÉRICO"]
[null,null,null,null,null,null,null,null,null,"Presencial",null,"Semipresencial",null,"Distancia",null,"Presencial",null,"Semipresencial"]
[null,null,null,null,null,{"$f":"COUNTIF(G193:G211,\"SI\") + COUNTIF(G193:G211,\"NO\")","v":0},null,"H","M","H","M","H","M","H","M","H","M","H","M"]
["00",null,"TOTAL",null,null,null,"SN",{"$f":"J192+L192+N192+P192+R192","v":0},{"$f":"K192+M192+O192+Q192+S192","v":0},{"$f":"SUM(J193:J211)","v":0},0,0,0,0,0,0,0,0,0]
["01",null,"Retraso global del desarrollo",null,null,null,null,{"$f":"J193+L193+N193+P193+R193","v":0},{"$f":"K193+M193+O193+Q193+S193","v":0}]
["02",null,"Trastorno por Déficit de Atención - TDAH",null,null,null,null,{"$f":"J194+L194+N194+P194+R194","v":0},0]
["03",null,"TEA - Dislexia",null,null,null,null,0,0]
["04",null,"TEA - Discalculia",null,null,null,null,0,0]
["05",null,"TEA - Disgrafia",null,null,null,null,0,0]
["06",null,"TEA - Otros",null,null,null,null,0,0]
["07",null,"Esquizofrenia (E)",null,null,null,null,0,0]
["08",null,"Depresión (D)",null,null,null,null,0,0]
["09",null,"Ansiedad (A)",null,null,null,null,0,0]
["10",null,"Trastornos de personalidad",null,null,null,null,0,0]
["11",null,"Otros de la salud mental, socioemocional o comport…",null,null,null,null,0,0]
["12",null,"Enfermedades Raras",null,null,null,null,0,0]
["13",null,"Talla Baja",null,null,null,null,0,0]
["14",null,"Menos de 15 días de hospitalización",null,null,null,null,0,0]
["15",null,"De 15 a 30 días de hospitalización",null,null,null,null,0,0]
["16",null,"Más de 30 días de hospitalización",null,null,null,null,0,0]
["17",null,"Talento",null,null,null,null,0,0]
["18",null,"Superdotación",null,null,null,null,{"$f":"J210+L210+N210+P210+R210","v":0},0]
["19",null,"Otros condiciones relacionadas",null,null,null,null,0,0]
[null,null,null,null,null,null,{"$f":"COUNTIF(G193:G211,\"SI\")","v":0},{"$f":"SUM(H193:H211)","v":0},{"$f":"SUM(I193:I211)","v":0}]
[null,null,"Nota :      Se recomienda dar lectura las notas que aparecen en el formato borrador o pdf,  donde se describe brevemente cada uno de las otras condiciones detectadas."]
[]
[]
[null,null,212,"PARA LOS CASOS DETECTADOS DE ESTUDIANTES CON OTRO TIPO DE NEE O ENFERMEDAD, INDIQUE ¿CUÁL FUE SU SITUACIÓN AL MATRICULARSE EN EL PRESENTE AÑO ?"]
[]
[null,null,"SITUACIÓN AL MATRICULARSE",null,null,null,null,null,null,null,null,"N° de estudiantes detectados"]
[]
["01",null,"Número de estudiantes con otro tipo de NEE o enfermedad que desertaron o se retiraron",null,null,null,null,null,null,null,null,null,null,{"$f":"SUM(H173:I184)","v":0}]
["02",null,"Número de estudiantes con otro tipo de NEE o enfermedad que promovieron de grado",null,null,null,null,null,null,null,null,null,null,{"$f":"SUM(H193:I211)","v":0}]
[]
[null,null,213,"MATRÍCULA DE JÓVENES Y ADULTOS DEL (LOS) PERÍODO(S) PROMOCIONAL(ES) CORRESPONDIENTES A LA FECHA DE REPORTE DE LOS CEBA-REFERENCIAL Y PERIFÉRICOS, POR FORMA DE ATENCIÓN Y SEXO, SEGÚN NÚMERO DE HIJOS"]
[]
[null,null,"NÚMERO DE HIJOS",null,"TOTAL",null,"CEBA (Referencial)",null,null,null,null,null,"PERIFÉRICO"]
[null,null,null,null,null,null,"Presencial",null,"Semi-presencial",null,"Distancia",null,"Presencial",null,"Semi-presencial"]
[null,null,null,null,"H","M","H","M","H","M","H","M","H","M","H","M"]
["00",null,"TOTAL",null,{"$f":"G228+I228+K228+M228+O228","v":0},0,{"$f":"SUM(G229:G234)","v":0},0,0,0,0,0,{"$f":"SUM(M229:M234)","v":0},{"$f":"SUM(N229:N234)","v":0},{"$f":"SUM(O229:O234)","v":0},{"$f":"SUM(P229:P234)","v":0}]
["01",null,0,null,0,0]
["02",null,1,null,0,0]
["03",null,2,null,0,0]
["04",null,3,null,0,0]
["05",null,4,null,0,0]
["06",null,"5 y más",null,0,0]
[null,null,"Nota: Los totales de esta tabla deben ser iguales a los totales por sexo de la tabla 201, 202 y 209."]
[]
[null,null,214,"MATRÍCULA DE JÓVENES Y ADULTOS DEL (LOS) PERÍODO(S) PROMOCIONAL(ES) CORRESPONDIENTES A LA FECHA DE REPORTE DE LOS CEBA-REFERENCIAL Y PERIFÉRICOS, POR FORMA DE ATENCIÓN, SEGÚN NÚMERO DE EMBARAZOS"]
[]
[null,null,"NUMERO DE EMBARAZOS",null,"TOTAL",null,"CEBA (Referencial)",null,null,null,null,null,"PERIFÉRICO"]
[null,null,null,null,null,null,"Presencial",null,"Semi-presencial",null,"Distancia",null,"Presencial",null,"Semi-presencial"]
["00",null,"TOTAL",null,{"$f":"SUM(G241:P241)","v":0},null,{"$f":"SUM(G242:H244)","v":0},null,{"$f":"SUM(I242:J244)","v":0},null,{"$f":"SUM(K242:L244)","v":0},null,{"$f":"SUM(M242:N244)","v":0},null,{"$f":"SUM(O242:P244)","v":0}]
["01",null,"Primer embarazo",null,{"$f":"SUM(G242:P242)","v":0}]
["02",null,"Segundo embarazo o más",null,{"$f":"SUM(G243:P243)","v":0}]
["03",null,"Ninguno",null,{"$f":"SUM(G244:P244)","v":0}]
[null,null,"Nota: Los totales de esta tabla deben ser iguales a los totales de la tabla 213 (Solo mujeres)"]
[null,null,"    "]
[null,null,215,"MATRÍCULA DE JÓVENES Y ADULTOS DEL (LOS) PERÍODO(S) PROMOCIONAL(ES) CORRESPONDIENTES A LA FECHA DE REPORTE DE LOS CEBA-REFERENCIAL Y PERIFÉRICOS, POR FORMA DE ATENCIÓN Y SEXO, SEGÚN TIPO DE OCUPACIÓN"]
[]
[null,null,"TIPO DE OCUPACIÓN",null,"TOTAL",null,"CEBA (Referencial)",null,null,null,null,null,"PERIFÉRICO"]
[null,null,null,null,null,null,"Presencial",null,"Semi-presencial",null,"Distancia",null,"Presencial",null,"Semi-presencial"]
[null,null,null,null,"H","M","H","M","H","M","H","M","H","M","H","M"]
["00",null,"TOTAL",null,{"$f":"G252+I252+K252+M252+O252","v":0},{"$f":"H252+J252+L252+N252+P252","v":0},{"$f":"SUM(G253:G260)","v":0},0,0,0,0,0,0,0,0,0]
["01",null,"Empleado",null,{"$f":"G253+I253+K253+M253+O253","v":0},{"$f":"H253+J253+L253+N253+P253","v":0}]
["02",null,"Obrero",null,{"$f":"G254+I254+K254+M254+O254","v":0},0]
["03",null,"Ambulante",null,0,0]
["04",null,"Trabajador Independiente",null,0,0]
["05",null,"Trabajador del Hogar",null,0,0]
["06",null,"Trabajador Familiar",null,0,0]
["07",null,"Otro",null,0,0]
["08",null,"Solo estudia",null,{"$f":"G260+I260+K260+M260+O260","v":0},{"$f":"H260+J260+L260+N260+P260","v":0}]
[null,null,"Nota: Los totales de esta tabla deben ser iguales a los de la tabla 201, 202 y 209."]
[]
[null,null,216,"MATRÍCULA DE JÓVENES Y ADULTOS DEL (LOS) PERÍODO(S) PROMOCIONAL(ES) CORRESPONDIENTES A LA FECHA DE REPORTE DE LOS CEBA-REFERENCIAL, PERIFÉRICOS, POR FORMA DE ATENCIÓN Y SEXO, SEGÚN MIEMBROS DEL HOGAR"]
[]
[null,null,"TIPO DEL MIEMBRO EN EL HOGAR",null,"TOTAL",null,"CEBA (Referencial)",null,null,null,null,null,"PERIFÉRICO"]
[null,null,null,null,null,null,"Presencial",null,"Semi-presencial",null,"Distancia",null,"Presencial",null,"Semi-presencial"]
[null,null,null,null,"H","M","H","M","H","M","H","M","H","M","H","M"]
["00",null,"TOTAL",null,{"$f":"G268+I268+K268+M268+O268","v":0},0,{"$f":"SUM(G269:G270)","v":0},0,0,0,0,0,0,0,0,0]
["01",null,"Jefe(a) del hogar",null,0,0]
["02",null,"No es jefe(a) del hogar",null,0,0]
[null,null,"Nota: Los totales de esta tabla deben ser iguales a los de la tabla 201, 202 y 209."]
[]
[null,null,217,"MATRÍCULA DE JÓVENES Y ADULTOS DEL (LOS) PERÍODO(S) PROMOCIONALES CORRESPONDIENTE A LA FECHA DEL REPORTE DE LOS CEBA-REFERENCIAL, PERIFÉRICOS, POR FORMA DE ATENCIÓN, SEGÚN LENGUA MATERNA"]
[]
[null,null,"LENGUA",null,null,null,null,"CEBA (Referencial)",null,null,"PERIFÉRICO",null,null,"LENGUA",null,null,null,null,null,"CEBA (Referencial)",null,null,"PERIFÉRICO"]
[null,null,null,null,null,null,"TOTAL","Presencial","Semi presencial","Distancia","Presencial","Semi presencial",null,null,null,null,null,null,"TOTAL","Presencial","Semi presencial","Distancia","Presencial","Semi presencial"]
[null,null,"Código           Denominación",null,null,null,null,null,null,null,null,null,null,"Código           Denominación"]
[null,null,"0000","TOTAL",null,null,{"$f":"SUM(H278:L278)","v":0},{"$f":"SUM(H279:H312,T278:T312)","v":0},{"$f":"SUM(I279:I312,U278:U312)","v":0},{"$f":"SUM(J279:J312,V278:V312)","v":0},{"$f":"SUM(K279:K312,W278:W312)","v":0},{"$f":"SUM(L279:L312,X278:X312)","v":0},null,"3200","Omagua",null,null,null,{"$f":"SUM(T278:X278)","v":0}]
[null,null,"0100","Castellano",null,null,{"$f":"SUM(H279:L279)","v":0},null,null,null,null,null,null,"3310","Quechua amazónico (Kichwa)",null,null,null,{"$f":"SUM(T279:X279)","v":0}]
[null,null,"LENGUAS ORIGINARIAS DEL PERÚ",null,null,null,null,null,null,null,null,null,null,"3321","Quechua central (Ancash)",null,null,null,{"$f":"SUM(T280:X280)","v":0}]
[null,null,"0200","Achuar",null,null,0,null,null,null,null,null,null,"3322","Quechua central (Huánuco)",null,null,null,0]
[null,null,"0300","Aimara",null,null,0,null,null,null,null,null,null,"3323","Quechua central (Wanka)",null,null,null,0]
[null,null,"0400","Amahuaca",null,null,0,null,null,null,null,null,null,"3324","Quechua central (Pasco)",null,null,null,0]
[null,null,"0500","Arabela",null,null,0,null,null,null,null,null,null,"3331","Quechua norteño (Cajamarca)",null,null,null,0]
[null,null,"0600","Ashaninka",null,null,0,null,null,null,null,null,null,"3332","Quechua norteño (Inkawasi Kañaris)",null,null,null,0]
[null,null,"0610","Asheninka",null,null,0,null,null,null,null,null,null,"3341","Quechua sureño (Chanka)",null,null,null,0]
[null,null,"0700","Awajún",null,null,0,null,null,null,null,null,null,"3342","Quechua sureño (Collao)",null,null,null,0]
[null,null,"0800","Bora",null,null,0,null,null,null,null,null,null,"3400","Resigaro",null,null,null,0]
[null,null,"0900","Kapanawa",null,null,0,null,null,null,null,null,null,"3500","Secoya",null,null,null,0]
[null,null,"1000","Cashinahua",null,null,0,null,null,null,null,null,null,"3600","Sharanahua",null,null,null,0]
[null,null,"1100","Kawki",null,null,0,null,null,null,null,null,null,"3700","Shawi",null,null,null,0]
[null,null,"1200","Chamikuro",null,null,0,null,null,null,null,null,null,"3800","Shipibo-Konibo",null,null,null,0]
[null,null,"1300","Ese eja",null,null,0,null,null,null,null,null,null,"3900","Shiwilu",null,null,null,0]
[null,null,"1400","Harakbut",null,null,0,null,null,null,null,null,null,"4000","Taushiro",null,null,null,0]
[null,null,"1500","Iñapari",null,null,0,null,null,null,null,null,null,"4100","Ticuna",null,null,null,0]
[null,null,"1600","Ikitu",null,null,0,null,null,null,null,null,null,"4200","Urarina",null,null,null,0]
[null,null,"1700","Iskonawa",null,null,0,null,null,null,null,null,null,"4300","Wampis",null,null,null,0]
[null,null,"1800","Jaqaru",null,null,0,null,null,null,null,null,null,"4400","Yagua",null,null,null,0]
[null,null,"1900","Kakataibo",null,null,0,null,null,null,null,null,null,"4500","Yaminahua",null,null,null,0]
[null,null,"2000","Kakinte",null,null,0,null,null,null,null,null,null,"4600","Yanesha",null,null,null,0]
[null,null,"2110","Kandozi-chapra (chapra)",null,null,0,null,null,null,null,null,null,"4700","Yine",null,null,null,0]
[null,null,"2120","Kandozi-chapra (kandozi)",null,null,0,null,null,null,null,null,null,"4800","Nahua",null,null,null,0]
[null,null,"2200","Kukama kukamiria",null,null,0,null,null,null,null,null,null,4900,"Lengua de señas Peruana",null,null,null,{"$f":"SUM(T303:X303)","v":0}]
[null,null,"2300","Madija",null,null,0,null,null,null,null,null,null,"LENGUA EXTRANJERA"]
[null,null,"2400","Maijiki",null,null,0,null,null,null,null,null,null,"5100","Alemán",null,null,null,{"$f":"SUM(T305:X305)","v":0}]
[null,null,"2500","Matsés",null,null,0,null,null,null,null,null,null,"5200","Inglés",null,null,null,0]
[null,null,"2600","Matsigenka",null,null,0,null,null,null,null,null,null,"5300","Italiano",null,null,null,0]
[null,null,"2700","Muniche",null,null,0,null,null,null,null,null,null,"5400","Japonés",null,null,null,0]
[null,null,"2800","Murui-muinani",null,null,0,null,null,null,null,null,null,"5500","Portugués",null,null,null,0]
[null,null,"2900","Matsigenka-montetokunirira",null,null,0,null,null,null,null,null,null,"5600","Ruso",null,null,null,0]
[null,null,"3000","Nomatsigenga",null,null,0,null,null,null,null,null,null,"5700","Francés",null,null,null,0]
[null,null,"3100","Ocaina",null,null,{"$f":"SUM(H312:L312)","v":0},null,null,null,null,null,null,"5800","Otra",null,null,null,{"$f":"SUM(T312:X312)","v":0}]
[null,null,"Nota: Los totales de esta tabla deben ser iguales a los de la tabla 201, 202 y 209"]
[]
[null,null,218,"MATRÍCULA DE JÓVENES Y ADULTOS DEL (LOS) PERÍODO(S) PROMOCIONAL(ES) CORRESPONDIENTES A LA FECHA DE REPORTE DE LOS CEBA-REFERENCIAL Y PERIFÉRICOS, POR FORMA DE ATENCIÓN Y SEXO, SEGÚN ESTADO CIVIL"]
[]
[null,null,"ESTADO CIVIL",null,"TOTAL",null,"CEBA (Referencial)",null,null,null,null,null,"PERIFÉRICO"]
[null,null,null,null,null,null,"Presencial",null,"Semi-presencial",null,"Distancia",null,"Presencial",null,"Semi-presencial"]
[null,null,null,null,"H","M","H","M","H","M","H","M","H","M","H","M"]
["00",null,"TOTAL",null,{"$f":"G320+I320+K320+M320+O320","v":0},0,{"$f":"SUM(G321:G326)","v":0},0,0,0,0,0,0,0,0,0]
["01",null,"Soltero(a)",null,0,0]
["02",null,"Casado(a)",null,0,0]
["03",null,"Conviviente",null,0,0]
["04",null,"Viudo(a)",null,0,0]
["05",null,"Divorciado(a)",null,0,0]
["06",null,"Separado(a)",null,0,0]
[null,null,"Nota: Los totales por sexo de esta tabla deben ser iguales a los totales por sexo de la tabla 201, 202 y 209."]
[]
[null,null,219,"MATRÍCULA DE JOVENES Y ADULTOS DEL (LOS) PERÍODO(S) PROMOCIONAL(ES) CORRESPONDIENTES A LA FECHA DEL REPORTE DE LOS CEBA-REFERENCIAL Y PERIFÉRICOS, POR FORMA DE ATENCIÓN Y SEXO, SEGÚN TIPO DE PROGRAMA DE REPARACIÓN EN EN EDUCACIÓN (Ley 28592)."]
[]
[null,null,"TIPO DE PROGRAMA DE REPARACIÓN EN EDUCACIÓN",null,"TOTAL",null,"CEBA (Referencial)",null,null,null,null,null,"PERIFÉRICO"]
[null,null,null,null,null,null,"Presencial",null,"Semi-presencial",null,"Distancia",null,"Presencial",null,"Semi-presencial",null,null,"  "]
[null,null,null,null,"H","M","H","M","H","M","H","M","H","M","H","M"]
["00",null,"TOTAL",null,{"$f":"G334+I334+K334+M334+O334","v":0},0,{"$f":"SUM(G335:G338)","v":0},0,0,0,0,0,0,0,0,{"$f":"SUM(P335:P338)","v":0}]
["01",null,"RUV",null,0,0]
["02",null,"REBRED",null,0,0]
["03",null,"Otros Programas del Estado",null,0,0]
["04",null,"Estudiantes no beneficiados",null,0,0]
[null,null,"Nota: Los totales por sexo de esta tabla deben ser iguales a los totales por sexo de la tabla 201, 202 y 209."]
[]
[null,null,220,"SECCIONES DEL (LOS) PERÍODO(S) PROMOCIONAL(ES) CORRESPONDIENTES A LA FECHA DE REPORTE DE LOS CEBA-REFERENCIAL Y PERIFÉRICO, POR FORMA DE ATENCIÓN Y GRADO, SEGÚN TURNO"]
[]
[null,null,null,null,"TOTAL","CEBA (Referencial)",null,null,null,null,null,null,null,null,null,null,null,"PERIFÉRICO"]
[null,null,"TURNO",null,null,"Presencial",null,null,null,"Semi-Presencial",null,null,null,"Distancia",null,null,null,"Presencial",null,null,null,"Semi-Presencial"]
[null,null,null,null,null,"1º","2º","3º","4º","1º","2º","3º","4º","1º","2º","3º","4º","1º","2º","3º","4º","1º","2º","3º","4º"]
["00",null,"TOTAL",null,{"$f":"SUM(F346:Y346)","v":0},{"$f":"SUM(F347:F350)","v":0},{"$f":"SUM(G347:G350)","v":0},{"$f":"SUM(H347:H350)","v":0},0,0,0,0,0,0,0,0,0,0,0,0,0,0,0,0,0]
["01",null,"Mañana",null,{"$f":"SUM(F347:Y347)","v":0}]
["02",null,"Tarde",null,{"$f":"SUM(F348:Y348)","v":0}]
["03",null,"Noche",null,{"$f":"SUM(F349:Y349)","v":0}]
["04",null,"Turno abierto ",null,{"$f":"SUM(F350:Y350)","v":0}]
[null,null,"Solo registre el número de secciones que tenga, por grado, según turno"]
[]
[null,null,221,"MATRÍCULA DE JÓVENES Y ADULTOS EN CEBA REFERENCIAL, POR FORMA DE ATENCIÓN PRESENCIAL O SEMIPRESENCIAL, SEGÚN CENTRO/DEPENDENCIA, GRADO Y SEXO"]
[]
[null,null,"FORMA DE\nATENCIÓN","TOTAL",null,{"$f":"'C100'!M67","v":0},"Centro Penitenciario",null,null,null,null,null,null,{"$f":"'C100'!M68","v":0},"Muelle o Caleta",null,null,null,null,null,null,{"$f":"'C100'!M69","v":0},"Dependencia de las FF.AA. (cuarteles)"]
[null,null,null,null,null,"1º",null,"2º",null,"3º",null,"4º",null,"1º",null,"2º",null,"3º",null,"4º",null,"1º",null,"2º",null,"3º",null,"4º"]
[null,null,null,"H","M","H","M","H","M","H","M","H","M","H","M","H","M","H","M","H","M","H","M","H","M","H","M","H","M"]
["00",null,"TOTAL",{"$f":"SUM(F358,H358,J358,L358,N358,P358,R358,T358,V358,X358,Z358,AB358)","v":0},0,{"$f":"SUM(F359:F360)","v":0},0,0,0,0,0,0,0,0,0,0,0,0,0,0,0,0,0,0,0,0,0,0,0]
["01",null,"Presencial",0,0]
["02",null,"Semi-presencial",0,0]
[null,null,null,null,null,{"$f":"F359+N359+V359+F367+N367+V367","v":0},{"$f":"G359+O359+W359+G367+O367+W367","v":0},0,0,0,0,0,0,{"$f":"F360+N360+V360+F368+N368+V368","v":0},{"$f":"G360+O360+W360+G368+O368+W368","v":0},0,0,0,0,0,0]
[null,null,"CONTINUACIÓN TABLA 221 …."]
[null,null,"FORMA DE\nATENCIÓN","TOTAL",null,{"$f":"'C100'!M70","v":0},"Centro de Adulto Mayor",null,null,null,null,null,null,{"$f":"'C100'!M71","v":0},"Centro Juveniles de Diagnóstico y Rehabilitación",null,null,null,null,null,null,{"$f":"'C100'!M72","v":0},"Otros"]
[null,null,null,null,null,"1º",null,"2º",null,"3º",null,"4º",null,"1º",null,"2º",null,"3º",null,"4º",null,"1º",null,"2º",null,"3º",null,"4º"]
[null,null,null,"H","M","H","M","H","M","H","M","H","M","H","M","H","M","H","M","H","M","H","M","H","M","H","M","H","M"]
["00",null,"TOTAL",{"$f":"SUM(F366,H366,J366,L366,N366,P366,R366,T366,V366,X366,Z366,AB366)","v":0},0,{"$f":"SUM(F367:F368)","v":0},0,0,0,0,0,0,0,0,0,0,0,0,0,0,0,0,0,0,0,0,0,0,0]
["01",null,"Presencial",0,0]
["02",null,"Semi-presencial",0,0]
[]
[null,null,222,"MATRÍCULA DE JÓVENES Y ADULTOS EN PERIFÉRICOS, POR FORMA DE ATENCIÓN PRESENCIAL O SEMIPRESENCIAL, SEGÚN CENTRO/DEPENDENCIA, GRADO Y SEXO"]
[]
[null,null,"FORMA DE\nATENCIÓN","TOTAL",null,{"$f":"'C100'!P67","v":0},"Centro Penitenciario",null,null,null,null,null,null,{"$f":"'C100'!P68","v":0},"Muelle o Caleta",null,null,null,null,null,null,{"$f":"'C100'!P69","v":0},"Dependencia de las FF.AA. (cuarteles)"]
[null,null,null,null,null,"1º",null,"2º",null,"3º",null,"4º",null,"1º",null,"2º",null,"3º",null,"4º",null,"1º",null,"2º",null,"3º",null,"4º"]
[null,null,null,"H","M","H","M","H","M","H","M","H","M","H","M","H","M","H","M","H","M","H","M","H","M","H","M","H","M"]
["00",null,"TOTAL",{"$f":"SUM(F375,H375,J375,L375,N375,P375,R375,T375,V375,X375,Z375,AB375)","v":0},0,{"$f":"SUM(F376:F377)","v":0},0,0,0,0,0,0,0,0,0,0,0,0,0,0,0,0,0,0,0,0,0,0,0]
["01",null,"Presencial",0,0]
["02",null,"Semi-presencial",0,0]
[null,null,null,null,null,{"$f":"F376+N376+V376+F384+N384+V384","v":0},{"$f":"G376+O376+W376+G384+O384+W384","v":0},0,0,0,0,0,0,{"$f":"F377+N377+V377+F385+N385+V385","v":0},{"$f":"G377+O377+W377+G385+O385+W385","v":0},0,0,0,0,0,0]
[null,null,"CONTINUACIÓN TABLA 222 …."]
[null,null,"FORMA DE\nATENCIÓN","TOTAL",null,{"$f":"'C100'!P70","v":0},"Centro de Adulto Mayor",null,null,null,null,null,null,{"$f":"'C100'!P71","v":0},"Centro Juveniles de Diagnóstico y Rehabilitación",null,null,null,null,null,null,{"$f":"'C100'!P72","v":0},"Otros"]
[null,null,null,null,null,"1º",null,"2º",null,"3º",null,"4º",null,"1º",null,"2º",null,"3º",null,"4º",null,"1º",null,"2º",null,"3º",null,"4º"]
[null,null,null,"H","M","H","M","H","M","H","M","H","M","H","M","H","M","H","M","H","M","H","M","H","M","H","M","H","M"]
["00",null,"TOTAL",{"$f":"SUM(F383,H383,J383,L383,N383,P383,R383,T383,V383,X383,Z383,AB383)","v":0},0,{"$f":"SUM(F384:F385)","v":0},0,0,0,0,0,0,0,0,0,0,0,0,0,0,0,0,0,0,0,0,0,0,0]
["01",null,"Presencial",0,0]
["02",null,"Semi-presencial",0,0]

{"sheet":"C300","index":4,"n_rows":198,"n_cols":74,"rows_kept":198,"cut":false,"hidden":true,"merged":[[15,55,16,55],[15,56,16,56],[16,48,17,48],[16,49,17,49],[14,45,14,54],[16,51,17,51],[16,52,17,52],[16,53,17,53],[16,54,17,54],[15,30,17,30],[15,28,17,28],[16,45,17,45],[16,46,17,46],[16,33,17,33],[15,36,16,36],[15,35,17,35],[15,29,17,29],[6,11,6,23],[15,26,17,26],[15,25,17,25],[15,24,17,24],[15,15,15,16],[15,11,17,11],[7,11,7,23],[14,15,14,16],[15,12,17,12],[15,57,17,57],[15,13,17,13],[15,14,17,14],[15,17,17,17],[15,18,17,18],[16,50,17,50],[15,19,17,19],[15,23,17,23],[15,20,17,20],[15,21,17,21],[15,22,17,22],[15,27,17,27],[15,31,17,31],[16,47,17,47],[15,34,17,34],[15,32,17,32]]}
[]
[null,null,null,null,null,null,null,null,null,null,null,null,null,"CENSO ESCOLAR 2025"]
[null,null,null,null,null,null,null,null,null,null,null,null,null,"MATRÍCULA, DOCENTES Y RECURSOS"]
[]
["PERSONAL",{"$f":"O10+V10","v":0}]
[]
["DOCENTES",{"$f":"COUNTIF($R$19:$R$148,\"01: Docente\")","v":0},null,null,null,null,null,null,null,null,null,"300. PERSONAL DOCENTE Y ADMINISTRATIVOS (Para II.EE. Públicas y Privadas)"]
["ADMINISTRATIVOS",{"$f":"COUNTIF(R19:R148,\"02: Administrativo\")","v":0},null,null,null,null,null,null,null,null,null,"En esta tabla, REGISTRE a todo el personal docente, auxiliares de educación y personal administrativo que se encuentre laborando en el servicio/nivel educativo durante el periodo\nde reporte del censo educativo. (EXCLUYA al personal que se encuentre haciendo uso de licencia y a los que han sido destacados a otra IE/DRE/UGEL)"]
[]
["DOCENTE DE AULA",{"$f":"COUNTIF(AG19:AG148,\"04: (111)-Docente de Aula / por horas\")","v":0},null,null,null,null,null,null,null,null,null,null,null,"TOTAL DOCENTES :",null,null,null,"DOCENTES DE AULA :",null,null,"ADMINISTRATIVOS : "]
[]
[null,{"$f":"B7+B8","v":0},null,null,null,null,null,null,null,null,null,"A continuación registre a todo el personal que desempeñe funciones docentes en el Servicio/Nivel educativo: Directivos con o sin aula a cargo, docentes de aula, jefes o jerárquicos."]
["LICENCIA",null,null,null,null,null,null,null,null,null,null,"Documentos fuente: Legajo de personal y CAP de la institución educativa."]
[null,null,3,4,5,6,7,8,9,10]
["DOC. LENGUA ORIGINARIA",{"$f":"SUM(J19:J148)","v":0},null,null,null,null,null,null,null,null,null,null,301.10000000000002,301.2,301.3,302,null,303,304,305,306,307,308,309,310,311,312,313,314,315,316,317,318,319,320,321,322,323,null,null,null,null,null,null,null,324,null,null,null,null,null,null,null,null,null,325.10000000000002,325.2,325.3]
["GESTIÓN",{"$f":"IF(OR('C100'!O37=\"X\",'C100'!V37=\"X\"),1,IF('C100'!AC37=\"X\",3,\"\"))","v":""},null,null,null,null,null,null,null,null,null,"Nº","Apellido Paterno","Apellido Materno","Nombres","Documento de Identidad",null,"Tipo de\nPersonal","Edad","Sexo","Lengua\nmaterna","¿Domina una\nlengua\noriginaria?\n\nSí - No","Lengua originaria\nque domina","Fuente de\nfinanciamiento","Condición Laboral","Modalidad de Contrato","Máximo nivel\neducativo alcanzado","Especialidad Pedagógica\nque ha estudiado","¿En qué tipo de\ninstitución obtuvo\nsu formación pedagógica?","Estudios de Postgrado en Pedagogía","Años de Experiencia Laboral","Años de\nexperiencia\nlaboral en\neste CEBA","Función o cargo","Director/ Sub director","Forma de atención","Centro donde labora","¿Tiene secciones a cargo?","Ciclo y grado atendido",null,null,null,null,null,null,null,"Área(s) curricular(es) a cargo. (Marque con una “X”, según corresponda",null,null,null,null,null,null,null,null,null,"¿ Atiende a estudiantes con NEE asociadas a discapacidad ?","¿Presenta alguna discapacidad?","Solo si respondió Sí en la pregunta\n325.2 ¿Cúal es el tipo de discapacidad?"]
[null,null,"Exp1","Exp2","Exp3","Exp4","Exp5","Exp6","Exp7","Exp8",null,null,null,null,null,302.10000000000002,302.2,null,null,null,null,null,null,null,null,null,null,null,null,null,null,null,null,"Situación en cargo\ndirectivo",null,null,null,"Referencial",null,null,null,"Periférico",null,null,null,"Mate\nmática","Comuni cación","Inglés","Arte y Cultura","Desarrollo Personal y Ciudadano","Educación Física","Ciencia y Tecnología y salud","Castellano como segúnda lengua","Educación para el Trabajo","Educación Religiosa"]
["302.1 Tipo de documento de Identidad","314. Tipo de inst. donde estudio","Corr","Escala","Gest","Secc","Fun cion","Duplex","Fmt","Leng",null,null,null,null,null,"Tipo","Número",null,null,null,null,null,null,null,null,null,null,null,null,null,null,null,null,null,null,null,"Si-No","1º","2º","3º","4º","1º","2º","3º","4º",null,null,null,null,null,null,null,null,null,null,"Sí / No","Sí / No"]
["01: DNI.","01: IESP (Público)",1,{"$f":"IF(AND(LEFT(R19,2)=\"01\",LEFT(Y19,2)=\"01\",LEFT(X19,2)=\"01\",E19=1),1,0)","v":0},{"$f":"$B$16","v":""},{"$f":"COUNTIF(AJ19:CF19,\"X\")","v":0},{"$f":"IF(R19<>\"\",VALUE(LEFT(R19,2)),0)","v":0},{"$f":"IF(Q19<>\"\",COUNTIF($Q$20:$Q$319,Q19),0)","v":0},{"$f":"IF(L19<>\"\",1,0)","v":0},{"$f":"IF(AND(R19=\"01: Docente\",V19=\"SI\"),1,0)","v":0},null,{"$f":"IF(C19<=$B$5,C19,\"\")","v":""},"","","","","","","","","","","","","","","","","","","","","","","","","","","","","","","","","","","","","","","","","","","","","",""]
["02: Carnet Ext.","02: IESP (Privado)",2,0,{"$f":"$B$16","v":""},0,{"$f":"IF(R20<>\"\",VALUE(LEFT(R20,2)),0)","v":0},{"$f":"IF(Q20<>\"\",COUNTIF($Q$20:$Q$319,Q20),0)","v":0},0,{"$f":"IF(AND(R20=\"01: Docente\",V20=\"SI\"),1,0)","v":0},null,{"$f":"IF(C20<=$B$5,C20,\"\")","v":""},"","","","","","","","","","","","","","","","","","","","","","","","","","","","","","","","","","","","","","","","","","","","","",""]
["03: Pasaporte","03: Universidad Privada",3,0,"",0,0,0,0,0,null,{"$f":"IF(C21<=$B$5,C21,\"\")","v":""},"","","","","","","","","","","","","","","","","","","","","","","","","","","","","","","","","","","","","","","","","","","","","","","","","","","","","","","","","","","","","",""]
[null,"04: Universidad Pública",4,0,"",0,0,0,0,0,null,"","","","","","","","","","","","","","","","","","","","","","","","","","","","","","","","","","","","","","","","","","","","","","","","","","","","","","","","","","","","","","",""]
["303. Tipo de Personal",null,5,0,"",0,0,0,0,0,null,"","","","","","","","","","","","","","","","","","","","","","","","","","","","","","","","","","","","","","","","","","","","","","","","","","","","","","","","","","","","","","",""]
["01: Docente","315. Segunda Especialidad",6,0,"",0,0,0,0,0,null,"","","","","","","","","","","","","","","","","","","","","","","","","","","","","","","","","","","","","","","","","","","","","","","","","","","","","","","","","","","","","","",""]
["02: Administrativo","Utilice las especialidades de la tabla de códigos 313.",7,0,"",0,0,0,0,0,null,"","","","","","","","","","","","","","","","","","","","","","","","","","","","","","","","","","","","","","","","","","","","","","","","","","","","","","","","","","","","","","",""]
["03: Aux. de Educación",null,8,0,"",0,0,0,0,0,null,"","","","","","","","","","","","","","","","","","","","","","","","","","","","","","","","","","","","","","","","","","","","","","","","","","","","","","","","","","","","","","",""]
[null,"316. Estudios de Postgrado en Pedagogía",9,0,"",0,0,0,0,0,null,"","","","","","","","","","","","","","","","","","","","","","","","","","","","","","","","","","","","","","","","","","","","","","","","","","","","","","","","","","","","","","",""]
["305. Sexo","Estudios de Maestría y doctorado",10,0,"",0,0,0,0,0,null,"","","","","","","","","","","","","","","","","","","","","","","","","","","","","","","","","","","","","","","","","","","","","","","","","","","","","","","","","","","","","","",""]
["Hombre","01: Maestria concluida con grado",11,0,"",0,0,0,0,0,null,"","","","","","","","","","","","","","","","","","","","","","","","","","","","","","","","","","","","","","","","","","","","","","","","","","","","","","","","","","","","","","",""]
["Mujer","02: Maestria concluida sin grado",12,0,"",0,0,0,0,0,null,"","","","","","","","","","","","","","","","","","","","","","","","","","","","","","","","","","","","","","","","","","","","","","","","","","","","","","","","","","","","","","",""]
[null,"03: Maestria en proceso",13,0,"",0,0,0,0,0,null,"","","","","","","","","","","","","","","","","","","","","","","","","","","","","","","","","","","","","","","","","","","","","","","","","","","","","","","","","","","","","","",""]
["306. Lengua Materna","04: Doctorado concluido con grado",14,0,"",0,0,0,0,0,null,"","","","","","","","","","","","","","","","","","","","","","","","","","","","","","","","","","","","","","","","","","","","","","","","","","","","","","","","","","","","","","",""]
["0100: Castellano","05: Doctorado concluido sin grado",15,0,"",0,0,0,0,0,null,"","","","","","","","","","","","","","","","","","","","","","","","","","","","","","","","","","","","","","","","","","","","","","","","","","","","","","","","","","","","","","",""]
["0200: Achuar","06: Doctorado en proceso",16,0,"",0,0,0,0,0,null,"","","","","","","","","","","","","","","","","","","","","","","","","","","","","","","","","","","","","","","","","","","","","","","","","","","","","","","","","","","","","","",""]
["0300: Aimara","07: Sin Postgrado",17,0,"",0,0,0,0,0,null,"","","","","","","","","","","","","","","","","","","","","","","","","","","","","","","","","","","","","","","","","","","","","","","","","","","","","","","","","","","","","","",""]
["0400: Amahuaca",null,18,0,"",0,0,0,0,0,null,"","","","","","","","","","","","","","","","","","","","","","","","","","","","","","","","","","","","","","","","","","","","","","","","","","","","","","","","","","","","","","",""]
["0500: Arabela",null,19,0,"",0,0,0,0,0,null,"","","","","","","","","","","","","","","","","","","","","","","","","","","","","","","","","","","","","","","","","","","","","","","","","","","","","","","","","","","","","","",""]
["0600: Asháninka","317. Tiempo de Servicio",20,0,"",0,0,0,0,0,null,"","","","","","","","","","","","","","","","","","","","","","","","","","","","","","","","","","","","","","","","","","","","","","","","","","","","","","","","","","","","","","",""]
["0610: Asheninka","Solo personal Nombrado.",21,0,"",0,0,0,0,0,null,"","","","","","","","","","","","","","","","","","","","","","","","","","","","","","","","","","","","","","","","","","","","","","","","","","","","","","","","","","","","","","",""]
["0700: Awajún","Tiempo contado expresado en años desde su fecha de Nombramiento",22,0,"",0,0,0,0,0,null,"","","","","","","","","","","","","","","","","","","","","","","","","","","","","","","","","","","","","","","","","","","","","","","","","","","","","","","","","","","","","","",""]
["0800: Bora",null,23,0,"",0,0,0,0,0,null,"","","","","","","","","","","","","","","","","","","","","","","","","","","","","","","","","","","","","","","","","","","","","","","","","","","","","","","","","","","","","","",""]
["0900: Kapanawa","318. Años de Experiencia Laboral",24,0,"",0,0,0,0,0,null,"","","","","","","","","","","","","","","","","","","","","","","","","","","","","","","","","","","","","","","","","","","","","","","","","","","","","","","","","","","","","","",""]
["1000: Cashinahua","Registre el total de años que tiene como experiencia",25,0,"",0,0,0,0,0,null,"","","","","","","","","","","","","","","","","","","","","","","","","","","","","","","","","","","","","","","","","","","","","","","","","","","","","","","","","","","","","","",""]
["1100: Kawki","en el Tipo de Personal que se está registrando (Tabla 301.)",26,0,"",0,0,0,0,0,null,"","","","","","","","","","","","","","","","","","","","","","","","","","","","","","","","","","","","","","","","","","","","","","","","","","","","","","","","","","","","","","",""]
["1200: Chamikuro",null,27,0,"",0,0,0,0,0,null,"","","","","","","","","","","","","","","","","","","","","","","","","","","","","","","","","","","","","","","","","","","","","","","","","","","","","","","","","","","","","","",""]
["1300: Ese eja","319. Años de experiencia laboral en este servicio/ nivel educativo",28,0,"",0,0,0,0,0,null,"","","","","","","","","","","","","","","","","","","","","","","","","","","","","","","","","","","","","","","","","","","","","","","","","","","","","","","","","","","","","","",""]
["1400: Harakbut","Anote el N° de años de experiencia prestando servicios",29,0,"",0,0,0,0,0,null,"","","","","","","","","","","","","","","","","","","","","","","","","","","","","","","","","","","","","","","","","","","","","","","","","","","","","","","","","","","","","","",""]
["1500: Iñapari","en este servicio/nivel educativo por el tipo de personal",30,0,"",0,0,0,0,0,null,"","","","","","","","","","","","","","","","","","","","","","","","","","","","","","","","","","","","","","","","","","","","","","","","","","","","","","","","","","","","","","",""]
["1600: Ikuitu","que se está registrando (Tabla 301.)",31,0,"",0,0,0,0,0,null,"","","","","","","","","","","","","","","","","","","","","","","","","","","","","","","","","","","","","","","","","","","","","","","","","","","","","","","","","","","","","","",""]
["1700: Iskonawa",null,32,0,"",0,0,0,0,0,null,"","","","","","","","","","","","","","","","","","","","","","","","","","","","","","","","","","","","","","","","","","","","","","","","","","","","","","","","","","","","","","",""]
["1800: Jaqaru","320. Escala Magisterial",33,0,"",{"$f":"COUNTIF(AJ51:CF51,\"X\")","v":0},0,0,0,0,null,"","","","","","","","","","","","","","","","","","","","","","","","","","","","","","","","","","","","","","","","","","","","","","","","","","","","","","","","","","","","","","",""]
["1900: Kakataibo","Complete los datos de Escala Magisterial, según corresponda",34,0,"",0,0,0,0,0,null,"","","","","","","","","","","","","","","","","","","","","","","","","","","","","","","","","","","","","","","","","","","","","","","","","","","","","","","","","","","","","","",""]
["2000: Kakinte (caquinte)","01: Primera",35,0,"",0,0,0,0,0,null,"","","","","","","","","","","","","","","","","","","","","","","","","","","","","","","","","","","","","","","","","","","","","","","","","","","","","","","","","","","","","","",""]
["2110: Kandozi (Chapra)","02: Segunda",36,0,"",0,0,0,0,0,null,"","","","","","","","","","","","","","","","","","","","","","","","","","","","","","","","","","","","","","","","","","","","","","","","","","","","","","","","","","","","","","",""]
["2120: Kandozi (Kandozi)","03: Tercera",37,0,"",0,0,0,0,0,null,"","","","","","","","","","","","","","","","","","","","","","","","","","","","","","","","","","","","","","","","","","","","","","","","","","","","","","","","","","","","","","",""]
["2200: Kukama-kukamiria","04: Cuarta",38,0,"",0,0,0,0,0,null,"","","","","","","","","","","","","","","","","","","","","","","","","","","","","","","","","","","","","","","","","","","","","","","","","","","","","","","","","","","","","","",""]
["2300: Madija (culina)","05: Quinta",39,0,"",0,0,0,0,0,null,"","","","","","","","","","","","","","","","","","","","","","","","","","","","","","","","","","","","","","","","","","","","","","","","","","","","","","","","","","","","","","",""]
["2400: Maijiki","06: Sexta",40,0,"",0,0,0,0,0,null,"","","","","","","","","","","","","","","","","","","","","","","","","","","","","","","","","","","","","","","","","","","","","","","","","","","","","","","","","","","","","","",""]
["2500: Matsés","07: Séptima",41,0,"",0,0,0,0,0,null,"","","","","","","","","","","","","","","","","","","","","","","","","","","","","","","","","","","","","","","","","","","","","","","","","","","","","","","","","","","","","","",""]
["2600: Matsigenka","08: Octava",42,0,"",0,0,0,0,0,null,"","","","","","","","","","","","","","","","","","","","","","","","","","","","","","","","","","","","","","","","","","","","","","","","","","","","","","","","","","","","","","",""]
["2700: Munichi","09: Sin Escala",43,0,"",0,0,0,0,0,null,"","","","","","","","","","","","","","","","","","","","","","","","","","","","","","","","","","","","","","","","","","","","","","","","","","","","","","","","","","","","","","",""]
["2800: Murui-muinani",null,44,0,"",0,0,0,0,0,null,"","","","","","","","","","","","","","","","","","","","","","","","","","","","","","","","","","","","","","","","","","","","","","","","","","","","","","","","","","","","","","",""]
["2900: Matsigenka-montetokunirira","321. Función o Cargo",45,0,"",0,0,0,0,0,null,"","","","","","","","","","","","","","","","","","","","","","","","","","","","","","","","","","","","","","","","","","","","","","","","","","","","","","","","","","","","","","",""]
["3000: Nomatsigenga","(Desempeñado a la fecha de reporte)",46,0,"",0,0,0,0,0,null,"","","","","","","","","","","","","","","","","","","","","","","","","","","","","","","","","","","","","","","","","","","","","","","","","","","","","","","","","","","","","","",""]
["3100: Ocaina","Docentes",47,0,"",0,0,0,0,0,null,"","","","","","","","","","","","","","","","","","","","","","","","","","","","","","","","","","","","","","","","","","","","","","","","","","","","","","","","","","","","","","",""]
["3200: Omagua","01: (102)-Director",48,0,"",0,0,0,0,0,null,"","","","","","","","","","","","","","","","","","","","","","","","","","","","","","","","","","","","","","","","","","","","","","","","","","","","","","","","","","","","","","",""]
["3310: Quechua amazónico (Kichwa)","02: (103)-Sub Director",49,0,"",0,0,0,0,0,null,"","","","","","","","","","","","","","","","","","","","","","","","","","","","","","","","","","","","","","","","","","","","","","","","","","","","","","","","","","","","","","",""]
["3321: Quechua central (Ancash)","03: (106)-Coordinador, Asesor",50,0,"",0,0,0,0,0,null,"","","","","","","","","","","","","","","","","","","","","","","","","","","","","","","","","","","","","","","","","","","","","","","","","","","","","","","","","","","","","","",""]
["3322: Quechua central (Huánuco)","04: (111)-Docente de Aula / por horas",51,0,"",0,0,0,0,0,null,"","","","","","","","","","","","","","","","","","","","","","","","","","","","","","","","","","","","","","","","","","","","","","","","","","","","","","","","","","","","","","",""]
["3323: Quechua central (Wanka)","05: (112)-Docente de Educación Física",52,0,"",0,0,0,0,0,null,"","","","","","","","","","","","","","","","","","","","","","","","","","","","","","","","","","","","","","","","","","","","","","","","","","","","","","","","","","","","","","",""]
["3324: Quechua central (Pasco)","06: (113)-Docente de Computación",53,0,"",0,0,0,0,0,null,"","","","","","","","","","","","","","","","","","","","","","","","","","","","","","","","","","","","","","","","","","","","","","","","","","","","","","","","","","","","","","",""]
["3331: Quechua norteño (Cajamarca)","07: (114)-Profesor de Innovación Pedagógica",54,0,"",0,0,0,0,0,null,"","","","","","","","","","","","","","","","","","","","","","","","","","","","","","","","","","","","","","","","","","","","","","","","","","","","","","","","","","","","","","",""]
["3332: Quechua norteño (Inkawasi Kañaris)","08: (115)-Docente Especial - otro",55,0,"",0,0,0,0,0,null,"","","","","","","","","","","","","","","","","","","","","","","","","","","","","","","","","","","","","","","","","","","","","","","","","","","","","","","","","","","","","","",""]
["3341: Quechua sureño (Chanka)","09: (116)-Docente de Aula con función o cargo directivo",56,0,"",0,0,0,0,0,null,"","","","","","","","","","","","","","","","","","","","","","","","","","","","","","","","","","","","","","","","","","","","","","","","","","","","","","","","","","","","","","",""]
["3342: Quechua sureño (Collao)","10: (138)-Tutor a distancia",57,0,"",0,0,0,0,0,null,"","","","","","","","","","","","","","","","","","","","","","","","","","","","","","","","","","","","","","","","","","","","","","","","","","","","","","","","","","","","","","",""]
["3400: Resígaro","11: (139)-Otro docente",58,0,"",0,0,0,0,0,null,"","","","","","","","","","","","","","","","","","","","","","","","","","","","","","","","","","","","","","","","","","","","","","","","","","","","","","","","","","","","","","",""]
["3500: Secoya",null,59,0,"",0,0,0,0,0,null,"","","","","","","","","","","","","","","","","","","","","","","","","","","","","","","","","","","","","","","","","","","","","","","","","","","","","","","","","","","","","","",""]
["3600: Sharanahua",null,60,0,"",0,0,0,0,0,null,"","","","","","","","","","","","","","","","","","","","","","","","","","","","","","","","","","","","","","","","","","","","","","","","","","","","","","","","","","","","","","",""]
["3700: Shawi",null,61,0,"",0,0,0,0,0,null,"","","","","","","","","","","","","","","","","","","","","","","","","","","","","","","","","","","","","","","","","","","","","","","","","","","","","","","","","","","","","","",""]
["3800: Shipibo-Konibo",null,62,0,"",0,0,0,0,0,null,"","","","","","","","","","","","","","","","","","","","","","","","","","","","","","","","","","","","","","","","","","","","","","","","","","","","","","","","","","","","","","",""]
["3900: Shiwilu",null,63,0,"",0,0,0,0,0,null,"","","","","","","","","","","","","","","","","","","","","","","","","","","","","","","","","","","","","","","","","","","","","","","","","","","","","","","","","","","","","","",""]
["4000: Taushiro",null,64,0,"",0,0,0,0,0,null,"","","","","","","","","","","","","","","","","","","","","","","","","","","","","","","","","","","","","","","","","","","","","","","","","","","","","","","","","","","","","","",""]
["4100: Ticuna",null,65,{"$f":"IF(AND(LEFT(R83,2)=\"01\",LEFT(Y83,2)=\"01\",LEFT(X83,2)=\"01\",E83=1),1,0)","v":0},"",{"$f":"COUNTIF(AJ83:CF83,\"X\")","v":0},0,0,{"$f":"IF(L83<>\"\",1,0)","v":0},0,null,"","","","","","","","","","","","","","","","","","","","","","","","","","","","","","","","","","","","","","","","","","","","","","","","","","","","","","","","","","","","","","",""]
["4200: Urarina",null,66,0,{"$f":"$B$16","v":""},0,{"$f":"IF(R84<>\"\",VALUE(LEFT(R84,2)),0)","v":0},{"$f":"IF(Q84<>\"\",COUNTIF($Q$20:$Q$319,Q84),0)","v":0},0,{"$f":"IF(AND(R84=\"01: Docente\",V84=\"SI\"),1,0)","v":0},null,"","","","","","","","","","","","","","","","","","","","","","","","","","","","","","","","","","","","","","","","","","","","","","","","","","","","","","","","","","","","","","",""]
["4300: Wampis",null,67,0,"",0,0,0,0,0,null,{"$f":"IF(C85<=$B$5,C85,\"\")","v":""},"","","","","","","","","","","","","","","","","","","","","","","","","","","","","","","","","","","","","","","","","","","","","","","","","","","","","","","","","","","","","",""]
["4400: Yagua","Administrativos",68,0,"",0,0,0,0,0,null,"","","","","","","","","","","","","","","","","","","","","","","","","","","","","","","","","","","","","","","","","","","","","","","","","","","","","","","","","","","","","","",""]
["4500: Yaminahua","12: (501)-Psicólogo",69,0,"",0,0,0,0,0,null,"","","","","","","","","","","","","","","","","","","","","","","","","","","","","","","","","","","","","","","","","","","","","","","","","","","","","","","","","","","","","","",""]
["4600: Yanesha","13: (502)-Trabajo social / Servicio social",70,0,"",0,0,0,0,0,null,"","","","","","","","","","","","","","","","","","","","","","","","","","","","","","","","","","","","","","","","","","","","","","","","","","","","","","","","","","","","","","",""]
["4700: Yine","14: (503)-Personal de Salud",71,0,"",0,0,0,0,0,null,"","","","","","","","","","","","","","","","","","","","","","","","","","","","","","","","","","","","","","","","","","","","","","","","","","","","","","","","","","","","","","",""]
["4800: Nahua","15: (504)-Administrador o contador",72,0,"",0,0,0,0,0,null,"","","","","","","","","","","","","","","","","","","","","","","","","","","","","","","","","","","","","","","","","","","","","","","","","","","","","","","","","","","","","","",""]
["5100: Alemán","16: (537)-Guía intérprete de sordoceguera",73,0,"",0,0,0,0,0,null,"","","","","","","","","","","","","","","","","","","","","","","","","","","","","","","","","","","","","","","","","","","","","","","","","","","","","","","","","","","","","","",""]
["5200: Inglés","17: (538)-Intérprete de Lengua de Señas Peruana",74,0,"",0,0,0,0,0,null,"","","","","","","","","","","","","","","","","","","","","","","","","","","","","","","","","","","","","","","","","","","","","","","","","","","","","","","","","","","","","","",""]
["5300: Italiano","18: (539)-Modelo Lingüístico",75,0,"",0,0,0,0,0,null,"","","","","","","","","","","","","","","","","","","","","","","","","","","","","","","","","","","","","","","","","","","","","","","","","","","","","","","","","","","","","","",""]
["5400: Japonés","19: (506)-Auxiliar de Biblioteca",76,0,"",0,0,0,0,0,null,"","","","","","","","","","","","","","","","","","","","","","","","","","","","","","","","","","","","","","","","","","","","","","","","","","","","","","","","","","","","","","",""]
["5500: Portugués","20: (507)-Auxiliar de Laboratorio",77,0,"",0,0,0,0,0,null,"","","","","","","","","","","","","","","","","","","","","","","","","","","","","","","","","","","","","","","","","","","","","","","","","","","","","","","","","","","","","","",""]
["5600: Ruso","21: (508)-Secretaria u Oficinista",78,0,"",0,0,0,0,0,null,"","","","","","","","","","","","","","","","","","","","","","","","","","","","","","","","","","","","","","","","","","","","","","","","","","","","","","","","","","","","","","",""]
["5700: Francés","22: (510)-Coordinador de Taller",79,0,"",0,0,0,0,0,null,"","","","","","","","","","","","","","","","","","","","","","","","","","","","","","","","","","","","","","","","","","","","","","","","","","","","","","","","","","","","","","",""]
["5800: Otra lengua extranjera","23: (511)-Asistente Administrativo",80,0,"",0,0,0,0,0,null,"","","","","","","","","","","","","","","","","","","","","","","","","","","","","","","","","","","","","","","","","","","","","","","","","","","","","","","","","","","","","","",""]
[null,"24: (512)-Personal de Servicio - Mantenimiento",81,0,"",0,0,0,0,0,null,"","","","","","","","","","","","","","","","","","","","","","","","","","","","","","","","","","","","","","","","","","","","","","","","","","","","","","","","","","","","","","",""]
["308. Lengua Originaria","25: (513)-Personal de Servicio - Cocina",82,0,"",0,0,0,0,0,null,"","","","","","","","","","","","","","","","","","","","","","","","","","","","","","","","","","","","","","","","","","","","","","","","","","","","","","","","","","","","","","",""]
["De: 0200 a 4800","26: (514)-Personal de Servicio - Limpieza",83,0,"",0,0,0,0,0,null,"","","","","","","","","","","","","","","","","","","","","","","","","","","","","","","","","","","","","","","","","","","","","","","","","","","","","","","","","","","","","","",""]
[null,"27: (515)-Personal de Servicio - Portero",84,0,"",0,0,0,0,0,null,"","","","","","","","","","","","","","","","","","","","","","","","","","","","","","","","","","","","","","","","","","","","","","","","","","","","","","","","","","","","","","",""]
["309. Fuente de Financiamiento","28: (516)-Personal de Servicio - Vigilante",85,0,"",0,0,0,0,0,null,"","","","","","","","","","","","","","","","","","","","","","","","","","","","","","","","","","","","","","","","","","","","","","","","","","","","","","","","","","","","","","",""]
["01: Sector Educación","29: (517)-Personal de servicio - Otro",86,0,"",0,0,0,0,0,null,"","","","","","","","","","","","","","","","","","","","","","","","","","","","","","","","","","","","","","","","","","","","","","","","","","","","","","","","","","","","","","",""]
["02: Otro sector público","30: (505)-Otro personal profesional",87,0,"",0,0,0,0,0,null,"","","","","","","","","","","","","","","","","","","","","","","","","","","","","","","","","","","","","","","","","","","","","","","","","","","","","","","","","","","","","","",""]
["03: Municipalidad","31: (518)-Otro personal No profesional",88,0,"",0,0,0,0,0,null,"","","","","","","","","","","","","","","","","","","","","","","","","","","","","","","","","","","","","","","","","","","","","","","","","","","","","","","","","","","","","","",""]
["04: Gobierno Regional",null,89,0,"",0,0,0,0,0,null,"","","","","","","","","","","","","","","","","","","","","","","","","","","","","","","","","","","","","","","","","","","","","","","","","","","","","","","","","","","","","","",""]
["05: APAFA",null,90,0,"",0,0,0,0,0,null,"","","","","","","","","","","","","","","","","","","","","","","","","","","","","","","","","","","","","","","","","","","","","","","","","","","","","","","","","","","","","","",""]
["06: Otra fuente Privada",null,91,0,"",0,0,0,0,0,null,"","","","","","","","","","","","","","","","","","","","","","","","","","","","","","","","","","","","","","","","","","","","","","","","","","","","","","","","","","","","","","",""]
[null,null,92,0,"",0,0,0,0,0,null,"","","","","","","","","","","","","","","","","","","","","","","","","","","","","","","","","","","","","","","","","","","","","","","","","","","","","","","","","","","","","","",""]
["310. Condición Laboral",null,93,0,"",0,0,0,0,0,null,"","","","","","","","","","","","","","","","","","","","","","","","","","","","","","","","","","","","","","","","","","","","","","","","","","","","","","","","","","","","","","",""]
["01: Nombrado",null,94,0,"",0,0,0,0,0,null,"","","","","","","","","","","","","","","","","","","","","","","","","","","","","","","","","","","","","","","","","","","","","","","","","","","","","","","","","","","","","","",""]
["02: Contratado",null,95,0,"",0,0,0,0,0,null,"","","","","","","","","","","","","","","","","","","","","","","","","","","","","","","","","","","","","","","","","","","","","","","","","","","","","","","","","","","","","","",""]
["03: No aplica",null,96,0,"",0,0,0,0,0,null,"","","","","","","","","","","","","","","","","","","","","","","","","","","","","","","","","","","","","","","","","","","","","","","","","","","","","","","","","","","","","","",""]
[null,null,97,0,"",{"$f":"COUNTIF(AJ115:CF115,\"X\")","v":0},0,0,0,0,null,"","","","","","","","","","","","","","","","","","","","","","","","","","","","","","","","","","","","","","","","","","","","","","","","","","","","","","","","","","","","","","",""]
["311. Modalidad de Contrato",null,98,0,"",0,0,0,0,0,null,"","","","","","","","","","","","","","","","","","","","","","","","","","","","","","","","","","","","","","","","","","","","","","","","","","","","","","","","","","","","","","",""]
["Contrato Público",null,99,0,"",0,0,0,0,0,null,"","","","","","","","","","","","","","","","","","","","","","","","","","","","","","","","","","","","","","","","","","","","","","","","","","","","","","","","","","","","","","",""]
["01: A plazo fijo D. Leg. 728",null,100,0,"",0,0,0,0,0,null,"","","","","","","","","","","","","","","","","","","","","","","","","","","","","","","","","","","","","","","","","","","","","","","","","","","","","","","","","","","","","","",""]
["02: Locación de Serv. / Honorarios",null,101,0,"",0,0,0,0,0,null,"","","","","","","","","","","","","","","","","","","","","","","","","","","","","","","","","","","","","","","","","","","","","","","","","","","","","","","","","","","","","","",""]
["03: CAS - D. Leg. 1057","99: (999)-Auxiliar de Educación",102,0,"",0,0,0,0,0,null,"","","","","","","","","","","","","","","","","","","","","","","","","","","","","","","","","","","","","","","","","","","","","","","","","","","","","","","","","","","","","","",""]
["04: Contrato D. Leg. 276",null,103,0,"",0,0,0,0,0,null,"","","","","","","","","","","","","","","","","","","","","","","","","","","","","","","","","","","","","","","","","","","","","","","","","","","","","","","","","","","","","","",""]
["05: Contrato Ley 30328","322. Situación en el Cargo Directivo",104,0,"",0,0,0,0,0,null,"","","","","","","","","","","","","","","","","","","","","","","","","","","","","","","","","","","","","","","","","","","","","","","","","","","","","","","","","","","","","","",""]
["06: Otra modalidad","01: Designado",105,0,"",0,0,0,0,0,null,"","","","","","","","","","","","","","","","","","","","","","","","","","","","","","","","","","","","","","","","","","","","","","","","","","","","","","","","","","","","","","",""]
["Contrato Privado","02: Encargado",106,0,"",0,0,0,0,0,null,"","","","","","","","","","","","","","","","","","","","","","","","","","","","","","","","","","","","","","","","","","","","","","","","","","","","","","","","","","","","","","",""]
["07: A plazo indefinido (Permanente)",null,107,0,"",0,0,0,0,0,null,"","","","","","","","","","","","","","","","","","","","","","","","","","","","","","","","","","","","","","","","","","","","","","","","","","","","","","","","","","","","","","",""]
["08: Plazo fijo (Tiempo determinado)",null,108,0,"",0,0,0,0,0,null,"","","","","","","","","","","","","","","","","","","","","","","","","","","","","","","","","","","","","","","","","","","","","","","","","","","","","","","","","","","","","","",""]
["09: A tiempo parcial (por horas)",null,109,0,"",0,0,0,0,0,null,"","","","","","","","","","","","","","","","","","","","","","","","","","","","","","","","","","","","","","","","","","","","","","","","","","","","","","","","","","","","","","",""]
["10: Locación de Serv. / Honorarios",null,110,0,"",0,0,0,0,0,null,"","","","","","","","","","","","","","","","","","","","","","","","","","","","","","","","","","","","","","","","","","","","","","","","","","","","","","","","","","","","","","",""]
["11: Otra modalidad","323. Destaque o Licencia",111,0,"",0,0,0,0,0,null,"","","","","","","","","","","","","","","","","","","","","","","","","","","","","","","","","","","","","","","","","","","","","","","","","","","","","","","","","","","","","","",""]
[null,"01: Cubriendo una licencia",112,0,"",0,0,0,0,0,null,"","","","","","","","","","","","","","","","","","","","","","","","","","","","","","","","","","","","","","","","","","","","","","","","","","","","","","","","","","","","","","",""]
["312. Máximo Nivel Educativo Alcanzado","02: De otra I.E./DRE/UGEL",113,0,"",0,0,0,0,0,null,"","","","","","","","","","","","","","","","","","","","","","","","","","","","","","","","","","","","","","","","","","","","","","","","","","","","","","","","","","","","","","",""]
["01: EP.Concluidos con título","03: No Aplica",114,0,"",0,0,0,0,0,null,"","","","","","","","","","","","","","","","","","","","","","","","","","","","","","","","","","","","","","","","","","","","","","","","","","","","","","","","","","","","","","",""]
["02: EP.Concluidos sin título",null,115,0,"",0,0,0,0,0,null,"","","","","","","","","","","","","","","","","","","","","","","","","","","","","","","","","","","","","","","","","","","","","","","","","","","","","","","","","","","","","","",""]
["03: EP.No concluidos",null,116,0,"",0,0,0,0,0,null,"","","","","","","","","","","","","","","","","","","","","","","","","","","","","","","","","","","","","","","","","","","","","","","","","","","","","","","","","","","","","","",""]
["04: NP.Concluidos con título",null,117,0,"",0,0,0,0,0,null,"","","","","","","","","","","","","","","","","","","","","","","","","","","","","","","","","","","","","","","","","","","","","","","","","","","","","","","","","","","","","","",""]
["05: NP.Concluidos sin título","324. Jornada Laboral (Nombramiento / Contrato)",118,0,"",0,0,0,0,0,null,"","","","","","","","","","","","","","","","","","","","","","","","","","","","","","","","","","","","","","","","","","","","","","","","","","","","","","","","","","","","","","",""]
["06: NP.No concluidos","40: 40 horas",119,0,"",0,0,0,0,0,null,"","","","","","","","","","","","","","","","","","","","","","","","","","","","","","","","","","","","","","","","","","","","","","","","","","","","","","","","","","","","","","",""]
["07: Secundaria","30: 30 horas",120,0,"",0,0,0,0,0,null,"","","","","","","","","","","","","","","","","","","","","","","","","","","","","","","","","","","","","","","","","","","","","","","","","","","","","","","","","","","","","","",""]
["08: Primaria","25: 25 horas",121,0,"",0,0,0,0,0,null,"","","","","","","","","","","","","","","","","","","","","","","","","","","","","","","","","","","","","","","","","","","","","","","","","","","","","","","","","","","","","","",""]
[null,"24: 24 horas",122,0,"",0,0,0,0,0,null,"","","","","","","","","","","","","","","","","","","","","","","","","","","","","","","","","","","","","","","","","","","","","","","","","","","","","","","","","","","","","","",""]
["313. Especialidad del Título","23: Menos 24 horas",123,0,"",0,0,0,0,0,null,"","","","","","","","","","","","","","","","","","","","","","","","","","","","","","","","","","","","","","","","","","","","","","","","","","","","","","","","","","","","","","",""]
["01: Educación Inicial",null,124,0,"",0,0,0,0,0,null,"","","","","","","","","","","","","","","","","","","","","","","","","","","","","","","","","","","","","","","","","","","","","","","","","","","","","","","","","","","","","","",""]
["02: Educación Primaria","SI / NO",125,0,"",0,0,0,0,0,null,"","","","","","","","","","","","","","","","","","","","","","","","","","","","","","","","","","","","","","","","","","","","","","","","","","","","","","","","","","","","","","",""]
["03: E.I. Intercultural Bilingüe","SI",126,0,"",0,0,0,0,0,null,"","","","","","","","","","","","","","","","","","","","","","","","","","","","","","","","","","","","","","","","","","","","","","","","","","","","","","","","","","","","","","",""]
["04: E.P. Intercultural Bilingüe","NO",127,0,"",0,0,0,0,0,null,"","","","","","","","","","","","","","","","","","","","","","","","","","","","","","","","","","","","","","","","","","","","","","","","","","","","","","","","","","","","","","",""]
["05: Educación Básica Alternativa",null,128,0,"",0,0,0,0,0,null,"","","","","","","","","","","","","","","","","","","","","","","","","","","","","","","","","","","","","","","","","","","","","","","","","","","","","","","","","","","","","","",""]
["06: Educación Especial","331. Especialidad Artistica",129,{"$f":"IF(AND(LEFT(R147,2)=\"01\",LEFT(Y147,2)=\"01\",LEFT(X147,2)=\"01\",E147=1),1,0)","v":0},"",0,0,0,{"$f":"IF(L147<>\"\",1,0)","v":0},0,null,"","","","","","","","","","","","","","","","","","","","","","","","","","","","","","","","","","","","","","","","","","","","","","","","","","","","","","","","","","","","","","",""]
["07: Educación Física","01: Danza",130,0,{"$f":"$B$16","v":""},0,{"$f":"IF(R148<>\"\",VALUE(LEFT(R148,2)),0)","v":0},{"$f":"IF(Q148<>\"\",COUNTIF($Q$20:$Q$319,Q148),0)","v":0},0,{"$f":"IF(AND(R148=\"01: Docente\",V148=\"SI\"),1,0)","v":0},null,"","","","","","","","","","","","","","","","","","","","","","","","","","","","","","","","","","","","","","","","","","","","","","","","","","","","","","","","","","","","","","",""]
["08: Educación Artística","02: Música"]
["09: E.S. Lengua y Literatura","03: Teatro",null,null,null,null,null,null,null,null,null,null,"…","…","…","…","…","…","…","…","…","…","…","…","…","…","…","…","…","…","…","…","…","…","…","…","…","…","…","…","…","…","…","…","…","…","…","…","…","…","…","…","…","…","…","…","…","…"]
["10: E.S. Comunicación","04: Artes visuales"]
["11: E.S. Matemática y Física","05: Otra"]
["12: E.S. Matemática","336.2 ¿Cuál es el tipo de discapacidad?"]
["13: E.S. CCSS y Filosofía","01: Auditiva"]
["14: E.S. Ciencias Sociales","02: Visual"]
["15: E.S. Ciencias Naturales","03: Física o Motora"]
["16: E.S. Ciencia Tecnología y Ambiente","04: Otras"]
["17: E.S. Alimentación y Nutrición"]
["18: E.S. Biología y Química","337.3 Asistencia Técnica"]
["19: E.S. Historia y Geografía","01: Uso pedagógico de los cuadernos"]
["20: E.S. CC.HH. Sociales","02: TICs"]
["21: E.S. Idioma Inglés","03: Inclusión Financiera"]
["22: Educación Religiosa","04: Prevención de la violencia"]
["23: E.S. Educación Familiar","05: Otro"]
["24: E.T. Artes Industriales","06: No recibió asistencia técnica"]
["25: E.T. Artesanía"]
["26: E.T. Agropecuaria","339.3 ¿Cuál fue el tipo de estudios en EIB?"]
["27: E.T. Construcción en madera","01: Doctorado"]
["28: E.T. Computación e Informática","02: Maestría"]
["29: E.T. Carpintería/Ebanistería","03: Segunda especialidad"]
["30: E.T. Electricidad","04: Especialización"]
["31: E.T. Electrónica","05: Actualización"]
["32: E.T. Ebanistería","06: Otro"]
["33: E.T. Industria del Vestido"]
["34: E.T. Industria del Vestido Alimentación y Alta Costura","Parroquiales"]
["35: E.T. en Industria del Vestido y Alta Costura","05: APAFA"]
["36: E.T.Técnica Esp. Ind. del Vestido Ind.Alimentaria y Artes","06: Otra fuente Privada"]
["37: E.T. Industria Alimentaria","01: Sector Educación"]
["38: E.T. Mecánica Automotriz"]
["39: E.T. Mecánica de Producción"]
["40: E.T. Mecánica de Producción y Soldadura","Forma"]
["41: E.T. Textilería","01: Presencial"]
["42: Otra pedagógica","02: Semipresencial"]
[null,"03: Distancia"]
[null,"04: 01 y 02"]
["Area curriculares","05: 01 y 03"]
["01: Matemática","06: 02 y 03"]
["02: Comunicación","07: 01, 02 y 03"]
["03: Ingles"]
["04: Ciencias Sociales"]
["05: Desarrollo personal ciudadania …","Centro deonde labora"]
["06: Educación Física","01: CEBA Referencial"]
["07: Ciencia y Tecnología","02: Periférico"]
["08: Castellano como segunda lengua","03: Ambos"]
["09: Educación para el trabajo"]
["10: Educación religiosa"]
["11: Tutoría y Orientación Educativa"]
["12: Arte y cultura"]

{"sheet":"C326","index":5,"n_rows":132,"n_cols":19,"rows_kept":132,"cut":false,"hidden":true,"merged":[[1,9,1,15],[2,9,2,15],[28,13,29,13],[27,9,27,11],[28,6,29,6],[28,7,29,7],[28,8,29,8],[28,9,28,11]]}
[]
[null,null,null,null,null,null,null,null,null,"CENSO EDUCATIVO 2025"]
[null,null,null,null,null,null,null,null,null,"MATRÍCULA, DOCENTES Y RECURSOS"]
[]
[]
[]
[null,null,null,null,null,"COMPETENCIAS DE ARTE Y CULTURA"]
[null,null,null,null,null,null,"326. EN ESTE CEBA, ¿SE DESARROLLAN LAS COMPETENCIAS DE ARTE Y CULTURA?"]
[]
[]
[null,null,null,null,null,null,"","Sí   ",null,"¿Cuántos docentes están asignados al dictado de la asignatura?",null,null,null,null,""]
[null,null,null,null,null,null,null,null,null,"¿El desarrollo de las competencias en Arte y Cultura se realizan dentro del horario regular?"]
[null,null,null,null,null,null,null,null,null,null,"Sí   ","",null,"No   ",""]
[null,null,null,null,null,null,null,"No  "]
[null,null,null,null,null,null,null,null,null,"¿Cuántas horas a la semana se destinan para el desarrollo de las competencias en Arte y Cultura?",null,null,null,null,null,null,null,""]
[]
[]
[null,null,null,null,null,"DOCENTES QUE DOMINAN LENGUA ORIGINARIA (Solo SS.EE. Públicas)"]
[]
["GESTIÓN",null,null,null,null,null,"327. SEGÚN LO ANOTADO EN LA PREGUNTA 307, ¿CUENTA CON UN DOCENTE QUE DOMINE UNA LENGUA ORIGINARIA?"]
[null,null,null,null,null,null,"Hacer click en el botón [Verificar] para revisar los docentes que dominan una lengua originaria"]
[1]
[null,null,null,null,null,null,null,null,"Sí   ","",null,null,"¿Cuántos?"]
[]
[null,null,null,null,null,null,null,null,"No  ",null,null,null,"Pase a la sección 328.1."]
[]
[]
[null,null,null,null,null,null,null,null,null,327.10000000000002,null,null,327.2,327.3,327.39999999999998,327.5,327.60000000000002,327.7]
[null,null,null,null,null,null,"Nº","Nº de fila registrado en la pregunta 307","Documento de Identidad","Conocimiento de\nlengua originaria",null,null,"¿Cuenta con estudios en Educación Intercultural Bilingüe?","Solo si respondió SÍ  en la pregunta 327.2 \n¿Cuál fue el tipo de estudios en EIB?","¿Ha recibido\ncapacitación en EIB?","¿El docente enseña\nen lengua originaria?","¿El material recibido coincide con la lengua que enseña?","¿En la actualidad el Docente se encuentra en el Registro de Docentes Bilingües?"]
["330.3 ¿Cuál fue el tipo de estudios en EIB?","Corr","Gest","Fmt",null,null,null,null,null,"Habla","Lee","Escribe"," Sí - No",null," Sí - No"," Sí - No"," Sí - No"," Sí - No"]
["01: Doctorado",1,{"$f":"$A$22","v":1},{"$f":"IF(G31<>\"\",1,0)","v":0},null,null,{"$f":"IF($B31<=$N$23,$B31,\"\")","v":""},null,null,null,null,null,null,null,null,null,null,null,""]
["02: Maestría",{"$f":"B31+1","v":2},{"$f":"$A$22","v":1},{"$f":"IF(G32<>\"\",1,0)","v":0},null,null,"",null,null,null,null,null,null,null,null,null,null,null,""]
["03: Segunda especialidad",{"$f":"B32+1","v":3},1,{"$f":"IF(G33<>\"\",1,0)","v":0},null,null,"",null,null,null,null,null,null,null,null,null,null,null,""]
["04: Especialización",4,1,0,null,null,"",null,null,null,null,null,null,null,null,null,null,null,""]
["05: Actualización",5,1,0,null,null,"",null,null,null,null,null,null,null,null,null,null,null,""]
["06: Otro",6,1,0,null,null,"",null,null,null,null,null,null,null,null,null,null,null,""]
[null,7,1,0,null,null,"",null,null,null,null,null,null,null,null,null,null,null,""]
[null,8,1,0,null,null,"",null,null,null,null,null,null,null,null,null,null,null,""]
["SI",9,1,0,null,null,"",null,null,null,null,null,null,null,null,null,null,null,""]
["NO",10,1,0,null,null,"",null,null,null,null,null,null,null,null,null,null,null,""]
[null,11,1,0,null,null,"",null,null,null,null,null,null,null,null,null,null,null,""]
[null,12,1,0,null,null,"",null,null,null,null,null,null,null,null,null,null,null,""]
[null,13,1,0,null,null,"",null,null,null,null,null,null,null,null,null,null,null,""]
[null,14,1,0,null,null,"",null,null,null,null,null,null,null,null,null,null,null,""]
[null,15,1,0,null,null,"",null,null,null,null,null,null,null,null,null,null,null,""]
[null,16,1,0,null,null,"",null,null,null,null,null,null,null,null,null,null,null,""]
[null,17,1,0,null,null,"",null,null,null,null,null,null,null,null,null,null,null,""]
[null,18,1,0,null,null,"",null,null,null,null,null,null,null,null,null,null,null,""]
[null,19,1,0,null,null,"",null,null,null,null,null,null,null,null,null,null,null,""]
[null,20,1,0,null,null,"",null,null,null,null,null,null,null,null,null,null,null,""]
[null,21,1,0,null,null,"",null,null,null,null,null,null,null,null,null,null,null,""]
[null,22,1,0,null,null,"",null,null,null,null,null,null,null,null,null,null,null,""]
[null,23,1,0,null,null,"",null,null,null,null,null,null,null,null,null,null,null,""]
[null,24,1,0,null,null,"",null,null,null,null,null,null,null,null,null,null,null,""]
[null,25,1,0,null,null,"",null,null,null,null,null,null,null,null,null,null,null,""]
[null,26,1,0,null,null,"",null,null,null,null,null,null,null,null,null,null,null,""]
[null,27,1,0,null,null,"",null,null,null,null,null,null,null,null,null,null,null,""]
[null,28,1,0,null,null,"",null,null,null,null,null,null,null,null,null,null,null,""]
[null,29,1,0,null,null,"",null,null,null,null,null,null,null,null,null,null,null,""]
[null,30,1,0,null,null,"",null,null,null,null,null,null,null,null,null,null,null,""]
[null,31,1,0,null,null,"",null,null,null,null,null,null,null,null,null,null,null,""]
[null,32,1,0,null,null,"",null,null,null,null,null,null,null,null,null,null,null,""]
[null,33,1,0,null,null,"",null,null,null,null,null,null,null,null,null,null,null,""]
[null,34,1,0,null,null,"",null,null,null,null,null,null,null,null,null,null,null,""]
[null,35,1,0,null,null,"",null,null,null,null,null,null,null,null,null,null,null,""]
[null,36,1,0,null,null,"",null,null,null,null,null,null,null,null,null,null,null,""]
[null,37,1,0,null,null,"",null,null,null,null,null,null,null,null,null,null,null,""]
[null,38,1,0,null,null,"",null,null,null,null,null,null,null,null,null,null,null,""]
[null,39,1,0,null,null,"",null,null,null,null,null,null,null,null,null,null,null,""]
[null,40,1,0,null,null,"",null,null,null,null,null,null,null,null,null,null,null,""]
[null,41,1,0,null,null,"",null,null,null,null,null,null,null,null,null,null,null,""]
[null,42,1,0,null,null,"",null,null,null,null,null,null,null,null,null,null,null,""]
[null,43,1,0,null,null,"",null,null,null,null,null,null,null,null,null,null,null,""]
[null,44,1,0,null,null,"",null,null,null,null,null,null,null,null,null,null,null,""]
[null,45,1,0,null,null,"",null,null,null,null,null,null,null,null,null,null,null,""]
[null,46,1,0,null,null,"",null,null,null,null,null,null,null,null,null,null,null,""]
[null,47,1,0,null,null,"",null,null,null,null,null,null,null,null,null,null,null,""]
[null,48,1,0,null,null,"",null,null,null,null,null,null,null,null,null,null,null,""]
[null,49,1,0,null,null,"",null,null,null,null,null,null,null,null,null,null,null,""]
[null,50,1,0,null,null,"",null,null,null,null,null,null,null,null,null,null,null,""]
[null,51,1,0,null,null,"",null,null,null,null,null,null,null,null,null,null,null,""]
[null,52,1,0,null,null,"",null,null,null,null,null,null,null,null,null,null,null,""]
[null,53,1,0,null,null,"",null,null,null,null,null,null,null,null,null,null,null,""]
[null,54,1,0,null,null,"",null,null,null,null,null,null,null,null,null,null,null,""]
[null,55,1,0,null,null,"",null,null,null,null,null,null,null,null,null,null,null,""]
[null,56,1,0,null,null,"",null,null,null,null,null,null,null,null,null,null,null,""]
[null,57,1,0,null,null,"",null,null,null,null,null,null,null,null,null,null,null,""]
[null,58,1,0,null,null,"",null,null,null,null,null,null,null,null,null,null,null,""]
[null,59,1,0,null,null,"",null,null,null,null,null,null,null,null,null,null,null,""]
[null,60,1,0,null,null,"",null,null,null,null,null,null,null,null,null,null,null,""]
[null,61,1,0,null,null,"",null,null,null,null,null,null,null,null,null,null,null,""]
[null,62,1,0,null,null,"",null,null,null,null,null,null,null,null,null,null,null,""]
[null,63,1,0,null,null,"",null,null,null,null,null,null,null,null,null,null,null,""]
[null,64,1,0,null,null,"",null,null,null,null,null,null,null,null,null,null,null,""]
[null,65,1,0,null,null,"",null,null,null,null,null,null,null,null,null,null,null,""]
[null,66,{"$f":"$A$22","v":1},0,null,null,{"$f":"IF($B96<=$N$23,$B96,\"\")","v":""},null,null,null,null,null,null,null,null,null,null,null,""]
[null,{"$f":"B96+1","v":67},1,{"$f":"IF(G97<>\"\",1,0)","v":0},null,null,"",null,null,null,null,null,null,null,null,null,null,null,""]
[null,68,1,0,null,null,"",null,null,null,null,null,null,null,null,null,null,null,""]
[null,69,1,0,null,null,"",null,null,null,null,null,null,null,null,null,null,null,""]
[null,70,1,0,null,null,"",null,null,null,null,null,null,null,null,null,null,null,""]
[null,71,1,0,null,null,"",null,null,null,null,null,null,null,null,null,null,null,""]
[null,72,1,0,null,null,"",null,null,null,null,null,null,null,null,null,null,null,""]
[null,73,1,0,null,null,"",null,null,null,null,null,null,null,null,null,null,null,""]
[null,74,1,0,null,null,"",null,null,null,null,null,null,null,null,null,null,null,""]
[null,75,1,0,null,null,"",null,null,null,null,null,null,null,null,null,null,null,""]
[null,76,1,0,null,null,"",null,null,null,null,null,null,null,null,null,null,null,""]
[null,77,1,0,null,null,"",null,null,null,null,null,null,null,null,null,null,null,""]
[null,78,1,0,null,null,"",null,null,null,null,null,null,null,null,null,null,null,""]
[null,79,1,0,null,null,"",null,null,null,null,null,null,null,null,null,null,null,""]
[null,80,1,0,null,null,"",null,null,null,null,null,null,null,null,null,null,null,""]
[null,81,1,0,null,null,"",null,null,null,null,null,null,null,null,null,null,null,""]
[null,82,1,0,null,null,"",null,null,null,null,null,null,null,null,null,null,null,""]
[null,83,1,0,null,null,"",null,null,null,null,null,null,null,null,null,null,null,""]
[null,84,1,0,null,null,"",null,null,null,null,null,null,null,null,null,null,null,""]
[null,85,1,0,null,null,""]
[null,86,1,0,null,null,""]
[null,87,1,0,null,null,""]
[null,88,1,0,null,null,""]
[null,89,1,0,null,null,""]
[null,90,1,0,null,null,""]
[null,91,1,0,null,null,""]
[null,92,1,0,null,null,""]
[null,93,1,0,null,null,""]
[null,94,1,0,null,null,""]
[null,95,1,0,null,null,""]
[null,96,1,0,null,null,""]
[null,97,1,0,null,null,""]
[null,98,1,0,null,null,""]
[null,99,1,0,null,null,""]
[null,100,1,0,null,null,"",null,null,null,null,null,null,null,null,null,null,null,""]
[null,null,null,null,null,null,null,null,""]
[null,null,null,null,null,null,"….","….","….","….","….","….","….","….","….","….","….","…."]

{"sheet":"C400","index":6,"n_rows":126,"n_cols":22,"rows_kept":126,"cut":false,"hidden":true,"merged":[[48,13,48,14],[48,16,48,18],[46,16,46,18],[31,5,31,10],[21,12,23,12],[20,11,22,11],[20,13,23,14],[20,15,23,15],[24,13,24,14],[25,13,25,14],[26,13,26,14],[27,13,27,14],[29,13,29,14],[47,13,47,14],[47,16,47,18],[46,13,46,14],[27,21,27,22],[28,21,28,22],[29,16,29,17],[29,21,29,22],[30,21,30,22],[31,21,31,22],[44,13,44,14],[44,16,44,18],[45,13,45,14],[45,16,45,18],[25,16,25,17],[26,16,26,17],[27,16,27,17],[28,16,28,17],[28,13,28,14],[39,11,40,11],[30,13,30,14],[31,13,31,14],[30,16,30,17],[31,16,31,17],[39,12,40,12],[24,21,24,22],[1,5,1,19],[2,5,2,19],[19,13,19,22],[24,16,24,17],[20,21,23,22],[20,16,23,17],[20,18,23,18],[20,19,23,19],[20,20,23,20],[15,16,15,20],[25,21,25,22],[26,21,26,22],[55,13,55,14],[34,1,34,22],[52,16,52,18],[54,13,54,14],[50,13,50,14],[39,13,41,14],[39,15,41,15],[39,16,40,18],[41,16,41,18],[42,13,42,14],[42,16,42,18],[43,13,43,14],[43,16,43,18],[54,16,54,18],[55,16,55,18],[105,1,105,22],[119,6,119,10],[125,16,125,20],[49,13,49,14],[49,16,49,18],[51,16,51,18],[52,13,52,14],[50,16,50,18],[51,13,51,14],[53,13,53,14],[53,16,53,18],[69,17,69,21]]}
[]
[null,null,null,null,null,"CENSO EDUCATIVO 2025"]
[null,null,null,null,null,"MATRÍCULA, DOCENTES Y RECURSOS"]
[]
[]
[]
[null,null,"ÁREA DE PSICOLOGÍA"]
[null,null,"328.1   DURANTE EL PRESENTE AÑO, ¿SE CUENTA CON ALGÚN PROFESIONAL DE PSICOLOGÍA",null,null,null,null,null,null,null,null,null,null,"328.2   ¿ A TRAVÉS DE QUÉ MECANISMO SE INCORPORÓ AL PROFESIONAL DE "]
[null,null,"             INCORPORADO AL CEBA O PROGRAMA EDUCATIVO?",null,null,null,null,null,null,null,null,null,null,"                PSICOLOGÍA?"]
[null,null,null,null,null,null,null,null,null,null,null,null,null,null,"Marque con una “X”, una opcion"]
[null,null,null,null,null,null,null,null,null,null,null,null,null,null,"","Contratación a través de UGEL (en el marco de alguna intervención o estrategia)"]
[null,null,null,null,"Sí  ","",null,null,null,null,null,null,null,null,"","Contratación a través de UGEL (por identificación de necesidad)"]
[null,null,null,null,null,null,null,null,null,null,null,null,null,null,"","Prácticas profesionales"]
[null,null,null,null,null,null,null,null,null,null,null,null,null,null,"","Servicio Rural y Urbano Marginal de Salud (Serums)"]
[null,null,null,null,"No  ",null,null,null,"Pase a la pregunta 400",null,null,null,null,null,"","Pasantias"]
[null,null,null,null,null,null,null,null,null,null,null,null,null,null,"","Otro",""]
[]
[]
[null,"338. DURANTE EL AÑO 2023 ESTE CEBA, ¿HA RECIBIDO ALGUNA PLAZA DE PERSONAL ADMINISTRATIVO QUE NO HA LOGRADO CUBRIR?"]
[null,null,null,null,null,null,null,null,null,null,null,"(1)","(2)","(3) ¿Porqué no ha logrado cubrir la plaza?"]
[null,null,null,null,null,null,null,null,null,null,null,"¿Tuvo plaza de personal adminis- trativo vacante?","¿Cuántos recibió?","a. La Institución Educativa no requiere al personal asignado",null,"b. No se presentaron postulantes","c. Postulantes no cuentan con la experiencia requerida",null,"d. UGEL no brinda mayor información","e. Requiero otro tipo de personal","f. Otro","Especificar"]
[null,null,null,null,null,null,"CARGO",null,null,null,null,null,"Solo si respondió “SI” en el numeral (1)"]
[]
[null,null,null,null,null,null,null,null,null,null,{"$f":"COUNTIF(L25:L32,\"SI\")+COUNTIF(L25:L32,\"NO\")","v":0},"SI - NO"]
[null,null,"1","Coordinador Administrativo"]
[null,null,"2","Secretaria(o)"]
[null,null,"3","Oficinista"]
[null,null,"4","Trabajador de servicio - funciones de guardianía y/o vigilancia"]
[null,null,"5","Trabajador de servicio - funciones de limpieza y mantenimiento"]
[null,null,"6","Auxiliar de Biblioteca"]
[null,null,"7","Auxiliar de Laboratorio"]
[null,null,"8","Otro"]
[]
[]
[null,"400. OTROS RECURSOS DISPONIBLES PARA LA ENSEÑANZA (Para II.EE. Públicas y Privadas)"]
[]
[null,null,"EQUIPOS Y SERVICIOS QUE DISPONE EL CEBA"]
[null,null,"401. EQUIPOS Y SERVICIOS QUE DISPONE EL CEBA"]
[]
[null,null,null,null,null,null,null,null,null,null,null,null,"¿Qué equipos o servicios dispone el CEBA?","¿Cuántos tiene?",null,"¿Cuántos estan operativos?","¿Son utilizados para la enseñanza en interacción con los estudiantes?",null,null,"SI"]
[null,null,null,null,null,null,null,"EQUIPOS Y SERVICIOS",null,null,null,null,null,null,null,null,null,null,null,"NO"]
[null,null,null,null,null,null,null,null,null,null,null,{"$f":"COUNTIF(M43:M56,\"SI\")+COUNTIF(M43:M56,\"NO\")","v":0},"Si - No",null,null,null,"Si - No"]
[null,null,null,null,null,"01","Televisor(es)"]
[null,null,null,null,null,"02","Computadoras (PC de escritorio)"]
[null,null,null,null,null,"03","Laptop convencionales"]
[null,null,null,null,null,"04","Laptop XO"]
[null,null,null,null,null,"05","Servidores ( exclusivo del nivel)"]
[null,null,null,null,null,"06","Tablets"]
[null,null,null,null,null,"07","Proyector"]
[null,null,null,null,null,"08","Radiograbadora"]
[null,null,null,null,null,"09","Reproductor de DVD o Blue Ray"]
[null,null,null,null,null,"10","Impresoras"]
[null,null,null,null,null,"11","Pizarras digitales"]
[null,null,null,null,null,"12","Modem"]
[null,null,null,null,null,"13","Servicio de Internet"]
[null,null,null,null,null,"14","Balanza de peso corporal (Mecánica/Digital)"]
[]
[]
[null,null,"402. ¿QUÉ CICLOS ATENDIDOS CUENTAN CON BIBLIOTECA DE AULA?",null,null,null,null,null,null,null,null,null,null,"405. ¿QUÉ TIPO DE TALLERES BRINDA EL CEBA?"]
[null,null,null,"Marque con una aspa “X” el ciclo correspondiente y anote el número total de",null,null,null,null,null,null,null,null,null,null,"Marque con un aspa “X” uno o más casilleros"]
[null,null,null,"ejemplares, según corresponda."]
[null,null,null,null,null,null,null,null,"Nº Total de Ejemplares",null,null,null,null,null,null,"Corte y Confección"]
[null,null,null,null,"Avanzado",null,null,null,null,null,null,null,null,null,null,"Computación e Informática"]
[null,null,null,null,null,null,null,null,null,null,null,null,null,null,null,"Agroindustria"]
[null,null,null,null,"NINGUNO",null,null,null,null,null,null,null,null,null,null,"Mecánica"]
[null,null,null,null,null,null,null,null,null,null,null,null,null,null,null,"Gastronomía"]
[null,null,"403. SEÑOR(A) DIRECTOR(A), ¿TIENE ALGÚN ESPACIO SEGURO DONDE ALMACENAR ",null,null,null,null,null,null,null,null,null,null,null,null,"Carpintería"]
[null,null,"          LOS TEXTOS Y OTROS MATERIALES EDUCATIVOS?",null,null,null,null,null,null,null,null,null,null,null,null,"Contabilidad"]
[null,null,null,null,null,null,null,null,null,null,null,null,null,null,null,"Electricidad"]
[null,null,null,null,"Sí  ",null,null,null,null,"No",null,null,null,null,null,"Otro"]
[null,null,null,null,null,null,null,null,null,null,null,null,null,null,null,"NINGUNO"]
[null,null,"404. ESTE CEBA, ¿ CUENTA CON TALLERES ?"]
[]
[null,null,null,null,"Sí  ",null,null,null,null,"No",null,"u  Pase a la preg. 406"]
[]
[]
[74]
[null,null,"406.  DURANTE EL PRESENTE AÑO, ¿HA RECIBIDO ASISTENCIA TÉCNICA SOBRE ",null,null,null,null,null,null,null,null,null,null,"408.  DURANTE EL PRESENTE AÑO, ¿HA REALIZADO EL MONITOREO SOBRE "]
[null,null,"           EL USO DE LOS TEXTOS DEL CICLO AVANZADO DE LA DOTACIÓN 2024?",null,null,null,null,null,null,null,null,null,null,"           EL USO DE LOS TEXTOS DEL CICLO AVANZADO?"]
[]
[null,null,null,null,"Sí  ",null,null,null,null,"No",null,null,null,null,null,"Sí  ",null,null,"No"]
[]
[]
[null,null,"407.    ¿HA BRINDADO ASISTENCIA TÉCNICA A LOS DOCENTES SOBRE EL USO"]
[null,null,"             DE LOS TEXTOS DEL CICLO AVANZADO?"]
[]
[null,null,null,null,"Sí  ",null,null,null,null,"No"]
[]
[]
[]
[]
[]
[]
[]
[null,null,"AULAS Y SERVICIOS HIGIÉNICOS UTILIZADO POR EL CEBA"]
[null,null,"409. INDIQUE EL NÚMERO DE AULAS UTILIZADO",null,null,null,null,null,null,null,null,null,null,"410. INDIQUE EL NÚMERO DE SERVICIOS HIGIÉNICOS UTILIZADOS"]
[]
[null,null,"TOTAL AULAS",null,null,null,null,null,null,{"$f":"J100+J102","v":0},null,null,null,null,"TOTAL SS.HH.",null,null,null,null,null,{"$f":"U100+U102","v":0}]
[]
[null,null,"De uso exclusivo :",null,null,null,null,null,null,null,null,null,null,null,"De uso exclusivo :"]
[]
[null,null,"De uso compartido con otros niveles :",null,null,null,null,null,null,null,null,null,null,null,"De uso compartido con otros niveles :"]
[]
[]
[]
[null,"500. EDUCACIÓN FÍSICA Y DEPORTE (Para SS.EE. Públicos y Privados)"]
[]
[null,"A. SITUACIÓN DEL DEPORTE ESCOLAR"]
[null,"501. DURANTE EL AÑO 2024, EN ESTE CEBA, ¿SE FOMENTÓ LA REALIZACIÓN DE",null,null,null,null,null,null,null,null,null,null,null,"502. ESTE CEBA ¿CUENTA CON LA ASIGNATURA DE   EDUCACIÓN FÍSICA?"]
[null,null,"ACTIVIDADES FÍSICAS O DEPORTE, CON LA FINALIDAD DE PRIORIZAR EL"]
[null,null,"CUIDADO DEL ESTUDIANTE Y SU BIENESTAR INTEGRAL?",null,null,null,null,null,null,null,null,null,null,null,null,null,"¿Cuántas horas a la semana se dictan?"]
[null,null,null,null,null,null,null,null,null,null,null,null,null,"Sí  "]
[null,null,"Sí  ",null,null,null,"No  ",null,null,null,null,null,null,null,null,null,"¿Cuántos docentes están asignados al "]
[null,null,null,null,null,null,null,null,null,null,null,null,null,null,null,null,"dictado del curso?"]
[null,null,null,null,null,null,null,null,null,null,null,null,null,"No  "]
[null,null,null,null,"Actividades de movimiento"]
[null,null,null,null,"Actividades de deporte",null,null,null,null,null,null,null,null,"503. EN EL PRESENTE ¿ESTE CEBA TIENE PLANIFICADO LA EJECUCIÓN DE"]
[null,null,null,null,"Actividades artístico culturales",null,null,null,null,null,null,null,null,null,"TALLERES COMPLEMENTARIOS?"]
[null,null,null,null,"Actividades complementarias de encuentro con la comunidad educativa"]
[null,null,null,null,"Otras Actividades",null,null,null,null,null,null,null,null,"Sí  ",null,null,"No  "]
[]
[null,null,null,null,null,null,null,null,null,null,null,null,null,null,null,"Marque con una “X”, una o más opciones"]
[null,null,null,null,null,null,null,null,null,null,null,null,null,null,null,"ExpresArte"]
[null,null,null,null,null,null,null,null,null,null,null,null,null,null,null,"Orquestando"]
[null,null,null,null,null,null,null,null,null,null,null,null,null,null,null,"Talleres deportivos recreativos"]
[null,null,null,null,null,null,null,null,null,null,null,null,null,null,null,"Otro",""]

{"sheet":"C600","index":7,"n_rows":179,"n_cols":28,"rows_kept":179,"cut":false,"hidden":true,"merged":[[97,20,97,24],[18,20,18,25],[19,7,19,11],[82,22,83,22],[82,23,83,26],[89,20,90,21],[89,25,90,26],[112,7,112,12],[117,20,118,21],[117,26,118,26],[129,9,129,13],[107,23,107,26],[177,23,177,26],[139,20,139,24],[144,20,145,21],[151,19,151,23],[147,7,147,11]]}
[]
[null,null,null,null,null,null,null,null,null,"CENSO EDUCATIVO 2025"]
[null,null,null,null,null,null,null,null,null,"MATRÍCULA, DOCENTES Y MATERIALES EDUCATIVOS"]
[]
[]
[]
[null,null,"600. FORTALECIMIENTO DE LA GESTIÓN         (Para SS.EE.  Públicos y Privados)"]
[]
[null,null,null,"601. ¿CUÁLES SON LOS PRINCIPALES TEMAS QUE REQUIERE COMO CAPACITACIÓN",null,null,null,null,null,null,null,null,null,null,null,null,"607. ¿QUÉ INFORMACIÓN LE GUSTARÍA ENCONTRAR EN EL PORTAL WEB DE "]
[null,null,null,null,"PARA MEJORAR SU DESEMPEÑO COMO DIRECTOR(A)? ",null,null,null,null,null,null,null,null,null,null,null,null,"EVALUACIÓN DOCENTE DEL MINEDU? "]
[null,null,null,null,"Marque con una “X”, hasta 4 opciones",null,null,null,null,null,null,null,null,null,null,null,null,"Marque con una “X”, hasta dos opciones"]
[]
[null,null,null,{"$f":"COUNTIF(E13:E20,\"X\")","v":0},null,"Desarrollo de las competencias de las áreas curriculares",null,null,null,null,null,null,null,null,null,null,{"$f":"COUNTIF(R13:R19,\"X\")","v":0},null,"Informes de resultados de evaluaciones por región"]
[null,null,null,null,null,"Planificación y evaluación",null,null,null,null,null,null,null,null,null,null,null,null,"Informes de resultados de evaluaciones por área Pedagógica"]
[null,null,null,null,null,"Manejo de herramientas TIC y ofimáticas",null,null,null,null,null,null,null,null,null,null,null,null,"Infografías sobre resultados en evaluaciones"]
[null,null,null,null,null,"Soporte emocional",null,null,null,null,null,null,null,null,null,null,null,null,"Material audiovisual sobre evaluación docente"]
[null,null,null,null,null,"Participación de padres y madres de familias ",null,null,null,null,null,null,null,null,null,null,null,null,"Informes dinámicos de resultados"]
[null,null,null,null,null,"Relacionamiento institucional y gestión de alianzas ",null,null,null,null,null,null,null,null,null,null,null,null,"Webinars/presentaciones en línea"]
[null,null,null,null,null,"Acompañamiento pedagógico",null,null,null,null,null,null,null,null,null,null,null,null,"Otros"]
[null,null,null,null,null,"Otros"]
[]
[null,null,null,"602. DURANTE EL AÑO 2024 Y HASTA LA FECHA DE APLICACIÓN DEL CENSO EDUCATIVO 2025,"]
[null,null,null,null,"¿HA REALIZADO ACCIONES EN FAVOR DEL BIENESTAR SOCIOEMOCIONAL DE LOS",null,null,null,null,null,null,null,null,null,null,null,"608. ¿ACTUALMENTE CUENTA CON ALGÚN ESPACIO EN EL QUE PUEDA DIALOGAR CON DIRECTORES"]
[null,null,null,null,"ESTUDIANTES Y/O DE LOS DOCENTES Y/O FAMILIAS?",null,null,null,null,null,null,null,null,null,null,null,null,"DE OTRAS CEBA PARA COMPARTIR EXPERIENCIAS Y DESARROLLAR ESTRATEGIAS PARA"]
[null,null,null,null,null,null,null,null,null,null,null,null,null,null,null,null,null,"RESOLVER PROBLEMAS DE LA GESTIÓN DE SU CEBA?"]
[null,null,null,null,"Sí",null,null,null,null,"No  "]
[null,null,null,null,null,null,null,null,null,null,null,null,null,null,null,null,null,"Sí",null,null,null,null,"No  "]
[]
[null,null,null,null,"¿Qué acciones realizó? ",null,null,null,null,null,null,null,null,null,null,null,null,null,null,null,"¿Quién promueve estos espacios?"]
[null,null,null,null,"Marque con una “X”, una o más opciones",null,null,null,null,null,null,null,null,null,null,null,null,null,null,null,"Marque con una “X”, una o más opciones"]
[]
[null,null,null,null,null,"Elaborar un diagnóstico del estado del bienestar socioemocional de estudiantes ",null,null,null,null,null,null,null,null,null,null,null,null,null,null,null,"DRE/GRE"]
[null,null,null,null,null,"Elaborar un diagnóstico del estado del bienestar socioemocional de docentes ",null,null,null,null,null,null,null,null,null,null,null,null,null,null,null,"UGEL"]
[null,null,null,null,null,"Ejecutar acciones en el CEBA para trabajar específicamente gestión de emociones …",null,null,null,null,null,null,null,null,null,null,null,null,null,null,null,"Red educativa "]
[null,null,null,null,null,"Generar espacios de diálogo en la comunidad educativa con docentes y/o familias. ",null,null,null,null,null,null,null,null,null,null,null,null,null,null,null,"Por iniciativa propia"]
[null,null,null,null,null,"Promover espacios específicamente para abordar gestión de emociones con familias ",null,null,null,null,null,null,null,null,null,null,null,null,null,null,null,"Asociaciones varias (ONG, sector privado, universidades) "]
[null,null,null,null,null,"Ejecutar acciones en el marco de la Tutoría y Orientación Educativa (TOE)",null,null,null,null,null,null,null,null,null,null,null,null,null,null,null,"Ninguna de las anteriores"]
[]
[null,null,null,"603. ESTE CEBA, ¿COORDINA ALGUNA ACCIÓN CON OTROS ACTORES DE LA LOCALIDAD"]
[null,null,null,null,"PARA MEJORAR LA PRESTACIÓN DEL SERVICIO EDUCATIVO?"]
[null,null,null,null,null,null,null,null,null,null,null,null,null,null,null,null,"609. ¿QUÉ TAN INTERESADO SE ENCONTRARÍA DE PARTICIPAR EL AÑO 2026 DE ESPACIOS"]
[null,null,null,null,"Sí",null,null,null,null,"No  ",null,null,null,null,null,null,null,"EN LOS QUE SE REALICE TRABAJO COLABORATIVO CON DIRECTORES DE OTRAS"]
[null,null,null,null,null,null,null,null,null,null,null,null,null,null,null,null,null,"INSTITUCIONES EDUCATIVAS, PARA DIALOGAR SOBRE LOS PROBLEMAS DE LA"]
[null,null,null,null,null,null,null,"Indique a los actores de la localidad",null,null,null,null,null,null,null,null,null,"GESTIÓN ESCOLAR?"]
[null,null,null,null,null,null,null,"Marque con una “X”, una o más opciones",null,null,null,null,null,null,null,null,null,"Marque con una “X”, una opción"]
[]
[null,null,null,null,null,null,null,null,"Municipalidad distrital",null,null,null,null,null,null,null,null,null,"Muy interesado"]
[null,null,null,null,null,null,null,null,"Municipalidad provincial",null,null,null,null,null,null,null,null,null,"Interesado"]
[null,null,null,null,null,null,null,null,"Gobierno regional",null,null,null,null,null,null,null,null,null,"Poco interesado"]
[null,null,null,null,null,null,null,null,"Empresa privada",null,null,null,null,null,null,null,null,null,"Nada interesado"]
[null,null,null,null,null,null,null,null,"ONG o sociedad civil"]
[]
[null,null,null,"604. USTED SEÑOR(A) DIRECTOR(A), DURANTE EL PRESENTE AÑO ESCOLAR 2025, ¿CON QUÉ"]
[null,null,null,null,"FRECUENCIA HA VISITADO EL PORTAL WEB PARA DIRECTIVO DE IIEE DEL MINEDU?",null,null,null,null,null,null,null,null,null,null,null,"610. DURANTE EL PRESENTE AÑO Y HASTA LA FECHA DE APLICACIÓN DEL CENSO"]
[null,null,null,null,"(https://directivos.minedu.gob.pe/) ",null,null,null,null,null,null,null,null,null,null,null,null,"EDUCATIVO 2025, SELECCIONE UNA O HASTA TRES ACCIONES QUE USTED HA"]
[null,null,null,null,"Marque con una “X”, una opción",null,null,null,null,null,null,null,null,null,null,null,null,"IMPLEMENTADO EN ESTE CEBA."]
[null,null,null,null,null,null,null,null,null,null,null,null,null,null,null,null,null,"Marque con una “X”, hasta 3 opciones"]
[null,null,null,null,null,"Nunca he ingresado durante este año"]
[null,null,null,null,null,"Casi nunca",null,null,null,null,null,null,null,null,null,null,{"$f":"COUNTIF(R59:R65,\"X\")","v":0},null,"Conducir la planificación institucional"]
[null,null,null,null,null,"A veces",null,null,null,null,null,null,null,null,null,null,null,null,"Promover y sostener la participación democrática de los diversos actores."]
[null,null,null,null,null,"Frecuentemente ",null,null,null,null,null,null,null,null,null,null,null,null,"Favorecer las condiciones operativas que aseguren aprendizajes de calidad"]
[null,null,null,null,null,"Siempre",null,null,null,null,null,null,null,null,null,null,null,null,"Liderar procesos de evaluación de la gestión de la IE."]
[null,null,null,null,null,null,null,null,null,null,null,null,null,null,null,null,null,null,"Promover y liderar una comunidad de aprendizaje con las y los docentes de su CEBA."]
[null,null,null,"605. USTED SEÑOR(A) DIRECTOR(A), ¿CONOCE EL PORTAL WEB DE EVALUACIÓN DOCENTE?",null,null,null,null,null,null,null,null,null,null,null,null,null,null,"Gestiona la calidad de los procesos pedagógicos al interior de su CEBA."]
[null,null,null,null,"https://evaluaciondocente.perueduca.pe/",null,null,null,null,null,null,null,null,null,null,null,null,null,"Ninguna de las anteriores"]
[]
[null,null,null,null,"Sí",null,null,null,null,"No  ",null,"          Pase a la pregunta 608."]
[]
[null,null,null,"606. PARA USTED SEÑOR(A) DIRECTOR(A), ¿CUÁN IMPORTANTE CONSIDERA QUE ES LA"]
[null,null,null,null,"INFORMACIÓN QUE ENCUENTRA EN EL PORTAL WEB SOBRE LA EVALUACIÓN DOCENTE?"]
[null,null,null,null,"Marque con una “X”, una opción"]
[]
[null,null,null,null,null,"Muy importante"]
[null,null,null,null,null,"Importante"]
[null,null,null,null,null,"Poco importante"]
[null,null,null,null,null,"Nada importante"]
[]
[]
[null,null,null,"611. PARA SU LABOR COMO DIRECTOR(A)/DOCENTE, ¿CONOCE Y USA LOS RESULTADOS DE LAS",null,null,null,null,null,null,null,null,null,null,null,null,"615. DURANTE EL AÑO 2025 ESTE CEBA, ¿TUVÓ ALGUNA PLAZA DE PERSONAL"]
[null,null,null,null,"ÚLTIMAS EVALUACIONES DE LOGROS DE APRENDIZAJE A ESTUDIANTES,COMO LA",null,null,null,null,null,null,null,null,null,null,null,null,"ADMINISTRATIVO QUE NO HA LOGRADO CUBRIR?"]
[null,null,null,null,"EVALUACIÓN NACIONAL DE LOGROS DE APRENDIZAJE (ENLA) 2023 O 2024?"]
[null,null,null,null,"Marque con una “X”, una opción",null,null,null,null,null,null,null,null,null,null,null,null,null,"Sí"]
[null,null,null,null,null,null,null,null,null,null,null,null,null,null,null,null,null,null,"No",null,null,null,"u","Pase a la pregunta 618"]
[null,null,null,null,null,"No los conozco.",null,null,null,null,null,"Pase a la pregunta 614",null,null,null,null,null,null,"No tuve plaza asignada"]
[null,null,null,null,null,"Sí los conozco, pero no los uso.",null,null,null,null,null,"Pase a la pregunta 613",null,null,null,null,null,""]
[null,null,null,null,null,"Sí los conozco y los uso."]
[null,null,null,null,null,null,null,null,null,null,null,null,null,null,null,null,"616. ¿CUÁNTAS PLAZAS VACANTES SEGÚN CARGO NO SE LOGRÓ CUBRIR?"]
[null,null,null,"612. ¿CÓMO USA LOS RESULTADOS Y/O LOS INFORMES PEDAGÓGICOS DE LAS EVALUACIONES",null,null,null,null,null,null,null,null,null,null,null,null,null,"Complete según corresponda"]
[null,null,null,null,"NACIONALES DE LOGROS DE APRENDIZAJE A ESTUDIANTES?"]
[null,null,null,null,"Marque con una “X”, una o más opciones",null,null,null,null,null,null,null,null,null,null,null,null,null,null,null,"Cargo",null,null,null,null,"Cargo Cantidad de plazas no cubiertas"]
[null,null,null,null,null,null,null,null,null,null,null,null,null,null,null,null,null,null,null,null,null,null,null,null,{"$f":"SUM(AA92:AA98)","v":0}]
[null,null,null,null,null,"Como insumo para la elaboración de documentos de gestión ",null,null,null,null,null,null,null,null,null,null,null,1,"Secretario/a"]
[null,null,null,null,null,"Como insumo para las sesiones de aprendizaje en el aula.",null,null,null,null,null,null,null,null,null,null,null,2,"Oficinista"]
[null,null,null,null,null,"Como insumo para espacios de intercambio y reflexión en la IE.",null,null,null,null,null,null,null,null,null,null,null,3,"Trabajador de servicio que cumple funciones de guardianía"]
[null,null,null,null,null,"Como insumo para informar los logros y desafíos de aprendizaje a las familias.",null,null,null,null,null,null,null,null,null,null,null,4,"Trabajador de servicio que cumple funciones de limpieza"]
[null,null,null,null,null,"Como insumo para construir alianzas con otras instituciones y/o empresas.",null,null,null,null,null,null,null,null,null,null,null,5,"Auxiliar de Biblioteca"]
[null,null,null,null,null,"Como diagnostico para planificación curricular",null,null,null,null,null,null,null,null,null,null,null,6,"Auxiliar de Laboratorio"]
[null,null,null,null,null,null,null,null,null,null,null,null,null,null,null,null,null,7,"Otro"]
[null,null,null,"613. ¿A TRAVÉS DE QUÉ CANALES RECIBE INFORMACIÓN DE LAS EVALUACIONES DE"]
[null,null,null,null,"LOGROS DE APRENDIZAJE?"]
[null,null,null,null,"Marque como máximo hasta 3 opciones",null,null,null,null,null,null,null,null,null,null,null,"617. ¿POR QUÉ NO SE HA LOGRADO CUBRIR LA(S) PLAZA(S)?"]
[null,null,null,null,null,null,null,null,null,null,null,null,null,null,null,null,null,"Marque con una “X”, hasta dos opciones"]
[null,null,null,{"$f":"COUNTIF(E103:E113,\"X\")","v":0},null,"Redes sociales (Facebook, Youtube, Twitter, Instagram, etc.)"]
[null,null,null,null,null,"Correo electrónico",null,null,null,null,null,null,null,null,null,null,{"$f":"COUNTIF(R104:R108,\"X\")","v":0},null,"La Institución Educativa no requiere al personal asignado"]
[null,null,null,null,null,"Mensajes de texto",null,null,null,null,null,null,null,null,null,null,null,null,"No se presentaron postulantes"]
[null,null,null,null,null,"Mensajes por WhatsApp",null,null,null,null,null,null,null,null,null,null,null,null,"Postulantes no cuentan con la experiencia requerida"]
[null,null,null,null,null,"Eventos (conferencias, webinars, charlas, etc)",null,null,null,null,null,null,null,null,null,null,null,null,"UGEL no brinda mayor información"]
[null,null,null,null,null,"Espacios formativos (talleres, capacitaciones, etc.)",null,null,null,null,null,null,null,null,null,null,null,null,"Requiero otro tipo de personal"]
[null,null,null,null,null,"Envío de dispositivos de almacenamiento portátil con recursos"]
[null,null,null,null,null,"Envío de enlaces de almacenamiento en la nube con recursos"]
[null,null,null,null,null,"Programas de radios comunitarias",null,null,null,null,null,null,null,null,null,null,"618. CON RESPECTO A LAS ACTIVIDADES ADMINISTRATIVAS, SELECCIONE LOS DOS PRINCIPALES"]
[null,null,null,null,null,"Portales web de las DRE/GRE y UGEL",null,null,null,null,null,null,null,null,null,null,null,"ÁMBITOS QUE REPRESENTARON MAYOR CARGA LABORAL DURANTE EL PRESENTE"]
[null,null,null,null,null,"Otro",null,"",null,null,null,null,null,null,null,null,null,"AÑO E INDIQUE UN ORDEN DE PRIORIDAD DE “1” O “2” , SIENDO 1 “MAYOR CARGA”"]
[null,null,null,null,null,null,null,null,null,null,null,null,null,null,null,null,null,"Y 2 “MENOR CARGA” ENTRE LA SELECCIONADA"]
[null,null,null,"614. USTED SEÑOR(A) DIRECTOR(A), ¿CUENTA CON PERSONAL ADMINISTRATIVO?"]
[null,null,null,null,null,null,null,null,null,null,null,null,null,null,null,null,null,"Marque hasta dos opciones principales y señale 1 ó 2 según carga priorizada"]
[null,null,null,null,"Sí"]
[null,null,null,null,null,null,null,null,null,null,null,null,null,null,null,null,null,null,null,null,"Ámbito",null,null,null,null,null,"Prioridad\n(*)"]
[null,null,null,null,null,null,null,"¿Qué temáticas considera usted que el personal",null,null,null,null,null,null,null,null,null,null,null,null,null,null,null,null,null,{"$f":"SUM(AB120:AB125)","v":0}]
[null,null,null,null,null,null,null,"administrativo debe ser capacitado?",null,null,null,null,null,null,null,null,null,1,"Gestión de recursos financieros, bienes, servicios e infraestructura",null,null,null,null,null,null,null,null,{"$f":"IF(AA120<>\"\",1,0)","v":0}]
[null,null,null,null,null,null,null,"Marque como máximo tres opciones",null,null,null,null,null,null,null,null,null,2,"Gestión de información de la IIEE (registro en sistemas administrativos)",null,null,null,null,null,null,null,null,{"$f":"IF(AA121<>\"\",1,0)","v":0}]
[null,null,null,null,null,null,null,null,null,null,null,null,null,null,null,null,null,3,"Gestión y seguimiento del uso de los recursos educativos.",null,null,null,null,null,null,null,null,0]
[null,null,null,null,null,null,{"$f":"COUNTIF(H123:H130,\"X\")","v":0},null,"Trabajo en equipo",null,null,null,null,null,null,null,null,4,"Limpieza y mantenimiento",null,null,null,null,null,null,null,null,0]
[null,null,null,null,null,null,null,null,"Orientación al servicio y comunicación asertiva",null,null,null,null,null,null,null,null,5,"Prevención y atención de situaciones de riesgo",null,null,null,null,null,null,null,null,0]
[null,null,null,null,null,null,null,null,"Primeros auxilios y seguridad y salud en el trabajo ",null,null,null,null,null,null,null,null,6,"Vigilancia y guardianía",null,null,null,null,null,null,null,null,0]
[null,null,null,null,null,null,null,null,"Manejo de herramientas TIC y ofimática"]
[null,null,null,null,null,null,null,null,"Manejo de los sistemas informáticos del MINEDU"]
[null,null,null,null,null,null,null,null,"Mantenimiento (electricidad, gasfitería, carpintería, etc)",null,null,null,null,null,null,null,null,null,"(*) Señale Prioridad, donde:"]
[null,null,null,null,null,null,null,null,"Conocimiento de seguridad básica",null,null,null,null,null,null,null,null,null,null,"1: Más carga"]
[null,null,null,null,null,null,null,null,"Otros","",null,null,null,null,null,null,null,null,null,"2: Menos carga"]
[]
[]
[null,null,null,"619. USTED SEÑOR(A) DIRECTOR(A), ¿CUENTA CON PERSONAL AUXILIAR DE EDUCACIÓN?",null,null,null,null,null,null,null,null,null,null,null,null,"623. ¿A TRAVÉS DE QUÉ INSTRUMENTOS DE GESTIÓN SE HA INCORPORADO?"]
[null,null,null,null,null,null,null,null,null,null,null,null,null,null,null,null,null,"Marque con una “X”, una opción"]
[null,null,null,null,"Sí",null,null,null,null,"No  "]
[null,null,null,null,null,null,null,null,null,null,null,null,null,null,null,null,null,null,"Proyecto Educativo Institucional (PEI)"]
[null,null,null,null,null,null,null,null,null,null,null,null,null,null,null,null,null,null,"Plan Anual de Trabajo (PAT)"]
[null,null,null,null,"¿Qué temáticas considera usted que el personal auxiliar",null,null,null,null,null,null,null,null,null,null,null,null,null,"Proyecto Curricular de la IE (PCI)"]
[null,null,null,null,"de educación debe ser capacitado?",null,null,null,null,null,null,null,null,null,null,null,null,null,"Reglamento Interno (RI)"]
[null,null,null,null,"Marque como máximo tres opciones",null,null,null,null,null,null,null,null,null,null,null,null,null,"Otros",null,""]
[]
[null,null,null,{"$f":"COUNTIF(E142:E148,\"X\")","v":0},null,"Comunicación oral",null,null,null,null,null,null,null,null,null,null,"624. ¿CUÁLES SON LOS INSTRUMENTOS DE GESTIÓN ESCOLAR CON QUE CUENTA ESTE"]
[null,null,null,null,null,"Trabajo en equipo y organización",null,null,null,null,null,null,null,null,null,null,null,"SERVICIO/NIVEL EDUCATIVO?"]
[null,null,null,null,null,"Resolución de problemas con agilidad y manejo de conflicto"]
[null,null,null,null,null,"Primeros auxilios y seguridad y salud en el trabajo",null,null,null,null,null,null,null,null,null,null,null,null,null,null,"Ámbito"]
[null,null,null,null,null,"Desarrollo infantil",null,null,null,null,null,null,null,null,null,null,null,null,null,null,null,null,null,{"$f":"COUNTIF(Y147:Y152,\"SI\")+COUNTIF(Y147:Y152,\"NO\")","v":0},"SI - NO"]
[null,null,null,null,null,"Relación con los estudiantes (el juego, soporte socioemocional",null,null,null,null,null,null,null,null,null,null,null,1,"Proyecto Educativo Institucional (PEI)"]
[null,null,null,null,null,"Otro",null,"",null,null,null,null,null,null,null,null,null,2,"Proyecto Currícular Institucional (PCI)"]
[null,null,null,null,null,null,null,null,null,null,null,null,null,null,null,null,null,3,"Reglamento Interno (RI)"]
[null,null,null,"620. ¿EN QUÉ TRIMESTRE CONSIDERA USTED QUE ES IDÓNEA LA FORMACIÓN DEL PERSONAL",null,null,null,null,null,null,null,null,null,null,null,null,null,4,"Plan Anual de Trabajo (PAT)"]
[null,null,null,null,"ADMINISTRATIVO Y/O AUXILIAR DE EDUCACIÓN?",null,null,null,null,null,null,null,null,null,null,null,null,5,"Documento de Gestión (DG)"]
[null,null,null,null,"Marque con una “X”, hasta dos opciones",null,null,null,null,null,null,null,null,null,null,null,null,6,"Otros"]
[]
[null,null,null,{"$f":"COUNTIF(E154:E158,\"X\")","v":0},null,"Entre enero y marzo",null,null,null,null,null,null,null,null,null,null,"625. ¿TIENE CONOCIMIENTO QUE EXISTE UNA HERRAMIENTA DIGITAL PARA LA EMISIÓN DE"]
[null,null,null,null,null,"Entre abril y junio",null,null,null,null,null,null,null,null,null,null,null,"CERTIFICADOS DE ESTUDIOS?"]
[null,null,null,null,null,"Entre julio y setiembre"]
[null,null,null,null,null,"Entre octubre y diciembre",null,null,null,null,null,null,null,null,null,null,null,"Sí",null,null,null,null,"No  "]
[null,null,null,null,null,"No cuento con personal administrativo y/o auxiliar de educación"]
[]
[null,null,null,"621. DURANTE EL PRESENTE AÑO Y HASTA LA FECHA DE APLICACIÓN DEL CENSO EDUCATIVO 2025,"]
[null,null,null,null,"¿EL EQUIPO DIRECTIVO DE ESTE SERVICIO/NIVEL EDUCATIVO HA GESTIONADO ACCIONES",null,null,null,null,null,null,null,null,null,null,null,null,null,"¿Ha hecho uso de la herramienta?"]
[null,null,null,null,"VINCULADAS AL TRABAJO COLABORATIVO CON DOCENTES?"]
[null,null,null,null,null,null,null,null,null,null,null,null,null,null,null,null,null,null,"Sí",""]
[null,null,null,null,"Sí",null,null,null,null,"No  "]
[null,null,null,null,null,null,null,null,null,null,null,null,null,null,null,null,null,null,"No  ",""]
[null,null,null,null,null,null,null,"¿Qué actividades ha implementado?"]
[null,null,null,null,null,null,null,"Marque con una “X”, hasta dos opciones priorizadas"]
[]
[null,null,null,null,null,null,{"$f":"COUNTIF(H169:H172,\"X\")","v":0},null,"Planificación institucional"]
[null,null,null,null,null,null,null,null,"Reuniones colegiadas"]
[null,null,null,null,null,null,null,null,"Comunidades de aprendizaje profesional",null,null,null,null,null,null,null,null,null,null,null,"¿Cuál es el motivo?"]
[null,null,null,null,null,null,null,null,"Gestión de la convivencia escolar",null,null,null,null,null,null,null,null,null,null,null,"Marque con una “X”, una o más opciones"]
[]
[null,null,null,"622. EN EL PRESENTE AÑO, ¿SE HA INCORPORADO ALGÚN OBJETIVO O ACCIÓN RELACIONADA CON",null,null,null,null,null,null,null,null,null,null,null,null,null,null,null,null,null,"Baja demanda educativa o pocos estudiantes"]
[null,null,null,null,"LA PREVENCIÓN, PROMOCIÓN O ATENCIÓN DE LA SALUD FÍSICA, MENTAL O EMOCIONAL DEL",null,null,null,null,null,null,null,null,null,null,null,null,null,null,null,null,"La IE que dirijo es multigrado"]
[null,null,null,null,"PERSONAL DOCENTE, DIRECTIVO, JERÁRQUICO O ADMINISTRATIVO EN LOS INSTRUMENTOS",null,null,null,null,null,null,null,null,null,null,null,null,null,null,null,null,"Bajo o escaso acceso a internet en la localidad"]
[null,null,null,null,"DE GESTIÓN DEL CEBA?",null,null,null,null,null,null,null,null,null,null,null,null,null,null,null,null,"En la localidad se habla otra lengua distinta al español"]
[null,null,null,null,null,null,null,null,null,null,null,null,null,null,null,null,null,null,null,null,null,"Otros",null,""]
[null,null,null,null,"Sí",null,null,null,null,"No  ",null," u   Pase a la pregunta 624."]

{"sheet":"C700","index":8,"n_rows":97,"n_cols":27,"rows_kept":97,"cut":false,"hidden":true,"merged":[[76,9,76,12],[77,9,77,12],[78,9,78,12],[79,9,79,12],[80,9,80,12],[74,9,74,12],[74,20,74,21],[74,22,74,23],[75,9,75,12],[75,20,75,21],[75,22,75,23],[71,16,72,19],[71,20,71,25],[72,9,72,12],[72,22,72,23],[73,9,73,12],[73,20,73,21],[73,22,73,23],[58,2,58,4],[58,5,58,7],[58,8,58,9],[58,10,58,11],[70,5,71,6],[70,8,71,8],[70,9,71,12],[30,17,36,20],[32,15,34,16],[54,2,57,4],[54,5,57,7],[54,8,57,9],[54,10,57,11],[54,12,57,12],[22,15,29,16],[22,17,29,20],[23,10,23,11],[24,8,24,9],[24,10,24,11],[25,3,25,6],[25,8,25,9],[25,10,25,11],[19,10,20,11],[19,12,20,12],[21,8,21,9],[21,10,21,11],[22,8,22,9],[22,10,22,11],[6,1,6,27],[12,15,13,16],[12,17,13,20],[12,21,12,26],[14,15,21,16],[14,17,21,20],[18,7,18,9],[18,10,18,12],[19,7,20,7],[19,8,20,9]]}
[]
[null,null,null,null,null,"CENSO EDUCATIVO 2025"]
[null,null,null,null,null,"MATRÍCULA, DOCENTES Y RECURSOS"]
[]
[]
[]
[null,"700. GESTIÓN DEL RIESGO DE DESASTRES"]
[]
[null,null,"701. EN EL PRESENTE AÑO, ESTE SERVICIO/NIVEL EDUCATIVO, ¿HA INCORPORADO ACCIONES",null,null,null,null,null,null,null,null,null,null,null,null,"702. SOBRE LA GESTIÓN DEL RIESGO DE DESASTRES EN ESTE SERVICIO/NIVEL EDUCATIVO,"]
[null,null,null,"ESTRATÉGICAS Y OPERATIVAS EN GESTIÓN DEL RIESGO DE DESASTRES Y SEGURIDAD Y",null,null,null,null,null,null,null,null,null,null,null,null,"ATIENDA LAS SIGUIENTES PREGUNTAS:"]
[null,null,null,"DEFENSA NACIONAL EN SUS INSTRUMENTOS DE GESTIÓN VIGENTES? ",null,null,null,null,null,null,null,null,null,null,null,null,"Marque con una “X” en “Si” o “No” según corresponda en atención a cada pregunta"]
[]
[null,null,null,"Sí","",null,null,null,"No  ",null,null,null,null,null,null,"Bien o Servicio",null,"Pregunta",null,null,null,"Marque con un “X”, según corresponda "]
[null,null,null,null,null,null,null,null,null,null,null,null,null,null,null,null,null,null,null,null,null,null,"SI","NO","Si es Sí, de quién lo recibió"]
[null,null,null,null,null,null,null,null,null,null,null,null,null,null,null,"Planos de Seguridad",null,"¿El servicio/nivel educativo cuenta con planos de seguridad acorde a la normativa?"]
[null,null,null,"Precise las acciones incorporadas en los documentos de gestión",null,null,null,null,null,null,null,null,null,null,null,null,null,null,null,null,null,null,null,null,"De la DRE/GRE",null,""]
[null,null,null,"Marque con una “X”, según corresponda ",null,null,null,null,null,null,null,null,null,null,null,null,null,null,null,null,null,null,null,null,"De la UGEL",null,""]
[null,null,null,null,null,null,null,null,null,null,null,null,null,null,null,null,null,null,null,null,null,null,"",null,"De la Municipalidad",null,""]
[null,null,null,null,null,null,null,"Riesgo de Desastres",null,null,"Seguridad y Defensa Nacional",null,null,null,null,null,null,null,null,null,null,null,null,null,"De una entidad privada",null,""]
[null,null,"Documentos de Gestión",null,null,null,null,"Acciones Estratégicas","Acciones Operativas",null,"Acciones Estratégicas",null,"Acciones Operativas",null,null,null,null,null,null,null,null,null,null,null,"Adquisición de la IE",null,""]
[null,null,null,null,null,null,null,null,null,null,null,null,null,null,null,null,null,null,null,null,null,null,null,null,"Donación",null,""]
[null,null,"Proyecto Educativo Inst. (PEI)",null,null,null,null,"",null,null,""]
[null,null,"Plan Anual de Trabajo (PAT)",null,null,null,null,null,"",null,null,null,"",null,null,"Dispositivos de Seguridad",null,"¿El servicio/nivel educativo cuenta con dispositivos de seguridad acorde a lo que indica en sus planos de seguridad?"]
[null,null,"Proyecto Curricular. Inst. (PCI)",null,null,null,null,"",null,null,"",null,null,null,null,null,null,null,null,null,null,null,null,null,"De la DRE/GRE",null,""]
[null,null,"Reglamento Interno (RI)",null,null,null,null,null,"",null,null,null,"",null,null,null,null,null,null,null,null,null,null,null,"De la UGEL",null,""]
[null,null,"Otros","ASDASDASD",null,null,null,"","",null,"",null,"",null,null,null,null,null,null,null,null,null,"",null,"De la Municipalidad",null,""]
[null,null,null,null,null,null,null,null,null,null,null,null,null,null,null,null,null,null,null,null,null,null,null,null,"De una entidad privada",null,""]
[null,null,null,null,null,null,null,null,null,null,null,null,null,null,null,null,null,null,null,null,null,null,null,null,"Adquisición de la IE",null,""]
[null,null,null,null,null,null,null,null,null,null,null,null,null,null,null,null,null,null,null,null,null,null,null,null,"Donación",null,""]
[]
[null,null,null,null,null,null,null,null,null,null,null,null,null,null,null,null,null,"¿El servicio/nivel educativo cuenta con dispositivos de seguridad incompletos"]
[null,null,null,null,null,null,null,null,null,null,null,null,null,null,null,null,null,null,null,null,null,null,null,null,"De la DRE/GRE",null,""]
[null,null,null,null,null,null,null,null,null,null,null,null,null,null,null,"Otros Casos",null,null,null,null,null,null,null,null,"De la UGEL",null,""]
[null,null,null,null,null,null,null,null,null,null,null,null,null,null,null,null,null,null,null,null,null,null,"",null,"De la Municipalidad",null,""]
[null,null,null,null,null,null,null,null,null,null,null,null,null,null,null,null,null,null,null,null,null,null,null,null,"De una entidad privada",null,""]
[null,null,null,null,null,null,null,null,null,null,null,null,null,null,null,null,null,null,null,null,null,null,null,null,"Adquisición de la IE",null,""]
[null,null,null,null,null,null,null,null,null,null,null,null,null,null,null,null,null,null,null,null,null,null,null,null,"Donación",null,""]
[]
[]
[]
[null,null,"703. EN EL PRESENTE AÑO, LOS MIEMBROS DE ESTE SERVICIO/NIVEL EDUCATIVO,",null,null,null,null,null,null,null,null,null,null,null,null,"704. EN EL PRESENTE AÑO, ESTE SERVICIO/NIVEL EDUCATIVO HA SUFRIDO EL IMPACTO DE"]
[null,null,null,"¿HAN RECIBIDO ACCIONES FORMATIVAS EN MATERIA DE LA GESTIÓN DEL RIESGO ",null,null,null,null,null,null,null,null,null,null,null,null,"DAÑOS DE UN FENÓMENO NATURAL O ANTRÓPICO?"]
[null,null,null,"DE DESASTRES (GRD) Y/O SEGURIDAD Y DEFENSA NACIONAL (SDN)?"]
[null,null,null,null,null,null,null,null,null,null,null,null,null,null,null,null,"Sí","",null,null,null,null,"No  "]
[null,null,null,"Sí","",null,null,null,"No  "]
[]
[null,null,null,null,null,null,null,null,null,null,"Entidad",null,"SI - NO",null,null,null,null,null,null,"¿El servicio fue",null,null,"Sí",""]
[null,null,null,null,null,"El servicio fue brindado por:",null,null,null,"DRE/GRE",null,null,"",null,null,null,null,null,null,"suspendido?"]
[null,null,null,null,null,null,null,null,null,"UGEL",null,null,"",null,null,null,null,null,null,null,null,null,"No  ",""]
[null,null,null,null,null,null,null,null,null,"Municipio",null,null,""]
[null,null,null,null,null,null,null,null,null,"ONG/Entidad privada",null,null,"",null,null,null,"¿Cuál de los siguientes canales se utilizó para reportar la emergencia a la UGEL?"]
[null,null,null,null,null,null,null,null,null,null,null,null,{"$f":"COUNTIF(M48:M51,\"SI\")+COUNTIF(M48:M51,\"SI\")","v":0},null,null,null,"Marque con una “X”, una o más opciones"]
[null,null,"Tematicas: Marque con una “X”, según corresponda"]
[null,null,"Gestión del Riesgo de Desastres",null,null,null,null,null,null,null,"Seguridad y Defensa Nacional",null,null,null,null,null,"","Celular"]
[null,null,"Política/Plan NAcional en GRD",null,null,"Componentes, procesos o procedimientos de la GRD",null,null,"*Herramientas técnicas / Financieras en GRD",null,"Política/Plan Nacional en SDN",null,"Fundamentos de la SDN",null,null,null,"","Radiofonía"]
[null,null,null,null,null,null,null,null,null,null,null,null,null,null,null,null,"","Teléfono satelital"]
[null,null,null,null,null,null,null,null,null,null,null,null,null,null,null,null,"","Plataforma web"]
[null,null,null,null,null,null,null,null,null,null,null,null,null,null,null,null,"","Por conducto regular (oficio, informe)"]
[null,null,"",null,null,"",null,null,"",null,"",null,"",null,null,null,"","No se sabía que había que reportar a la UGEL"]
[null,null,{"$f":"COUNTIF(C59:M59,\"X\")","v":0},null,null,null,null,null,null,null,null,null,null,null,null,null,"","No se reportó la emergencia porque no hay cobertura ni canal disponible en la zona."]
[]
[]
[null,null,"705. EN EL PRESENTE AÑO, ESTE SERVICIO/NIVEL EDUCATIVO, ¿HA ORGANIZADO Y EJECUTADO",null,null,null,null,null,null,null,null,null,null,null,null,"707. EN EL AÑO 2024, ESTE SERVICIO/NIVEL EDUCATIVO, ¿PARTICIPÓ EN LOS SIMULACROS"]
[null,null,null,"CAMPAÑAS COMUNICACIONALES DE GESTIÓN DEL RIESGO DE DESASTRES (GRD) Y/O",null,null,null,null,null,null,null,null,null,null,null,null,"CONVOCADOS POR MINEDU Y/O INDECI?"]
[null,null,null,"SEGURIDAD Y DEFENSA NACIONAL (SDN)?"]
[null,null,null,null,null,null,null,null,null,null,null,null,null,null,null,null,"Sí","",null,null,null,null,"No  "]
[null,null,null,"Sí","",null,null,null,"No  "]
[]
[null,null,null,null,null,null,null,null,null,null,null,null,null,null,null,null,"¿Qué nivel de preparación lograron?"]
[null,null,null,"Tipo de campaña que realizó",null,null,null,null,null,null,null,null,null,null,null,null,"Marque con una “X”, el nivel logrado en cada simulacro"]
[null,null,null,null,null,"Ítems",null,null,"Elija una opción","Temática de la campaña*"]
[null,null,null,null,null,null,null,{"$f":"COUNTIF(I73:I81,\"SI\")+COUNTIF(I73:I81,\"NO\")","v":0},null,null,null,null,null,null,null,null,"N° de simulacro",null,null,null,"Nivel de preparación Marque con un “X”"]
[null,null,null,1,"Pasacalle",null,null,null,"","",null,null,null,null,null,null,null,null,null,null,"Inicio",null,"Proceso",null,"Bueno","Destacado"]
[null,null,null,2,"Feria",null,null,null,"","",null,null,null,null,null,null,1,"Primer simulacro",null,null,"",null,"",null,"",""]
[null,null,null,3,"Activaciones motivadoras",null,null,null,"","",null,null,null,null,null,null,2,"Segundo simulacro",null,null,"",null,"",null,"",""]
[null,null,null,4,"Conferencias /Foros",null,null,null,"","",null,null,null,null,null,null,3,"Tercer simulacro",null,null,"",null,"",null,"",""]
[null,null,null,5,"Webinars",null,null,null,"",""]
[null,null,null,6,"Difusión de afiches, trípticos, volantes",null,null,null,"",""]
[null,null,null,7,"Murales",null,null,null,"",""]
[null,null,null,8,"Post en redes sociales",null,null,null,"",""]
[null,null,null,9,"Post radiales",null,null,null,"",""]
[]
[]
[null,null,"706. ESTE SERVICIO/NIVEL EDUCATIVO, ¿CUENTA CON UN PLAN DE GESTIÓN DEL RIESGO DE DESASTRES?"]
[]
[null,null,null,"Sí","",null,null,null,"No  "]
[]
[]
[null,null,null,"¿Qué actividades ha desarrollado en el Plan?"]
[null,null,null,"Marque con una “X”, una o más opciones"]
[]
[null,null,null,"","Identificó los peligros más frecuentes de la IE. (Ejem: lluvias, huaycos, entre otros)."]
[null,null,null,"","Identificó las vulnerabilidades en la IE. (Ejem: techos, canaletas, paredes, pisos en mal estado, personal sin capacitación, entre otros)."]
[null,null,null,"","Priorizó acciones correctivas en la infraestructura de la IE con presupuesto de mantenimiento."]
[null,null,null,"","Procedimientos de evacuación a zonas seguras en situaciones de emergencias."]
[null,null,null,"","Procedimientos de contención y soporte socioemocional en situaciones de emergencias."]
[null,null,null,"","Procedimientos de aplicación del currículo vigente en situaciones de emergencias"]

{"sheet":"C800","index":9,"n_rows":130,"n_cols":23,"rows_kept":130,"cut":false,"hidden":true,"merged":[[69,20,69,22],[6,1,6,23],[15,15,16,19],[15,20,16,20],[15,21,16,21],[15,22,16,22],[26,17,26,19],[44,9,44,11],[46,8,46,10],[47,8,47,10],[47,20,47,22],[48,8,48,10],[86,3,86,8],[86,9,86,12],[86,13,86,18],[86,19,86,21],[80,1,80,23],[83,19,83,21],[84,9,84,12],[84,13,84,18],[84,19,84,21],[84,3,84,8],[85,3,85,8],[85,9,85,12],[85,13,85,18],[85,19,85,21]]}
[]
[null,null,null,null,null,"CENSO EDUCATIVO 2025"]
[null,null,null,null,null,"MATRÍCULA, DOCENTES Y RECURSOS"]
[]
[]
[]
[null,"900. EDUCACIÓN AMBIENTAL"]
[]
[null,null,"801. EN EL PRESENTE AÑO, ESTE SERVICIO/NIVEL EDUCATIVO, ¿HA ELABORADO SU PROYECTO",null,null,null,null,null,null,null,null,null,null,null,"802. SEÑOR(A) DIRECTOR(A), SI HA ELABORADO SU PROYECTO EDUCATIVO AMBIENTAL"]
[null,null,null,"EDUCATIVO AMBIENTAL INTEGRADO (PEAI)?",null,null,null,null,null,null,null,null,null,null,null,"INTEGRADO (PEAI), MARQUE USTED, LAS PROBLEMÁTICAS/OPORTUNIDADES AMBIENTALES"]
[null,null,null,null,null,null,null,null,null,null,null,null,null,null,null,"QUE SE ABORDAN EN EL PEAI, DE ACUERDO A LO SIGUIENTE:"]
[null,null,null,"Sí",""]
[null,null,null,null,null,null,null,null,null,null,null,null,null,null,null,"Marque con una “X”, hasta dos opciones"]
[null,null,null,null,null,"¿Ha implementado su proyecto educativo ambiental integrado (PEAI):"]
[]
[null,null,null,null,null,"Sí  ","",null,"Período",null,"Año","Mes",null,null,null,"Problemáticas / Oportunidades",null,null,null,null,"Principal","Comple- mentario","No aplica"]
[null,null,null,null,null,null,null,"","Desde",null,"",""]
[null,null,null,null,null,"No  ","","","Hasta",null,"","",null,null,null,1,"Contaminación por residuos sólidos",null,null,null,"","",""]
[null,null,null,null,null,null,null,null,null,null,null,null,null,null,null,2,"Cambio climático",null,null,null,"","",""]
[null,null,null,null,null,null,null,null,null,null,null,null,null,null,null,3,"Contaminación del agua",null,null,null,"","",""]
[null,null,null,"No  ",null,null,"Pase a la pregunta 803.",null,null,null,null,null,null,null,null,4,"Desertificación",null,null,null,"","",""]
[null,null,null,null,null,null,null,null,null,null,null,null,null,null,null,5,"Depredación de flora y fauna",null,null,null,"","",""]
[null,null,null,null,null,null,null,null,null,null,null,null,null,null,null,6,"Microplásticos",null,null,null,"","",""]
[null,null,null,null,"Indique el/los motivo(s):",null,null,null,null,null,null,null,null,null,null,7,"3R: reducir, reusar, reciclar",null,null,null,"","",""]
[null,null,null,null,"Marque con una “X”, una o más opciones",null,null,null,null,null,null,null,null,null,null,8,"Contaminación del aire",null,null,null,"","",""]
[null,null,null,null,null,null,null,null,null,null,null,null,null,null,null,9,"Alimentación saludable",null,null,null,"","",""]
[null,null,null,null,null,"Falta de conocimiento o capacitación",null,null,null,null,null,null,null,null,null,10,"Otro","",null,null,"","",""]
[null,null,null,null,null,"Falta de recursos"]
[null,null,null,null,null,"Resistencia al cambio"]
[null,null,null,null,null,"Dificultades para integrar el PEAI en el currículo"]
[null,null,null,null,null,"Falta de apoyo institucional"]
[]
[]
[null,null,"803. EL SERVICIO/NIVEL EDUCATIVO, ¿CUENTA CON LA BRIGADA DE EDUCACIÓN AMBIENTAL Y",null,null,null,null,null,null,null,null,null,null,null,"805. SEÑOR(A) DIRECTOR(A), ¿LA BRIGADA DE EDUCACIÓN AMBIENTAL Y GESTIÓN DEL"]
[null,null,null,"GESTIÓN DE RIESGO DE DESASTRES?",null,null,null,null,null,null,null,null,null,null,null,"RIESGO DE DESASTRES CONFORMADA HA SIDO FORTALECIDO?"]
[]
[null,null,null,null,null,null,null,null,null,null,null,null,null,null,null,"Sí"]
[]
[null,null,null,"Sí","",null,null,null,"No  ",null," u   Complete datos del director.",null,null,null,null,null,null,null,"¿Quiénes la realizaron?"]
[null,null,null,null,null,null,null,null,null,null,null,null,null,null,null,null,null,null,"Marque con una “X”, una o más opciones"]
[]
[null,null,null,null,null,"Documento que lo aprueba",null,null,null,null,"Resolución",null,null,null,null,null,null,null,null,"El brigadista líder"]
[null,null,null,null,null,null,null,null,null,null,"Otro",null,null,null,null,null,null,null,null,"Directivo"]
[null,null,null,null,null,null,null,null,null,null,null,null,null,null,null,null,null,null,null,"Docentes"]
[null,null,null,null,null,"Número del Documento",null,null,null,"",null,null,null,null,null,null,null,null,null,"UGEL"]
[null,null,null,null,null,null,null,null,null,null,null,null,null,null,null,null,null,null,null,"DRE/GRE"]
[null,null,null,null,null,null,null,null,"Desde:",null,null,"Hasta:",null,null,null,null,null,null,null,"Gobierno local"]
[null,null,null,null,null,"Vigencia de la brigada",null,null,"DD/MM/AAAA",null,null,"DD/MM/AAAA",null,null,null,null,null,null,null,"Otro",""]
[null,null,null,null,null,null,null,null,"",null,null,""]
[null,null,null,null,null,null,null,null,null,null,null,null,null,null,"806. SEÑOR(A) DIRECTOR(A), INDIQUE USTED, ¿SI EN LOS DOS ÚLTIMOS AÑOS, LOS"]
[null,null,null,null,null,null,null,null,null,null,null,null,null,null,null,"INTEGRANTES DE LA BRIGADA DE EDUCACIÓN AMBIENTAL Y GESTIÓN DEL"]
[null,null,null,null,null,null,null,null,null,null,null,null,null,null,null,"RIESGO DE DESASTRES, HAN SIDO CAPACITADOS?"]
[]
[null,null,null,null,null,null,null,null,null,null,null,null,null,null,null,"Sí",null,null,"¿En qué temas han sido capacitados?"]
[null,null,"804. SEÑOR(A) DIRECTOR(A), LA BRIGADA DE EDUCACIÓN AMBIENTAL Y GESTIÓN DEL",null,null,null,null,null,null,null,null,null,null,null,null,null,null,null,"Marque con una “X”, una o más opciones"]
[null,null,null,"RIESGO DE DESASTRES CONFORMADA, ¿CUENTA CON UN PLAN DE ACCIÓN ELABORADO?"]
[null,null,null,null,null,null,null,null,null,null,null,null,null,null,null,null,null,null,null,"Cambio climático"]
[null,null,null,null,null,null,null,null,null,null,null,null,null,null,null,null,null,null,null,"Manejo de residuos sólidos"]
[null,null,null,"Sí",null,null,null,null,null,null,null,null,null,null,null,null,null,null,null,"Cuidado de los humedales"]
[null,null,null,null,null,null,null,null,null,null,null,null,null,null,null,null,null,null,null,"Diversidad biológica"]
[null,null,null,null,null,null,"Indique la fecha de la elaboración del plan de acción",null,null,null,null,null,null,null,null,null,null,null,null,"Primeros auxilios"]
[null,null,null,null,null,null,null,null,null,null,null,null,null,null,null,null,null,null,null,"Capacitación contra Incendios"]
[null,null,null,null,null,null,null,null,null,null,null,null,null,null,null,null,null,null,null,"Señalización y evacuación"]
[null,null,null,null,null,null,"Día","Mes","Año",null,null,null,null,null,null,null,null,null,null,"Seguridad y protección"]
[null,null,null,null,null,null,null,null,null,null,null,{"$f":"CONCATENATE(G65,\"/\",H65,\"/\",I65)","v":"//"},null,null,null,null,null,null,null,"Soporte Socioemocional y actividades lúdicas"]
[null,null,null,null,null,null,null,null,null,null,null,null,null,null,null,null,null,null,null,"Alimentación saludable"]
[null,null,null,null,null,null,null,null,null,null,null,null,null,null,null,null,null,null,null,"Transporte sostenible"]
[null,null,null,null,null,null,null,null,null,null,null,null,null,null,null,null,null,null,null,"Desertificación"]
[null,null,null,null,null,null,null,null,null,null,null,null,null,null,null,null,null,null,null,"Plásticos y microplásticos"]
[null,null,null,null,null,null,null,null,null,null,null,null,null,null,null,null,null,null,null,"Otro",""]
[null,null,null,"No  ",null,null,null,null,null,null,null,null,null,null,null,null,null,null,""]
[null,null,null,null,null,null,null,null,null,null,null,null,null,null,null,"No  ",null,null,"Indique, ¿cuál es el motivo?"]
[null,null,null,null,null,null,null,null,null,null,null,null,null,null,null,null,null,null,"Marque con una “X”, una opción"]
[null,null,null,null,"¿El plan de acción esta incorporado en el plan anual de trabajo?"]
[null,null,null,null,null,null,null,null,null,null,null,null,null,null,null,null,null,null,null,"No saben a quién solicitar apoyo para la capacitación"]
[null,null,null,null,"Sí",null,null,null,"No  ",null,null,null,null,null,null,null,null,null,null,"No cuentan con aliados especializados"]
[null,null,null,null,null,null,null,null,null,null,null,null,null,null,null,null,null,null,null,"Se suspendió por cruce de actividades"]
[null,null,null,null,null,null,null,null,null,null,null,null,null,null,null,null,null,null,null,"No se ha recibido invitación"]
[]
[]
[null,"DATOS DEL DIRECTOR(A) Y/O RESPONSABLE (S) DEL LLENADO DE LA CÉDULA"]
[]
[]
[null,null,null,null,"NOMBRES Y APELLIDOS",null,null,null,null,"CARGO",null,null,null,"CORREO ELECTRÓNICO",null,null,null,null,null,"TELÉFONO"]
[]
[]
[]
[]
[]
[]
[]
["DIRECTOR(A)"]
["SUB DIRECTOR(A)"]
["DOCENTE"]
["COORDINADOR(A)"]
["ASESOR"]
["ADMINISTRATIVO"]
["ASISTENTE"]
["AUXILIAR"]
["SECRETARIA(O)"]
["ESTADÍSTICO"]
["ESPECIALISTA"]
["BIBLIOTECARIO"]
["CARE"]
["COMANDANTE PNP"]
["CONTADOR"]
["DAIP"]
["DIGITADOR(A)"]
["GERENTE"]
["JEFE ACADÉMICO"]
["JEFE ADMINISTRATIVO"]
["JEFE DE ÁREA"]
["JEFE DE LABORATORIO"]
["JEFE DE PERSONAL"]
["JEFE DE SEDE"]
["JEFE DE UNIDAD"]
["OFICINISTA"]
["OPERADOR DE SISTEMAS"]
["PERSONAL DE SERVICIO"]
["PROGRAMADOR"]
["PROMOTOR(A)"]
["PSICOLOGO"]
["REGISTRADOR(A)"]
["REPRESENTANTE LEGAL"]
["SOPORTE TECNOLOGICO"]
["TÉCNICO ADMINISTRATIVO"]
["TESORERO(A)"]
["TRABAJADOR SOCIAL"]
["TUTOR"]
["OTROS"]

{"sheet":"Enviar","index":10,"n_rows":9,"n_cols":4,"rows_kept":9,"cut":false,"hidden":true,"merged":[[0,1,0,4],[1,1,1,4]]}
[null,"CENSO EDUCATIVO 2025"]
[null,"MATRÍCULA, DOCENTES Y RECURSOS"]
[]
[]
[null,null,"Paso 1:","Realice el ENVÍO con su clave EOL."]
[]
[null,null,"Paso 2:","Una vez realizado el ENVÍO,  Revise su constancia de envio."]
[]
[null,null,"  ADVERTENCIA","ASEGÚRESE DE REGISTRAR TODA LA INFORMACIÓN DEL NIVEL INFORMANTE"]